Organisation Name,Organisation Code,Unique Ref No,Effective Date,Directorate  where expenditure incurred,Supplier name ,Payment Date,Net Amount,Purpose of Spend,Procurement Classification (Higher Level),Procurement Classification (Lower Level),Capital/Revenue
Walsall Council,http://opendatacommunities.org/id/metropolitan-district-council/walsall,WC62 -1,30/11/2015,Economy & Environment,118 PHARMACY LIMITED,09/11/2015,300,71007-CONTRIBUTION TO PCT,Third Party Payments,Joint Arrangements,Revenue
Walsall Council,http://opendatacommunities.org/id/metropolitan-district-council/walsall,WC62 -2,30/11/2015,Social Care & Inclusion,1ST HAND CARE LTD,02/11/2015,966,73372-DOMICILIARY CARE,Third Party Payments,Private Contractor Fees,Revenue
Walsall Council,http://opendatacommunities.org/id/metropolitan-district-council/walsall,WC62 -3,30/11/2015,Economy & Environment,21ST CENTURY GLAZIERS,11/11/2015,"4,242.77",40003-GLAZING-OP MTCE,Premises,Premises-Repairs & Maintenance,Revenue
Walsall Council,http://opendatacommunities.org/id/metropolitan-district-council/walsall,WC62 -4,30/11/2015,Childrens,247 CARS (WILLENHALL) LIMITED,01/11/2015,240,52000-WITH DRIVER-HIRE OF VEHICLES,Transport,Hire,Revenue
Walsall Council,http://opendatacommunities.org/id/metropolitan-district-council/walsall,WC62 -5,30/11/2015,Childrens,247 CARS (WILLENHALL) LIMITED,30/11/2015,272,52000-WITH DRIVER-HIRE OF VEHICLES,Transport,Hire,Revenue
Walsall Council,http://opendatacommunities.org/id/metropolitan-district-council/walsall,WC62 -6,30/11/2015,Childrens,247 CARS (WILLENHALL) LIMITED,30/11/2015,272,52000-WITH DRIVER-HIRE OF VEHICLES,Transport,Hire,Revenue
Walsall Council,http://opendatacommunities.org/id/metropolitan-district-council/walsall,WC62 -7,30/11/2015,Childrens,247 CARS (WILLENHALL) LIMITED,30/11/2015,272,52000-WITH DRIVER-HIRE OF VEHICLES,Transport,Hire,Revenue
Walsall Council,http://opendatacommunities.org/id/metropolitan-district-council/walsall,WC62 -8,30/11/2015,Childrens,247 CARS (WILLENHALL) LIMITED,30/11/2015,324,52000-WITH DRIVER-HIRE OF VEHICLES,Transport,Hire,Revenue
Walsall Council,http://opendatacommunities.org/id/metropolitan-district-council/walsall,WC62 -9,30/11/2015,Childrens,247 CARS (WILLENHALL) LIMITED,30/11/2015,340,52000-WITH DRIVER-HIRE OF VEHICLES,Transport,Hire,Revenue
Walsall Council,http://opendatacommunities.org/id/metropolitan-district-council/walsall,WC62 -10,30/11/2015,Childrens,247 CARS (WILLENHALL) LIMITED,01/11/2015,360,52000-WITH DRIVER-HIRE OF VEHICLES,Transport,Hire,Revenue
Walsall Council,http://opendatacommunities.org/id/metropolitan-district-council/walsall,WC62 -11,30/11/2015,Childrens,247 CARS (WILLENHALL) LIMITED,30/11/2015,420,52000-WITH DRIVER-HIRE OF VEHICLES,Transport,Hire,Revenue
Walsall Council,http://opendatacommunities.org/id/metropolitan-district-council/walsall,WC62 -12,30/11/2015,Childrens,247 CARS (WILLENHALL) LIMITED,01/11/2015,432,52000-WITH DRIVER-HIRE OF VEHICLES,Transport,Hire,Revenue
Walsall Council,http://opendatacommunities.org/id/metropolitan-district-council/walsall,WC62 -13,30/11/2015,Childrens,247 CARS (WILLENHALL) LIMITED,30/11/2015,578,52000-WITH DRIVER-HIRE OF VEHICLES,Transport,Hire,Revenue
Walsall Council,http://opendatacommunities.org/id/metropolitan-district-council/walsall,WC62 -14,30/11/2015,Childrens,247 CARS (WILLENHALL) LIMITED,30/11/2015,612,52000-WITH DRIVER-HIRE OF VEHICLES,Transport,Hire,Revenue
Walsall Council,http://opendatacommunities.org/id/metropolitan-district-council/walsall,WC62 -15,30/11/2015,Childrens,247 CARS (WILLENHALL) LIMITED,01/11/2015,714,52000-WITH DRIVER-HIRE OF VEHICLES,Transport,Hire,Revenue
Walsall Council,http://opendatacommunities.org/id/metropolitan-district-council/walsall,WC62 -16,30/11/2015,Childrens,247 CARS (WILLENHALL) LIMITED,30/11/2015,945.2,52000-WITH DRIVER-HIRE OF VEHICLES,Transport,Hire,Revenue
Walsall Council,http://opendatacommunities.org/id/metropolitan-district-council/walsall,WC62 -17,30/11/2015,Childrens,247 CARS (WILLENHALL) LIMITED,30/11/2015,"1,081.20",52000-WITH DRIVER-HIRE OF VEHICLES,Transport,Hire,Revenue
Walsall Council,http://opendatacommunities.org/id/metropolitan-district-council/walsall,WC62 -18,30/11/2015,Childrens,247 CARS (WILLENHALL) LIMITED,30/11/2015,"1,300.00",52000-WITH DRIVER-HIRE OF VEHICLES,Transport,Hire,Revenue
Walsall Council,http://opendatacommunities.org/id/metropolitan-district-council/walsall,WC62 -19,30/11/2015,Change and Governance,2BM LIMITED,09/11/2015,"2,540.00",63800-COMPUTER EQUIPMENT AND SUPPLIES,Supplies & Services,Communications & Computing,Revenue
Walsall Council,http://opendatacommunities.org/id/metropolitan-district-council/walsall,WC62 -20,30/11/2015,Childrens,4CHILDREN (TRADING) LTD,12/11/2015,"1,022.50",30000-INTERNAL TRAINING,Employees,Training,Revenue
Walsall Council,http://opendatacommunities.org/id/metropolitan-district-council/walsall,WC62 -21,30/11/2015,Social Care & Inclusion,5 CARE SERVICES LTD,16/11/2015,285.41,73372-DOMICILIARY CARE,Third Party Payments,Private Contractor Fees,Revenue
Walsall Council,http://opendatacommunities.org/id/metropolitan-district-council/walsall,WC62 -22,30/11/2015,Social Care & Inclusion,5 CARE SERVICES LTD,02/11/2015,345.4,73372-DOMICILIARY CARE,Third Party Payments,Private Contractor Fees,Revenue
Walsall Council,http://opendatacommunities.org/id/metropolitan-district-council/walsall,WC62 -23,30/11/2015,Social Care & Inclusion,5 CARE SERVICES LTD,02/11/2015,491.1,73372-DOMICILIARY CARE,Third Party Payments,Private Contractor Fees,Revenue
Walsall Council,http://opendatacommunities.org/id/metropolitan-district-council/walsall,WC62 -24,30/11/2015,Childrens,5 CARE SERVICES LTD,01/11/2015,937.25,63000-PROFESSIONAL FEES AND SERVICES,Supplies & Services,Services,Revenue
Walsall Council,http://opendatacommunities.org/id/metropolitan-district-council/walsall,WC62 -25,30/11/2015,Childrens,5 CARE SERVICES LTD,09/11/2015,983.25,63000-PROFESSIONAL FEES AND SERVICES,Supplies & Services,Services,Revenue
Walsall Council,http://opendatacommunities.org/id/metropolitan-district-council/walsall,WC62 -26,30/11/2015,Childrens,5 CARE SERVICES LTD,01/11/2015,"1,742.25",63000-PROFESSIONAL FEES AND SERVICES,Supplies & Services,Services,Revenue
Walsall Council,http://opendatacommunities.org/id/metropolitan-district-council/walsall,WC62 -27,30/11/2015,Childrens,5 CARE SERVICES LTD,16/11/2015,"1,943.50",63000-PROFESSIONAL FEES AND SERVICES,Supplies & Services,Services,Revenue
Walsall Council,http://opendatacommunities.org/id/metropolitan-district-council/walsall,WC62 -28,30/11/2015,Social Care & Inclusion,5 CARE SERVICES LTD,11/11/2015,"24,791.97",73372-DOMICILIARY CARE,Third Party Payments,Private Contractor Fees,Revenue
Walsall Council,http://opendatacommunities.org/id/metropolitan-district-council/walsall,WC62 -29,30/11/2015,Change and Governance,A D T FIRE AND SECURITY PLC,11/11/2015,242.06,73002-SECURITY-PRIV CONTRACTOR FEES,Third Party Payments,Private Contractor Fees,Revenue
Walsall Council,http://opendatacommunities.org/id/metropolitan-district-council/walsall,WC62 -30,30/11/2015,Economy & Environment,A D T FIRE AND SECURITY PLC,23/11/2015,369.52,60006-NEW-FURNITURE & EQUIPMENT,Supplies & Services,"Equip,Furniture & Materials",Revenue
Walsall Council,http://opendatacommunities.org/id/metropolitan-district-council/walsall,WC62 -31,30/11/2015,Economy & Environment,A F BLAKEMORE & SON LTD,17/11/2015,224.36,60500-GENERAL MATERIALS,Supplies & Services,"Equip,Furniture & Materials",Revenue
Walsall Council,http://opendatacommunities.org/id/metropolitan-district-council/walsall,WC62 -32,30/11/2015,Economy & Environment,A F BLAKEMORE & SON LTD,04/11/2015,238.8,61002-DRY FOODS-PROVISIONS,Supplies & Services,Provisions,Revenue
Walsall Council,http://opendatacommunities.org/id/metropolitan-district-council/walsall,WC62 -33,30/11/2015,Social Care & Inclusion,A F BLAKEMORE & SON LTD,20/11/2015,242.85,61016-FOOD AND BEVERAGES-PROVISIONS,Supplies & Services,Provisions,Revenue
Walsall Council,http://opendatacommunities.org/id/metropolitan-district-council/walsall,WC62 -34,30/11/2015,Economy & Environment,A F BLAKEMORE & SON LTD,25/11/2015,280.02,61009-BEVERAGES-PROVISIONS,Supplies & Services,Provisions,Revenue
Walsall Council,http://opendatacommunities.org/id/metropolitan-district-council/walsall,WC62 -35,30/11/2015,Social Care & Inclusion,A F BLAKEMORE & SON LTD,23/11/2015,331.16,60500-GENERAL MATERIALS,Supplies & Services,"Equip,Furniture & Materials",Revenue
Walsall Council,http://opendatacommunities.org/id/metropolitan-district-council/walsall,WC62 -36,30/11/2015,Economy & Environment,A F BLAKEMORE & SON LTD,25/11/2015,334.49,61002-DRY FOODS-PROVISIONS,Supplies & Services,Provisions,Revenue
Walsall Council,http://opendatacommunities.org/id/metropolitan-district-council/walsall,WC62 -37,30/11/2015,Social Care & Inclusion,A F BLAKEMORE & SON LTD,13/11/2015,370.7,61016-FOOD AND BEVERAGES-PROVISIONS,Supplies & Services,Provisions,Revenue
Walsall Council,http://opendatacommunities.org/id/metropolitan-district-council/walsall,WC62 -38,30/11/2015,Social Care & Inclusion,A F BLAKEMORE & SON LTD,13/11/2015,416.23,61016-FOOD AND BEVERAGES-PROVISIONS,Supplies & Services,Provisions,Revenue
Walsall Council,http://opendatacommunities.org/id/metropolitan-district-council/walsall,WC62 -39,30/11/2015,Social Care & Inclusion,A F BLAKEMORE & SON LTD,06/11/2015,432,60500-GENERAL MATERIALS,Supplies & Services,"Equip,Furniture & Materials",Revenue
Walsall Council,http://opendatacommunities.org/id/metropolitan-district-council/walsall,WC62 -40,30/11/2015,Social Care & Inclusion,A F BLAKEMORE & SON LTD,01/11/2015,452.33,61016-FOOD AND BEVERAGES-PROVISIONS,Supplies & Services,Provisions,Revenue
Walsall Council,http://opendatacommunities.org/id/metropolitan-district-council/walsall,WC62 -41,30/11/2015,Economy & Environment,A F BLAKEMORE & SON LTD,01/11/2015,607.84,61008-CONFECTIONERY/SNACKS-PROVISIONS,Supplies & Services,Provisions,Revenue
Walsall Council,http://opendatacommunities.org/id/metropolitan-district-council/walsall,WC62 -42,30/11/2015,Social Care & Inclusion,A F BLAKEMORE & SON LTD,18/11/2015,671.09,61016-FOOD AND BEVERAGES-PROVISIONS,Supplies & Services,Provisions,Revenue
Walsall Council,http://opendatacommunities.org/id/metropolitan-district-council/walsall,WC62 -43,30/11/2015,Economy & Environment,A F BLAKEMORE & SON LTD,13/11/2015,820.04,61008-CONFECTIONERY/SNACKS-PROVISIONS,Supplies & Services,Provisions,Revenue
Walsall Council,http://opendatacommunities.org/id/metropolitan-district-council/walsall,WC62 -44,30/11/2015,Childrens,REDACTED,23/11/2015,349.76,74006-HOLIDAY/CHRISTMAS ALLOWANCE-FOSTER CARERS-OTH AGENCY PROVISION,Third Party Payments,Private Contractor Fees,Revenue
Walsall Council,http://opendatacommunities.org/id/metropolitan-district-council/walsall,WC62 -45,30/11/2015,Economy & Environment,A KARIMS CHUCKERY PHARMACY,09/11/2015,300,71007-CONTRIBUTION TO PCT,Third Party Payments,Joint Arrangements,Revenue
Walsall Council,http://opendatacommunities.org/id/metropolitan-district-council/walsall,WC62 -46,30/11/2015,Childrens,REDACTED,09/11/2015,906.76,62515-MISCELLANEOUS SUPPLIES,Supplies & Services,Other Supplies & Services,Revenue
Walsall Council,http://opendatacommunities.org/id/metropolitan-district-council/walsall,WC62 -47,30/11/2015,Childrens,REDACTED,09/11/2015,985.76,74006-HOLIDAY/CHRISTMAS ALLOWANCE-FOSTER CARERS-OTH AGENCY PROVISION,Third Party Payments,Private Contractor Fees,Revenue
Walsall Council,http://opendatacommunities.org/id/metropolitan-district-council/walsall,WC62 -48,30/11/2015,Childrens,REDACTED,09/11/2015,345.24,76422-DIRECT PAYMENTS TO SOCIAL SERVICES CLIENTS,Transfer Payments,Transfer Payments,Revenue
Walsall Council,http://opendatacommunities.org/id/metropolitan-district-council/walsall,WC62 -49,30/11/2015,Childrens,REDACTED,23/11/2015,813.65,74006-HOLIDAY/CHRISTMAS ALLOWANCE-FOSTER CARERS-OTH AGENCY PROVISION,Third Party Payments,Private Contractor Fees,Revenue
Walsall Council,http://opendatacommunities.org/id/metropolitan-district-council/walsall,WC62 -50,30/11/2015,Social Care & Inclusion,ABBEY HEALTHCARE HOMES LTD,17/11/2015,"1,699.28",73373-RESIDENTIAL & NURSING CARE PLACEMENTS,Third Party Payments,Private Contractor Fees,Revenue
Walsall Council,http://opendatacommunities.org/id/metropolitan-district-council/walsall,WC62 -51,30/11/2015,Social Care & Inclusion,ABBEY HEALTHCARE HOMES LTD,17/11/2015,"2,294.08",73373-RESIDENTIAL & NURSING CARE PLACEMENTS,Third Party Payments,Private Contractor Fees,Revenue
Walsall Council,http://opendatacommunities.org/id/metropolitan-district-council/walsall,WC62 -52,30/11/2015,Childrens,ABC CARE LTD,06/11/2015,"8,784.28",74036-EXTERNAL RESIDENTIAL CARE-OTH AGENCY PROVISION,Third Party Payments,Private Contractor Fees,Revenue
Walsall Council,http://opendatacommunities.org/id/metropolitan-district-council/walsall,WC62 -53,30/11/2015,Childrens,ABC CARE LTD,06/11/2015,"12,377.86",74036-EXTERNAL RESIDENTIAL CARE-OTH AGENCY PROVISION,Third Party Payments,Private Contractor Fees,Revenue
Walsall Council,http://opendatacommunities.org/id/metropolitan-district-council/walsall,WC62 -54,30/11/2015,Childrens,ABC CHILDRENS HOME,04/11/2015,"12,857.14",74036-EXTERNAL RESIDENTIAL CARE-OTH AGENCY PROVISION,Third Party Payments,Private Contractor Fees,Revenue
Walsall Council,http://opendatacommunities.org/id/metropolitan-district-council/walsall,WC62 -55,30/11/2015,Childrens,ABC CHILDRENS HOME,05/11/2015,"13,285.71",74036-EXTERNAL RESIDENTIAL CARE-OTH AGENCY PROVISION,Third Party Payments,Private Contractor Fees,Revenue
Walsall Council,http://opendatacommunities.org/id/metropolitan-district-council/walsall,WC62 -56,30/11/2015,Childrens,ABC FOSTERING,23/11/2015,"2,980.34",74037-INDEPENDENT FOSTER CARE-OTH AGENCY PROVISION,Third Party Payments,Private Contractor Fees,Revenue
Walsall Council,http://opendatacommunities.org/id/metropolitan-district-council/walsall,WC62 -57,30/11/2015,Childrens,ABC FOSTERING,23/11/2015,"3,137.20",74037-INDEPENDENT FOSTER CARE-OTH AGENCY PROVISION,Third Party Payments,Private Contractor Fees,Revenue
Walsall Council,http://opendatacommunities.org/id/metropolitan-district-council/walsall,WC62 -58,30/11/2015,Childrens,ABC FOSTERING,23/11/2015,"3,410.00",74037-INDEPENDENT FOSTER CARE-OTH AGENCY PROVISION,Third Party Payments,Private Contractor Fees,Revenue
Walsall Council,http://opendatacommunities.org/id/metropolitan-district-council/walsall,WC62 -59,30/11/2015,Childrens,ABC TEACHERS LIMITED,09/11/2015,461.98,34305-AGENCY STAFF-EMPLOYEES,Employees,Agency,Revenue
Walsall Council,http://opendatacommunities.org/id/metropolitan-district-council/walsall,WC62 -60,30/11/2015,Childrens,ABC TEACHERS LIMITED,02/11/2015,692.97,34305-AGENCY STAFF-EMPLOYEES,Employees,Agency,Revenue
Walsall Council,http://opendatacommunities.org/id/metropolitan-district-council/walsall,WC62 -61,30/11/2015,Childrens,ABC TEACHERS LIMITED,04/11/2015,847.96,34305-AGENCY STAFF-EMPLOYEES,Employees,Agency,Revenue
Walsall Council,http://opendatacommunities.org/id/metropolitan-district-council/walsall,WC62 -62,30/11/2015,Social Care & Inclusion,REDACTED,09/11/2015,"2,357.99",76422-DIRECT PAYMENTS TO SOCIAL SERVICES CLIENTS,Transfer Payments,Transfer Payments,Revenue
Walsall Council,http://opendatacommunities.org/id/metropolitan-district-council/walsall,WC62 -63,30/11/2015,Change and Governance,ABLE ACCESS UK,06/11/2015,"4,276.82",01045-PRIVATE GRANTS,Capital,Capital,Capital
Walsall Council,http://opendatacommunities.org/id/metropolitan-district-council/walsall,WC62 -64,30/11/2015,Childrens,ABLEWELL CARS,02/11/2015,330,52000-WITH DRIVER-HIRE OF VEHICLES,Transport,Hire,Revenue
Walsall Council,http://opendatacommunities.org/id/metropolitan-district-council/walsall,WC62 -65,30/11/2015,Childrens,ABLEWELL CARS,06/11/2015,"1,060.00",52000-WITH DRIVER-HIRE OF VEHICLES,Transport,Hire,Revenue
Walsall Council,http://opendatacommunities.org/id/metropolitan-district-council/walsall,WC62 -66,30/11/2015,Social Care & Inclusion,ACCORD HOUSING ASSOCIATION LTD#135,11/11/2015,-862.84,73372-DOMICILIARY CARE,Third Party Payments,Private Contractor Fees,Revenue
Walsall Council,http://opendatacommunities.org/id/metropolitan-district-council/walsall,WC62 -67,30/11/2015,Social Care & Inclusion,ACCORD HOUSING ASSOCIATION LTD#135,11/11/2015,-792,73374-SUPPORTED & OTHER ACCOMMODATION,Third Party Payments,Private Contractor Fees,Revenue
Walsall Council,http://opendatacommunities.org/id/metropolitan-district-council/walsall,WC62 -68,30/11/2015,Social Care & Inclusion,ACCORD HOUSING ASSOCIATION LTD#135,11/11/2015,-579.6,73372-DOMICILIARY CARE,Third Party Payments,Private Contractor Fees,Revenue
Walsall Council,http://opendatacommunities.org/id/metropolitan-district-council/walsall,WC62 -69,30/11/2015,Social Care & Inclusion,ACCORD HOUSING ASSOCIATION LTD#135,23/11/2015,-469.2,73372-DOMICILIARY CARE,Third Party Payments,Private Contractor Fees,Revenue
Walsall Council,http://opendatacommunities.org/id/metropolitan-district-council/walsall,WC62 -70,30/11/2015,Social Care & Inclusion,ACCORD HOUSING ASSOCIATION LTD#135,11/11/2015,-387.88,73372-DOMICILIARY CARE,Third Party Payments,Private Contractor Fees,Revenue
Walsall Council,http://opendatacommunities.org/id/metropolitan-district-council/walsall,WC62 -71,30/11/2015,Social Care & Inclusion,ACCORD HOUSING ASSOCIATION LTD#135,11/11/2015,-386.4,73372-DOMICILIARY CARE,Third Party Payments,Private Contractor Fees,Revenue
Walsall Council,http://opendatacommunities.org/id/metropolitan-district-council/walsall,WC62 -72,30/11/2015,Social Care & Inclusion,ACCORD HOUSING ASSOCIATION LTD#135,11/11/2015,-328.54,73374-SUPPORTED & OTHER ACCOMMODATION,Third Party Payments,Private Contractor Fees,Revenue
Walsall Council,http://opendatacommunities.org/id/metropolitan-district-council/walsall,WC62 -73,30/11/2015,Social Care & Inclusion,ACCORD HOUSING ASSOCIATION LTD#135,11/11/2015,-270.94,73374-SUPPORTED & OTHER ACCOMMODATION,Third Party Payments,Private Contractor Fees,Revenue
Walsall Council,http://opendatacommunities.org/id/metropolitan-district-council/walsall,WC62 -74,30/11/2015,Social Care & Inclusion,ACCORD HOUSING ASSOCIATION LTD#135,13/11/2015,-251.16,73372-DOMICILIARY CARE,Third Party Payments,Private Contractor Fees,Revenue
Walsall Council,http://opendatacommunities.org/id/metropolitan-district-council/walsall,WC62 -75,30/11/2015,Social Care & Inclusion,ACCORD HOUSING ASSOCIATION LTD#135,04/11/2015,283.36,73372-DOMICILIARY CARE,Third Party Payments,Private Contractor Fees,Revenue
Walsall Council,http://opendatacommunities.org/id/metropolitan-district-council/walsall,WC62 -76,30/11/2015,Social Care & Inclusion,ACCORD HOUSING ASSOCIATION LTD#135,02/11/2015,297.72,73372-DOMICILIARY CARE,Third Party Payments,Private Contractor Fees,Revenue
Walsall Council,http://opendatacommunities.org/id/metropolitan-district-council/walsall,WC62 -77,30/11/2015,Social Care & Inclusion,ACCORD HOUSING ASSOCIATION LTD#135,02/11/2015,337.7,73374-SUPPORTED & OTHER ACCOMMODATION,Third Party Payments,Private Contractor Fees,Revenue
Walsall Council,http://opendatacommunities.org/id/metropolitan-district-council/walsall,WC62 -78,30/11/2015,Social Care & Inclusion,ACCORD HOUSING ASSOCIATION LTD#135,02/11/2015,348.82,73372-DOMICILIARY CARE,Third Party Payments,Private Contractor Fees,Revenue
Walsall Council,http://opendatacommunities.org/id/metropolitan-district-council/walsall,WC62 -79,30/11/2015,Social Care & Inclusion,ACCORD HOUSING ASSOCIATION LTD#135,02/11/2015,360.64,73372-DOMICILIARY CARE,Third Party Payments,Private Contractor Fees,Revenue
Walsall Council,http://opendatacommunities.org/id/metropolitan-district-council/walsall,WC62 -80,30/11/2015,Social Care & Inclusion,ACCORD HOUSING ASSOCIATION LTD#135,02/11/2015,364,73372-DOMICILIARY CARE,Third Party Payments,Private Contractor Fees,Revenue
Walsall Council,http://opendatacommunities.org/id/metropolitan-district-council/walsall,WC62 -81,30/11/2015,Social Care & Inclusion,ACCORD HOUSING ASSOCIATION LTD#135,02/11/2015,405.72,73374-SUPPORTED & OTHER ACCOMMODATION,Third Party Payments,Private Contractor Fees,Revenue
Walsall Council,http://opendatacommunities.org/id/metropolitan-district-council/walsall,WC62 -82,30/11/2015,Social Care & Inclusion,ACCORD HOUSING ASSOCIATION LTD#135,02/11/2015,453.6,73372-DOMICILIARY CARE,Third Party Payments,Private Contractor Fees,Revenue
Walsall Council,http://opendatacommunities.org/id/metropolitan-district-council/walsall,WC62 -83,30/11/2015,Social Care & Inclusion,ACCORD HOUSING ASSOCIATION LTD#135,02/11/2015,553.72,73372-DOMICILIARY CARE,Third Party Payments,Private Contractor Fees,Revenue
Walsall Council,http://opendatacommunities.org/id/metropolitan-district-council/walsall,WC62 -84,30/11/2015,Social Care & Inclusion,ACCORD HOUSING ASSOCIATION LTD#135,02/11/2015,566.6,73372-DOMICILIARY CARE,Third Party Payments,Private Contractor Fees,Revenue
Walsall Council,http://opendatacommunities.org/id/metropolitan-district-council/walsall,WC62 -85,30/11/2015,Social Care & Inclusion,ACCORD HOUSING ASSOCIATION LTD#135,02/11/2015,566.6,73372-DOMICILIARY CARE,Third Party Payments,Private Contractor Fees,Revenue
Walsall Council,http://opendatacommunities.org/id/metropolitan-district-council/walsall,WC62 -86,30/11/2015,Social Care & Inclusion,ACCORD HOUSING ASSOCIATION LTD#135,02/11/2015,592.36,73372-DOMICILIARY CARE,Third Party Payments,Private Contractor Fees,Revenue
Walsall Council,http://opendatacommunities.org/id/metropolitan-district-council/walsall,WC62 -87,30/11/2015,Social Care & Inclusion,ACCORD HOUSING ASSOCIATION LTD#135,02/11/2015,598.9,73372-DOMICILIARY CARE,Third Party Payments,Private Contractor Fees,Revenue
Walsall Council,http://opendatacommunities.org/id/metropolitan-district-council/walsall,WC62 -88,30/11/2015,Social Care & Inclusion,ACCORD HOUSING ASSOCIATION LTD#135,09/11/2015,728,73372-DOMICILIARY CARE,Third Party Payments,Private Contractor Fees,Revenue
Walsall Council,http://opendatacommunities.org/id/metropolitan-district-council/walsall,WC62 -89,30/11/2015,Social Care & Inclusion,ACCORD HOUSING ASSOCIATION LTD#135,09/11/2015,728,73372-DOMICILIARY CARE,Third Party Payments,Private Contractor Fees,Revenue
Walsall Council,http://opendatacommunities.org/id/metropolitan-district-council/walsall,WC62 -90,30/11/2015,Social Care & Inclusion,ACCORD HOUSING ASSOCIATION LTD#135,17/11/2015,728,73372-DOMICILIARY CARE,Third Party Payments,Private Contractor Fees,Revenue
Walsall Council,http://opendatacommunities.org/id/metropolitan-district-council/walsall,WC62 -91,30/11/2015,Social Care & Inclusion,ACCORD HOUSING ASSOCIATION LTD#135,02/11/2015,728.68,73372-DOMICILIARY CARE,Third Party Payments,Private Contractor Fees,Revenue
Walsall Council,http://opendatacommunities.org/id/metropolitan-district-council/walsall,WC62 -92,30/11/2015,Social Care & Inclusion,ACCORD HOUSING ASSOCIATION LTD#135,09/11/2015,811.44,73374-SUPPORTED & OTHER ACCOMMODATION,Third Party Payments,Private Contractor Fees,Revenue
Walsall Council,http://opendatacommunities.org/id/metropolitan-district-council/walsall,WC62 -93,30/11/2015,Social Care & Inclusion,ACCORD HOUSING ASSOCIATION LTD#135,02/11/2015,"1,204.16",73372-DOMICILIARY CARE,Third Party Payments,Private Contractor Fees,Revenue
Walsall Council,http://opendatacommunities.org/id/metropolitan-district-council/walsall,WC62 -94,30/11/2015,Social Care & Inclusion,ACCORD HOUSING ASSOCIATION LTD#135,10/11/2015,"4,744.90",73373-RESIDENTIAL & NURSING CARE PLACEMENTS,Third Party Payments,Private Contractor Fees,Revenue
Walsall Council,http://opendatacommunities.org/id/metropolitan-district-council/walsall,WC62 -95,30/11/2015,Social Care & Inclusion,ACCORD HOUSING ASSOCIATION LTD#135,10/11/2015,"4,744.90",73373-RESIDENTIAL & NURSING CARE PLACEMENTS,Third Party Payments,Private Contractor Fees,Revenue
Walsall Council,http://opendatacommunities.org/id/metropolitan-district-council/walsall,WC62 -96,30/11/2015,Social Care & Inclusion,ACCORD HOUSING ASSOCIATION LTD#135,10/11/2015,"4,744.90",73373-RESIDENTIAL & NURSING CARE PLACEMENTS,Third Party Payments,Private Contractor Fees,Revenue
Walsall Council,http://opendatacommunities.org/id/metropolitan-district-council/walsall,WC62 -97,30/11/2015,Social Care & Inclusion,ACCORD HOUSING ASSOCIATION LTD#135,10/11/2015,"4,744.90",73373-RESIDENTIAL & NURSING CARE PLACEMENTS,Third Party Payments,Private Contractor Fees,Revenue
Walsall Council,http://opendatacommunities.org/id/metropolitan-district-council/walsall,WC62 -98,30/11/2015,Social Care & Inclusion,ACCORD HOUSING ASSOCIATION LTD#135,10/11/2015,"6,622.35",73373-RESIDENTIAL & NURSING CARE PLACEMENTS,Third Party Payments,Private Contractor Fees,Revenue
Walsall Council,http://opendatacommunities.org/id/metropolitan-district-council/walsall,WC62 -99,30/11/2015,Social Care & Inclusion,ACCORD HOUSING ASSOCIATION LTD#135,10/11/2015,"6,622.35",73373-RESIDENTIAL & NURSING CARE PLACEMENTS,Third Party Payments,Private Contractor Fees,Revenue
Walsall Council,http://opendatacommunities.org/id/metropolitan-district-council/walsall,WC62 -100,30/11/2015,Social Care & Inclusion,ACCORD HOUSING ASSOCIATION LTD#135,10/11/2015,"6,622.35",73373-RESIDENTIAL & NURSING CARE PLACEMENTS,Third Party Payments,Private Contractor Fees,Revenue
Walsall Council,http://opendatacommunities.org/id/metropolitan-district-council/walsall,WC62 -101,30/11/2015,Social Care & Inclusion,ACCORD HOUSING ASSOCIATION LTD#135,11/11/2015,"9,572.83",73372-DOMICILIARY CARE,Third Party Payments,Private Contractor Fees,Revenue
Walsall Council,http://opendatacommunities.org/id/metropolitan-district-council/walsall,WC62 -102,30/11/2015,Social Care & Inclusion,ACCORD HOUSING ASSOCIATION LTD#135,11/11/2015,"26,777.52",73372-DOMICILIARY CARE,Third Party Payments,Private Contractor Fees,Revenue
Walsall Council,http://opendatacommunities.org/id/metropolitan-district-council/walsall,WC62 -103,30/11/2015,Economy & Environment,ACCORD HOUSING ASSOCIATION LTD#135,11/11/2015,"68,846.01",63000-PROFESSIONAL FEES AND SERVICES,Supplies & Services,Services,Revenue
Walsall Council,http://opendatacommunities.org/id/metropolitan-district-council/walsall,WC62 -104,30/11/2015,Social Care & Inclusion,ACE CARE AGENCY,20/11/2015,647.52,73372-DOMICILIARY CARE,Third Party Payments,Private Contractor Fees,Revenue
Walsall Council,http://opendatacommunities.org/id/metropolitan-district-council/walsall,WC62 -105,30/11/2015,Social Care & Inclusion,ACE CARE AGENCY,20/11/2015,"1,019.76",73372-DOMICILIARY CARE,Third Party Payments,Private Contractor Fees,Revenue
Walsall Council,http://opendatacommunities.org/id/metropolitan-district-council/walsall,WC62 -106,30/11/2015,Social Care & Inclusion,ACEPAY LTD (COTTAGE NUR HOME),17/11/2015,"1,975.60",73373-RESIDENTIAL & NURSING CARE PLACEMENTS,Third Party Payments,Private Contractor Fees,Revenue
Walsall Council,http://opendatacommunities.org/id/metropolitan-district-council/walsall,WC62 -107,30/11/2015,Social Care & Inclusion,ACEPAY LTD (COTTAGE NUR HOME),17/11/2015,"1,975.60",73373-RESIDENTIAL & NURSING CARE PLACEMENTS,Third Party Payments,Private Contractor Fees,Revenue
Walsall Council,http://opendatacommunities.org/id/metropolitan-district-council/walsall,WC62 -108,30/11/2015,Social Care & Inclusion,ACEPAY LTD (COTTAGE NUR HOME),17/11/2015,"1,975.60",73373-RESIDENTIAL & NURSING CARE PLACEMENTS,Third Party Payments,Private Contractor Fees,Revenue
Walsall Council,http://opendatacommunities.org/id/metropolitan-district-council/walsall,WC62 -109,30/11/2015,Social Care & Inclusion,ACEPAY LTD (COTTAGE NUR HOME),17/11/2015,"2,018.20",73373-RESIDENTIAL & NURSING CARE PLACEMENTS,Third Party Payments,Private Contractor Fees,Revenue
Walsall Council,http://opendatacommunities.org/id/metropolitan-district-council/walsall,WC62 -110,30/11/2015,Social Care & Inclusion,ACEPAY LTD (COTTAGE NUR HOME),17/11/2015,"2,018.20",73373-RESIDENTIAL & NURSING CARE PLACEMENTS,Third Party Payments,Private Contractor Fees,Revenue
Walsall Council,http://opendatacommunities.org/id/metropolitan-district-council/walsall,WC62 -111,30/11/2015,Childrens,ACORN FOSTERING SERVICES LTD,11/11/2015,"3,428.83",74037-INDEPENDENT FOSTER CARE-OTH AGENCY PROVISION,Third Party Payments,Private Contractor Fees,Revenue
Walsall Council,http://opendatacommunities.org/id/metropolitan-district-council/walsall,WC62 -112,30/11/2015,Social Care & Inclusion,ACORN REST HOME,25/11/2015,"1,493.24",73373-RESIDENTIAL & NURSING CARE PLACEMENTS,Third Party Payments,Private Contractor Fees,Revenue
Walsall Council,http://opendatacommunities.org/id/metropolitan-district-council/walsall,WC62 -113,30/11/2015,Childrens,ACORNS CHILDRENS HOSPICE TRUST,02/11/2015,750,63000-PROFESSIONAL FEES AND SERVICES,Supplies & Services,Services,Revenue
Walsall Council,http://opendatacommunities.org/id/metropolitan-district-council/walsall,WC62 -114,30/11/2015,Childrens,ACTION FOR CHILDREN,23/11/2015,"3,405.34",74037-INDEPENDENT FOSTER CARE-OTH AGENCY PROVISION,Third Party Payments,Private Contractor Fees,Revenue
Walsall Council,http://opendatacommunities.org/id/metropolitan-district-council/walsall,WC62 -115,30/11/2015,Childrens,ACTION FOR CHILDREN,11/11/2015,"3,518.85",74037-INDEPENDENT FOSTER CARE-OTH AGENCY PROVISION,Third Party Payments,Private Contractor Fees,Revenue
Walsall Council,http://opendatacommunities.org/id/metropolitan-district-council/walsall,WC62 -116,30/11/2015,Economy & Environment,REDACTED,06/11/2015,453,63000-PROFESSIONAL FEES AND SERVICES,Supplies & Services,Services,Revenue
Walsall Council,http://opendatacommunities.org/id/metropolitan-district-council/walsall,WC62 -117,30/11/2015,Economy & Environment,REDACTED,06/11/2015,"1,080.00",63000-PROFESSIONAL FEES AND SERVICES,Supplies & Services,Services,Revenue
Walsall Council,http://opendatacommunities.org/id/metropolitan-district-council/walsall,WC62 -118,30/11/2015,Economy & Environment,REDACTED,06/11/2015,"1,162.00",63000-PROFESSIONAL FEES AND SERVICES,Supplies & Services,Services,Revenue
Walsall Council,http://opendatacommunities.org/id/metropolitan-district-council/walsall,WC62 -119,30/11/2015,Childrens,REDACTED,09/11/2015,487.6,76422-DIRECT PAYMENTS TO SOCIAL SERVICES CLIENTS,Transfer Payments,Transfer Payments,Revenue
Walsall Council,http://opendatacommunities.org/id/metropolitan-district-council/walsall,WC62 -120,30/11/2015,Social Care & Inclusion,REDACTED,09/11/2015,417.48,76422-DIRECT PAYMENTS TO SOCIAL SERVICES CLIENTS,Transfer Payments,Transfer Payments,Revenue
Walsall Council,http://opendatacommunities.org/id/metropolitan-district-council/walsall,WC62 -121,30/11/2015,Social Care & Inclusion,REDACTED,09/11/2015,860,76422-DIRECT PAYMENTS TO SOCIAL SERVICES CLIENTS,Transfer Payments,Transfer Payments,Revenue
Walsall Council,http://opendatacommunities.org/id/metropolitan-district-council/walsall,WC62 -122,30/11/2015,Childrens,ADMIRAL SELF STORAGE LTD,09/11/2015,228.78,63000-PROFESSIONAL FEES AND SERVICES,Supplies & Services,Services,Revenue
Walsall Council,http://opendatacommunities.org/id/metropolitan-district-council/walsall,WC62 -123,30/11/2015,Change and Governance,ADMIRAL SELF STORAGE LTD,25/11/2015,419.32,63000-PROFESSIONAL FEES AND SERVICES,Supplies & Services,Services,Revenue
Walsall Council,http://opendatacommunities.org/id/metropolitan-district-council/walsall,WC62 -124,30/11/2015,Childrens,ADMIRAL SELF STORAGE LTD,01/11/2015,428,63000-PROFESSIONAL FEES AND SERVICES,Supplies & Services,Services,Revenue
Walsall Council,http://opendatacommunities.org/id/metropolitan-district-council/walsall,WC62 -125,30/11/2015,Economy & Environment,ADMIRAL SELF STORAGE LTD,17/11/2015,"1,877.14",63000-PROFESSIONAL FEES AND SERVICES,Supplies & Services,Services,Revenue
Walsall Council,http://opendatacommunities.org/id/metropolitan-district-council/walsall,WC62 -126,30/11/2015,Childrens,REDACTED,23/11/2015,728.32,74006-HOLIDAY/CHRISTMAS ALLOWANCE-FOSTER CARERS-OTH AGENCY PROVISION,Third Party Payments,Private Contractor Fees,Revenue
Walsall Council,http://opendatacommunities.org/id/metropolitan-district-council/walsall,WC62 -127,30/11/2015,Economy & Environment,ADS ELECTRICAL & HIGHWAY SERVICES LTD,18/11/2015,500,63000-PROFESSIONAL FEES AND SERVICES,Supplies & Services,Services,Revenue
Walsall Council,http://opendatacommunities.org/id/metropolitan-district-council/walsall,WC62 -128,30/11/2015,Economy & Environment,ADS ELECTRICAL & HIGHWAY SERVICES LTD,19/11/2015,500,63000-PROFESSIONAL FEES AND SERVICES,Supplies & Services,Services,Revenue
Walsall Council,http://opendatacommunities.org/id/metropolitan-district-council/walsall,WC62 -129,30/11/2015,Social Care & Inclusion,ADVANCE HEALTH CARE (UK) LTD,11/11/2015,471.25,34305-AGENCY STAFF-EMPLOYEES,Employees,Agency,Revenue
Walsall Council,http://opendatacommunities.org/id/metropolitan-district-council/walsall,WC62 -130,30/11/2015,Social Care & Inclusion,ADVANCE HEALTH CARE (UK) LTD,11/11/2015,"44,199.73",73372-DOMICILIARY CARE,Third Party Payments,Private Contractor Fees,Revenue
Walsall Council,http://opendatacommunities.org/id/metropolitan-district-council/walsall,WC62 -131,30/11/2015,Economy & Environment,AEBI SCHMIDT UK LIMITED,16/11/2015,278.02,60500-GENERAL MATERIALS,Supplies & Services,"Equip,Furniture & Materials",Revenue
Walsall Council,http://opendatacommunities.org/id/metropolitan-district-council/walsall,WC62 -132,30/11/2015,Economy & Environment,AEBI SCHMIDT UK LIMITED,26/11/2015,505.8,60500-GENERAL MATERIALS,Supplies & Services,"Equip,Furniture & Materials",Revenue
Walsall Council,http://opendatacommunities.org/id/metropolitan-district-council/walsall,WC62 -133,30/11/2015,Economy & Environment,AECOM LIMITED,02/11/2015,"1,377.78",01001-OTHER CONSULTANTS FEES,Capital,Capital,Capital
Walsall Council,http://opendatacommunities.org/id/metropolitan-district-council/walsall,WC62 -134,30/11/2015,Childrens,AGE UK TRAINING,10/11/2015,"1,728.00",65500-GRANTS TO ASSOCIATIONS,Third Party Payments,Grants to Other Orgs,Revenue
Walsall Council,http://opendatacommunities.org/id/metropolitan-district-council/walsall,WC62 -135,30/11/2015,Childrens,AGE UK TRAINING,10/11/2015,"2,376.00",65500-GRANTS TO ASSOCIATIONS,Third Party Payments,Grants to Other Orgs,Revenue
Walsall Council,http://opendatacommunities.org/id/metropolitan-district-council/walsall,WC62 -136,30/11/2015,Economy & Environment,AGE UK TRAINING,27/11/2015,"3,375.00",66500-GRANTS TO OTHER ORGS,Third Party Payments,Grants to Other Orgs,Revenue
Walsall Council,http://opendatacommunities.org/id/metropolitan-district-council/walsall,WC62 -137,30/11/2015,Childrens,AGE UK TRAINING,10/11/2015,"3,960.00",65500-GRANTS TO ASSOCIATIONS,Third Party Payments,Grants to Other Orgs,Revenue
Walsall Council,http://opendatacommunities.org/id/metropolitan-district-council/walsall,WC62 -138,30/11/2015,Social Care & Inclusion,AGE UK WALSALL,19/11/2015,"7,020.00",76423-DIRECT PAYMENTS SUPPORT,Transfer Payments,Transfer Payments,Revenue
Walsall Council,http://opendatacommunities.org/id/metropolitan-district-council/walsall,WC62 -139,30/11/2015,Social Care & Inclusion,AGE UK WALSALL,03/11/2015,"7,240.00",76423-DIRECT PAYMENTS SUPPORT,Transfer Payments,Transfer Payments,Revenue
Walsall Council,http://opendatacommunities.org/id/metropolitan-district-council/walsall,WC62 -140,30/11/2015,Economy & Environment,AGE UK WALSALL,26/11/2015,"7,500.00",63000-PROFESSIONAL FEES AND SERVICES,Supplies & Services,Services,Revenue
Walsall Council,http://opendatacommunities.org/id/metropolitan-district-council/walsall,WC62 -141,30/11/2015,Social Care & Inclusion,AGE UK WALSALL,06/11/2015,"8,555.00",76423-DIRECT PAYMENTS SUPPORT,Transfer Payments,Transfer Payments,Revenue
Walsall Council,http://opendatacommunities.org/id/metropolitan-district-council/walsall,WC62 -142,30/11/2015,Economy & Environment,AGE UK WALSALL,09/11/2015,"18,750.00",63000-PROFESSIONAL FEES AND SERVICES,Supplies & Services,Services,Revenue
Walsall Council,http://opendatacommunities.org/id/metropolitan-district-council/walsall,WC62 -143,30/11/2015,Social Care & Inclusion,REDACTED,09/11/2015,"1,882.00",76422-DIRECT PAYMENTS TO SOCIAL SERVICES CLIENTS,Transfer Payments,Transfer Payments,Revenue
Walsall Council,http://opendatacommunities.org/id/metropolitan-district-council/walsall,WC62 -144,30/11/2015,Economy & Environment,AIR MONITORS LIMITED,11/11/2015,"1,000.00",60008-MAINTENANCE-FURNITURE & EQUIPMENT,Supplies & Services,"Equip,Furniture & Materials",Revenue
Walsall Council,http://opendatacommunities.org/id/metropolitan-district-council/walsall,WC62 -145,30/11/2015,Social Care & Inclusion,REDACTED,09/11/2015,936.52,76422-DIRECT PAYMENTS TO SOCIAL SERVICES CLIENTS,Transfer Payments,Transfer Payments,Revenue
Walsall Council,http://opendatacommunities.org/id/metropolitan-district-council/walsall,WC62 -146,30/11/2015,Childrens,AJK TRAVEL,18/11/2015,938.7,52000-WITH DRIVER-HIRE OF VEHICLES,Transport,Hire,Revenue
Walsall Council,http://opendatacommunities.org/id/metropolitan-district-council/walsall,WC62 -147,30/11/2015,Social Care & Inclusion,ALAN CRITCHLEY ASSOCIATES,19/11/2015,"1,200.00",32000-MISC FEES AND EXPENSES,Employees,Other Staff Costs,Revenue
Walsall Council,http://opendatacommunities.org/id/metropolitan-district-council/walsall,WC62 -148,30/11/2015,Social Care & Inclusion,ALAN CRITCHLEY ASSOCIATES,06/11/2015,"1,800.00",32000-MISC FEES AND EXPENSES,Employees,Other Staff Costs,Revenue
Walsall Council,http://opendatacommunities.org/id/metropolitan-district-council/walsall,WC62 -149,30/11/2015,Childrens,ALAN CRITCHLEY ASSOCIATES,19/11/2015,"1,800.00",63000-PROFESSIONAL FEES AND SERVICES,Supplies & Services,Services,Revenue
Walsall Council,http://opendatacommunities.org/id/metropolitan-district-council/walsall,WC62 -150,30/11/2015,Childrens,ALAN CRITCHLEY ASSOCIATES,19/11/2015,"2,400.00",63102-CONSULTANTS FEES - CORPORATE,Supplies & Services,Services,Revenue
Walsall Council,http://opendatacommunities.org/id/metropolitan-district-council/walsall,WC62 -151,30/11/2015,Economy & Environment,ALBEMARLE,06/11/2015,500,63000-PROFESSIONAL FEES AND SERVICES,Supplies & Services,Services,Revenue
Walsall Council,http://opendatacommunities.org/id/metropolitan-district-council/walsall,WC62 -152,30/11/2015,Social Care & Inclusion,REDACTED,09/11/2015,667.8,76422-DIRECT PAYMENTS TO SOCIAL SERVICES CLIENTS,Transfer Payments,Transfer Payments,Revenue
Walsall Council,http://opendatacommunities.org/id/metropolitan-district-council/walsall,WC62 -153,30/11/2015,Childrens,ALBERT PRITCHARD INFANT AND WOOD GREEN JUNIOR FEDERATED SCHOOLS,04/11/2015,690,77300-ISB-FORMULA ALLOCATION,Transfer Payments,Transfer Payments,Revenue
Walsall Council,http://opendatacommunities.org/id/metropolitan-district-council/walsall,WC62 -154,30/11/2015,Social Care & Inclusion,ALDERGROVE MANOR CARE HOME,10/11/2015,"1,839.68",73373-RESIDENTIAL & NURSING CARE PLACEMENTS,Third Party Payments,Private Contractor Fees,Revenue
Walsall Council,http://opendatacommunities.org/id/metropolitan-district-council/walsall,WC62 -155,30/11/2015,Childrens,ALDRIDGE SCHOOL A SCIENCE COLLEGE.,04/11/2015,730,77300-ISB-FORMULA ALLOCATION,Transfer Payments,Transfer Payments,Revenue
Walsall Council,http://opendatacommunities.org/id/metropolitan-district-council/walsall,WC62 -156,30/11/2015,Childrens,ALDRIDGE SCHOOL A SCIENCE COLLEGE.,18/11/2015,"10,000.00",63000-PROFESSIONAL FEES AND SERVICES,Supplies & Services,Services,Revenue
Walsall Council,http://opendatacommunities.org/id/metropolitan-district-council/walsall,WC62 -157,30/11/2015,Economy & Environment,ALERE LTD,09/11/2015,426,63000-PROFESSIONAL FEES AND SERVICES,Supplies & Services,Services,Revenue
Walsall Council,http://opendatacommunities.org/id/metropolitan-district-council/walsall,WC62 -158,30/11/2015,Social Care & Inclusion,REDACTED,09/11/2015,"1,204.00",76422-DIRECT PAYMENTS TO SOCIAL SERVICES CLIENTS,Transfer Payments,Transfer Payments,Revenue
Walsall Council,http://opendatacommunities.org/id/metropolitan-district-council/walsall,WC62 -159,30/11/2015,Social Care & Inclusion,ALEXANDRA HOUSE CARE SERVICES LTD T/A STONEBRIDGE NURSING HOME,25/11/2015,"7,117.44",73373-RESIDENTIAL & NURSING CARE PLACEMENTS,Third Party Payments,Private Contractor Fees,Revenue
Walsall Council,http://opendatacommunities.org/id/metropolitan-district-council/walsall,WC62 -160,30/11/2015,Childrens,REDACTED,09/11/2015,582.66,76422-DIRECT PAYMENTS TO SOCIAL SERVICES CLIENTS,Transfer Payments,Transfer Payments,Revenue
Walsall Council,http://opendatacommunities.org/id/metropolitan-district-council/walsall,WC62 -161,30/11/2015,Economy & Environment,ALFRED STREET ALLOTMENT ASSOCIATION,04/11/2015,535,66500-GRANTS TO OTHER ORGS,Third Party Payments,Grants to Other Orgs,Revenue
Walsall Council,http://opendatacommunities.org/id/metropolitan-district-council/walsall,WC62 -162,30/11/2015,Social Care & Inclusion,REDACTED,09/11/2015,854,76422-DIRECT PAYMENTS TO SOCIAL SERVICES CLIENTS,Transfer Payments,Transfer Payments,Revenue
Walsall Council,http://opendatacommunities.org/id/metropolitan-district-council/walsall,WC62 -163,30/11/2015,Social Care & Inclusion,REDACTED,09/11/2015,"4,890.00",76422-DIRECT PAYMENTS TO SOCIAL SERVICES CLIENTS,Transfer Payments,Transfer Payments,Revenue
Walsall Council,http://opendatacommunities.org/id/metropolitan-district-council/walsall,WC62 -164,30/11/2015,Childrens,REDACTED,09/11/2015,985.76,74006-HOLIDAY/CHRISTMAS ALLOWANCE-FOSTER CARERS-OTH AGENCY PROVISION,Third Party Payments,Private Contractor Fees,Revenue
Walsall Council,http://opendatacommunities.org/id/metropolitan-district-council/walsall,WC62 -165,30/11/2015,Childrens,REDACTED,09/11/2015,"1,445.32",62515-MISCELLANEOUS SUPPLIES,Supplies & Services,Other Supplies & Services,Revenue
Walsall Council,http://opendatacommunities.org/id/metropolitan-district-council/walsall,WC62 -166,30/11/2015,Childrens,REDACTED,23/11/2015,552.96,74006-HOLIDAY/CHRISTMAS ALLOWANCE-FOSTER CARERS-OTH AGENCY PROVISION,Third Party Payments,Private Contractor Fees,Revenue
Walsall Council,http://opendatacommunities.org/id/metropolitan-district-council/walsall,WC62 -167,30/11/2015,Economy & Environment,ALL SAINTS CHURCH C/O MR A & MRS K H FOSTER,17/11/2015,756,63128-HIRE OF ROOM-SERVICES-FEES,Supplies & Services,Other Supplies & Services,Revenue
Walsall Council,http://opendatacommunities.org/id/metropolitan-district-council/walsall,WC62 -168,30/11/2015,Social Care & Inclusion,ALMA COURT,10/11/2015,"6,113.10",73373-RESIDENTIAL & NURSING CARE PLACEMENTS,Third Party Payments,Private Contractor Fees,Revenue
Walsall Council,http://opendatacommunities.org/id/metropolitan-district-council/walsall,WC62 -169,30/11/2015,Social Care & Inclusion,ALMA COURT,10/11/2015,"6,316.87",73373-RESIDENTIAL & NURSING CARE PLACEMENTS,Third Party Payments,Private Contractor Fees,Revenue
Walsall Council,http://opendatacommunities.org/id/metropolitan-district-council/walsall,WC62 -170,30/11/2015,Social Care & Inclusion,ALPHA HEALTH CARE LTD,17/11/2015,"1,406.56",73373-RESIDENTIAL & NURSING CARE PLACEMENTS,Third Party Payments,Private Contractor Fees,Revenue
Walsall Council,http://opendatacommunities.org/id/metropolitan-district-council/walsall,WC62 -171,30/11/2015,Social Care & Inclusion,ALPHA HEALTH CARE LTD,17/11/2015,"1,413.08",73373-RESIDENTIAL & NURSING CARE PLACEMENTS,Third Party Payments,Private Contractor Fees,Revenue
Walsall Council,http://opendatacommunities.org/id/metropolitan-district-council/walsall,WC62 -172,30/11/2015,Social Care & Inclusion,ALPHA HEALTH CARE LTD,17/11/2015,"1,493.24",73373-RESIDENTIAL & NURSING CARE PLACEMENTS,Third Party Payments,Private Contractor Fees,Revenue
Walsall Council,http://opendatacommunities.org/id/metropolitan-district-council/walsall,WC62 -173,30/11/2015,Social Care & Inclusion,ALPHA HEALTH CARE LTD,17/11/2015,"1,510.08",73373-RESIDENTIAL & NURSING CARE PLACEMENTS,Third Party Payments,Private Contractor Fees,Revenue
Walsall Council,http://opendatacommunities.org/id/metropolitan-district-council/walsall,WC62 -174,30/11/2015,Social Care & Inclusion,ALPHA HEALTH CARE LTD,17/11/2015,"1,510.08",73373-RESIDENTIAL & NURSING CARE PLACEMENTS,Third Party Payments,Private Contractor Fees,Revenue
Walsall Council,http://opendatacommunities.org/id/metropolitan-district-council/walsall,WC62 -175,30/11/2015,Social Care & Inclusion,ALPHA HEALTH CARE LTD,17/11/2015,"1,510.08",73373-RESIDENTIAL & NURSING CARE PLACEMENTS,Third Party Payments,Private Contractor Fees,Revenue
Walsall Council,http://opendatacommunities.org/id/metropolitan-district-council/walsall,WC62 -176,30/11/2015,Social Care & Inclusion,ALPHA HEALTH CARE LTD,17/11/2015,"1,527.60",73373-RESIDENTIAL & NURSING CARE PLACEMENTS,Third Party Payments,Private Contractor Fees,Revenue
Walsall Council,http://opendatacommunities.org/id/metropolitan-district-council/walsall,WC62 -177,30/11/2015,Social Care & Inclusion,ALPHA HEALTH CARE LTD,17/11/2015,"1,527.60",73373-RESIDENTIAL & NURSING CARE PLACEMENTS,Third Party Payments,Private Contractor Fees,Revenue
Walsall Council,http://opendatacommunities.org/id/metropolitan-district-council/walsall,WC62 -178,30/11/2015,Social Care & Inclusion,ALPHA HEALTH CARE LTD,17/11/2015,"1,527.60",73373-RESIDENTIAL & NURSING CARE PLACEMENTS,Third Party Payments,Private Contractor Fees,Revenue
Walsall Council,http://opendatacommunities.org/id/metropolitan-district-council/walsall,WC62 -179,30/11/2015,Social Care & Inclusion,ALPHA HEALTH CARE LTD,17/11/2015,"1,527.60",73373-RESIDENTIAL & NURSING CARE PLACEMENTS,Third Party Payments,Private Contractor Fees,Revenue
Walsall Council,http://opendatacommunities.org/id/metropolitan-district-council/walsall,WC62 -180,30/11/2015,Social Care & Inclusion,ALPHA HEALTH CARE LTD,17/11/2015,"1,527.60",73373-RESIDENTIAL & NURSING CARE PLACEMENTS,Third Party Payments,Private Contractor Fees,Revenue
Walsall Council,http://opendatacommunities.org/id/metropolitan-district-council/walsall,WC62 -181,30/11/2015,Social Care & Inclusion,ALPHA HEALTH CARE LTD,17/11/2015,"1,527.60",73373-RESIDENTIAL & NURSING CARE PLACEMENTS,Third Party Payments,Private Contractor Fees,Revenue
Walsall Council,http://opendatacommunities.org/id/metropolitan-district-council/walsall,WC62 -182,30/11/2015,Social Care & Inclusion,ALPHA HEALTH CARE LTD,17/11/2015,"1,527.60",73373-RESIDENTIAL & NURSING CARE PLACEMENTS,Third Party Payments,Private Contractor Fees,Revenue
Walsall Council,http://opendatacommunities.org/id/metropolitan-district-council/walsall,WC62 -183,30/11/2015,Social Care & Inclusion,ALPHA HEALTH CARE LTD,17/11/2015,"1,527.60",73373-RESIDENTIAL & NURSING CARE PLACEMENTS,Third Party Payments,Private Contractor Fees,Revenue
Walsall Council,http://opendatacommunities.org/id/metropolitan-district-council/walsall,WC62 -184,30/11/2015,Social Care & Inclusion,ALPHA HEALTH CARE LTD,17/11/2015,"1,527.60",73373-RESIDENTIAL & NURSING CARE PLACEMENTS,Third Party Payments,Private Contractor Fees,Revenue
Walsall Council,http://opendatacommunities.org/id/metropolitan-district-council/walsall,WC62 -185,30/11/2015,Social Care & Inclusion,ALPHA HEALTH CARE LTD,17/11/2015,"1,527.60",73373-RESIDENTIAL & NURSING CARE PLACEMENTS,Third Party Payments,Private Contractor Fees,Revenue
Walsall Council,http://opendatacommunities.org/id/metropolitan-district-council/walsall,WC62 -186,30/11/2015,Social Care & Inclusion,ALPHA HEALTH CARE LTD,17/11/2015,"1,527.60",73373-RESIDENTIAL & NURSING CARE PLACEMENTS,Third Party Payments,Private Contractor Fees,Revenue
Walsall Council,http://opendatacommunities.org/id/metropolitan-district-council/walsall,WC62 -187,30/11/2015,Social Care & Inclusion,ALPHA HEALTH CARE LTD,17/11/2015,"1,527.60",73373-RESIDENTIAL & NURSING CARE PLACEMENTS,Third Party Payments,Private Contractor Fees,Revenue
Walsall Council,http://opendatacommunities.org/id/metropolitan-district-council/walsall,WC62 -188,30/11/2015,Social Care & Inclusion,ALPHA HEALTH CARE LTD,17/11/2015,"1,527.60",73373-RESIDENTIAL & NURSING CARE PLACEMENTS,Third Party Payments,Private Contractor Fees,Revenue
Walsall Council,http://opendatacommunities.org/id/metropolitan-district-council/walsall,WC62 -189,30/11/2015,Social Care & Inclusion,ALPHA HEALTH CARE LTD,17/11/2015,"1,527.64",73373-RESIDENTIAL & NURSING CARE PLACEMENTS,Third Party Payments,Private Contractor Fees,Revenue
Walsall Council,http://opendatacommunities.org/id/metropolitan-district-council/walsall,WC62 -190,30/11/2015,Social Care & Inclusion,ALPHA HEALTH CARE LTD,17/11/2015,"1,568.64",73373-RESIDENTIAL & NURSING CARE PLACEMENTS,Third Party Payments,Private Contractor Fees,Revenue
Walsall Council,http://opendatacommunities.org/id/metropolitan-district-council/walsall,WC62 -191,30/11/2015,Social Care & Inclusion,ALPHA HEALTH CARE LTD,17/11/2015,"1,568.64",73373-RESIDENTIAL & NURSING CARE PLACEMENTS,Third Party Payments,Private Contractor Fees,Revenue
Walsall Council,http://opendatacommunities.org/id/metropolitan-district-council/walsall,WC62 -192,30/11/2015,Social Care & Inclusion,ALPHA HEALTH CARE LTD,17/11/2015,"1,568.64",73373-RESIDENTIAL & NURSING CARE PLACEMENTS,Third Party Payments,Private Contractor Fees,Revenue
Walsall Council,http://opendatacommunities.org/id/metropolitan-district-council/walsall,WC62 -193,30/11/2015,Social Care & Inclusion,ALPHA HEALTH CARE LTD,17/11/2015,"1,568.64",73373-RESIDENTIAL & NURSING CARE PLACEMENTS,Third Party Payments,Private Contractor Fees,Revenue
Walsall Council,http://opendatacommunities.org/id/metropolitan-district-council/walsall,WC62 -194,30/11/2015,Social Care & Inclusion,ALPHA HEALTH CARE LTD,17/11/2015,"1,568.80",73373-RESIDENTIAL & NURSING CARE PLACEMENTS,Third Party Payments,Private Contractor Fees,Revenue
Walsall Council,http://opendatacommunities.org/id/metropolitan-district-council/walsall,WC62 -195,30/11/2015,Social Care & Inclusion,ALPHA HEALTH CARE LTD,17/11/2015,"1,630.60",73373-RESIDENTIAL & NURSING CARE PLACEMENTS,Third Party Payments,Private Contractor Fees,Revenue
Walsall Council,http://opendatacommunities.org/id/metropolitan-district-council/walsall,WC62 -196,30/11/2015,Social Care & Inclusion,ALPHA HEALTH CARE LTD,17/11/2015,"1,975.60",73373-RESIDENTIAL & NURSING CARE PLACEMENTS,Third Party Payments,Private Contractor Fees,Revenue
Walsall Council,http://opendatacommunities.org/id/metropolitan-district-council/walsall,WC62 -197,30/11/2015,Social Care & Inclusion,ALPHA HEALTH CARE LTD,17/11/2015,"2,057.88",73373-RESIDENTIAL & NURSING CARE PLACEMENTS,Third Party Payments,Private Contractor Fees,Revenue
Walsall Council,http://opendatacommunities.org/id/metropolitan-district-council/walsall,WC62 -198,30/11/2015,Social Care & Inclusion,ALPHA HEALTH CARE LTD,17/11/2015,"2,161.40",73373-RESIDENTIAL & NURSING CARE PLACEMENTS,Third Party Payments,Private Contractor Fees,Revenue
Walsall Council,http://opendatacommunities.org/id/metropolitan-district-council/walsall,WC62 -199,30/11/2015,Social Care & Inclusion,ALPHA HEALTH CARE LTD,17/11/2015,"2,521.44",73373-RESIDENTIAL & NURSING CARE PLACEMENTS,Third Party Payments,Private Contractor Fees,Revenue
Walsall Council,http://opendatacommunities.org/id/metropolitan-district-council/walsall,WC62 -200,30/11/2015,Social Care & Inclusion,ALPHA HEALTH CARE LTD,10/11/2015,"2,914.29",73373-RESIDENTIAL & NURSING CARE PLACEMENTS,Third Party Payments,Private Contractor Fees,Revenue
Walsall Council,http://opendatacommunities.org/id/metropolitan-district-council/walsall,WC62 -201,30/11/2015,Social Care & Inclusion,ALPHA HEALTH CARE LTD,17/11/2015,"5,413.72",73373-RESIDENTIAL & NURSING CARE PLACEMENTS,Third Party Payments,Private Contractor Fees,Revenue
Walsall Council,http://opendatacommunities.org/id/metropolitan-district-council/walsall,WC62 -202,30/11/2015,Social Care & Inclusion,ALPHA HEALTH CARE LTD,17/11/2015,"5,553.32",73373-RESIDENTIAL & NURSING CARE PLACEMENTS,Third Party Payments,Private Contractor Fees,Revenue
Walsall Council,http://opendatacommunities.org/id/metropolitan-district-council/walsall,WC62 -203,30/11/2015,Childrens,ALPHABIOLABS,03/11/2015,214.38,73014-LEGAL FEES-PRIV CONTRACTOR FEES,Third Party Payments,Private Contractor Fees,Revenue
Walsall Council,http://opendatacommunities.org/id/metropolitan-district-council/walsall,WC62 -204,30/11/2015,Change and Governance,ALTODIGITAL NETWORKS LTD,16/11/2015,223.48,62001-STATIONERY & GENERAL SUPPLIES-OFFICE EXP,Supplies & Services,"Printing, Stationery & Office Exp",Revenue
Walsall Council,http://opendatacommunities.org/id/metropolitan-district-council/walsall,WC62 -205,30/11/2015,Change and Governance,ALTODIGITAL NETWORKS LTD,11/11/2015,360,60009-LEASING/HIRE/RENTAL-EQUIPMENT,Supplies & Services,"Equip,Furniture & Materials",Revenue
Walsall Council,http://opendatacommunities.org/id/metropolitan-district-council/walsall,WC62 -206,30/11/2015,Change and Governance,ALTODIGITAL NETWORKS LTD,18/11/2015,448.55,60006-NEW-FURNITURE & EQUIPMENT,Supplies & Services,"Equip,Furniture & Materials",Revenue
Walsall Council,http://opendatacommunities.org/id/metropolitan-district-council/walsall,WC62 -207,30/11/2015,Childrens,ALTODIGITAL NETWORKS LTD,27/11/2015,541.21,62001-STATIONERY & GENERAL SUPPLIES-OFFICE EXP,Supplies & Services,"Printing, Stationery & Office Exp",Revenue
Walsall Council,http://opendatacommunities.org/id/metropolitan-district-council/walsall,WC62 -208,30/11/2015,Childrens,REDACTED,23/11/2015,"1,500.88",74006-HOLIDAY/CHRISTMAS ALLOWANCE-FOSTER CARERS-OTH AGENCY PROVISION,Third Party Payments,Private Contractor Fees,Revenue
Walsall Council,http://opendatacommunities.org/id/metropolitan-district-council/walsall,WC62 -209,30/11/2015,Childrens,REDACTED,09/11/2015,540.2,62515-MISCELLANEOUS SUPPLIES,Supplies & Services,Other Supplies & Services,Revenue
Walsall Council,http://opendatacommunities.org/id/metropolitan-district-council/walsall,WC62 -210,30/11/2015,Childrens,REDACTED,09/11/2015,628.21,74006-HOLIDAY/CHRISTMAS ALLOWANCE-FOSTER CARERS-OTH AGENCY PROVISION,Third Party Payments,Private Contractor Fees,Revenue
Walsall Council,http://opendatacommunities.org/id/metropolitan-district-council/walsall,WC62 -211,30/11/2015,Social Care & Inclusion,REDACTED,09/11/2015,"2,416.50",76422-DIRECT PAYMENTS TO SOCIAL SERVICES CLIENTS,Transfer Payments,Transfer Payments,Revenue
Walsall Council,http://opendatacommunities.org/id/metropolitan-district-council/walsall,WC62 -212,30/11/2015,Social Care & Inclusion,REDACTED,09/11/2015,654.5,76422-DIRECT PAYMENTS TO SOCIAL SERVICES CLIENTS,Transfer Payments,Transfer Payments,Revenue
Walsall Council,http://opendatacommunities.org/id/metropolitan-district-council/walsall,WC62 -213,30/11/2015,Childrens,REDACTED,09/11/2015,312.92,76422-DIRECT PAYMENTS TO SOCIAL SERVICES CLIENTS,Transfer Payments,Transfer Payments,Revenue
Walsall Council,http://opendatacommunities.org/id/metropolitan-district-council/walsall,WC62 -214,30/11/2015,Economy & Environment,AMEY LG LIMITED,19/11/2015,"1,086.55",73025-PROFESSIONAL SERVICES-PRIV CONTRACTOR & OTHER AGENCIES,Third Party Payments,Private Contractor Fees,Revenue
Walsall Council,http://opendatacommunities.org/id/metropolitan-district-council/walsall,WC62 -215,30/11/2015,Economy & Environment,AMEY LG LIMITED,17/11/2015,"1,341.72",73002-SECURITY-PRIV CONTRACTOR FEES,Third Party Payments,Private Contractor Fees,Revenue
Walsall Council,http://opendatacommunities.org/id/metropolitan-district-council/walsall,WC62 -216,30/11/2015,Economy & Environment,AMEY LG LIMITED,01/11/2015,"1,603.98",73025-PROFESSIONAL SERVICES-PRIV CONTRACTOR & OTHER AGENCIES,Third Party Payments,Private Contractor Fees,Revenue
Walsall Council,http://opendatacommunities.org/id/metropolitan-district-council/walsall,WC62 -217,30/11/2015,Economy & Environment,AMEY LG LIMITED,02/11/2015,"2,647.27",63102-CONSULTANTS FEES - CORPORATE,Supplies & Services,Services,Revenue
Walsall Council,http://opendatacommunities.org/id/metropolitan-district-council/walsall,WC62 -218,30/11/2015,Childrens,AMG NURSING CARE SERVICES,04/11/2015,437.3,63000-PROFESSIONAL FEES AND SERVICES,Supplies & Services,Services,Revenue
Walsall Council,http://opendatacommunities.org/id/metropolitan-district-council/walsall,WC62 -219,30/11/2015,Childrens,AMG NURSING CARE SERVICES,19/11/2015,"1,088.88",74036-EXTERNAL RESIDENTIAL CARE-OTH AGENCY PROVISION,Third Party Payments,Private Contractor Fees,Revenue
Walsall Council,http://opendatacommunities.org/id/metropolitan-district-council/walsall,WC62 -220,30/11/2015,Childrens,AMG NURSING CARE SERVICES,19/11/2015,"1,865.80",74036-EXTERNAL RESIDENTIAL CARE-OTH AGENCY PROVISION,Third Party Payments,Private Contractor Fees,Revenue
Walsall Council,http://opendatacommunities.org/id/metropolitan-district-council/walsall,WC62 -221,30/11/2015,Childrens,AMG NURSING CARE SERVICES,02/11/2015,"2,228.76",74036-EXTERNAL RESIDENTIAL CARE-OTH AGENCY PROVISION,Third Party Payments,Private Contractor Fees,Revenue
Walsall Council,http://opendatacommunities.org/id/metropolitan-district-council/walsall,WC62 -222,30/11/2015,Childrens,AMG NURSING CARE SERVICES,02/11/2015,"2,591.72",74036-EXTERNAL RESIDENTIAL CARE-OTH AGENCY PROVISION,Third Party Payments,Private Contractor Fees,Revenue
Walsall Council,http://opendatacommunities.org/id/metropolitan-district-council/walsall,WC62 -223,30/11/2015,Childrens,AMG NURSING CARE SERVICES,05/11/2015,"2,591.72",74036-EXTERNAL RESIDENTIAL CARE-OTH AGENCY PROVISION,Third Party Payments,Private Contractor Fees,Revenue
Walsall Council,http://opendatacommunities.org/id/metropolitan-district-council/walsall,WC62 -224,30/11/2015,Social Care & Inclusion,AMG NURSING CARE SERVICES,01/11/2015,"6,660.46",73372-DOMICILIARY CARE,Third Party Payments,Private Contractor Fees,Revenue
Walsall Council,http://opendatacommunities.org/id/metropolitan-district-council/walsall,WC62 -225,30/11/2015,Social Care & Inclusion,REDACTED,09/11/2015,"1,133.44",76422-DIRECT PAYMENTS TO SOCIAL SERVICES CLIENTS,Transfer Payments,Transfer Payments,Revenue
Walsall Council,http://opendatacommunities.org/id/metropolitan-district-council/walsall,WC62 -226,30/11/2015,Social Care & Inclusion,REDACTED,09/11/2015,945,76422-DIRECT PAYMENTS TO SOCIAL SERVICES CLIENTS,Transfer Payments,Transfer Payments,Revenue
Walsall Council,http://opendatacommunities.org/id/metropolitan-district-council/walsall,WC62 -227,30/11/2015,Childrens,REDACTED,23/11/2015,425.08,74006-HOLIDAY/CHRISTMAS ALLOWANCE-FOSTER CARERS-OTH AGENCY PROVISION,Third Party Payments,Private Contractor Fees,Revenue
Walsall Council,http://opendatacommunities.org/id/metropolitan-district-council/walsall,WC62 -228,30/11/2015,Social Care & Inclusion,REDACTED,09/11/2015,544,76422-DIRECT PAYMENTS TO SOCIAL SERVICES CLIENTS,Transfer Payments,Transfer Payments,Revenue
Walsall Council,http://opendatacommunities.org/id/metropolitan-district-council/walsall,WC62 -229,30/11/2015,Social Care & Inclusion,REDACTED,09/11/2015,714,76422-DIRECT PAYMENTS TO SOCIAL SERVICES CLIENTS,Transfer Payments,Transfer Payments,Revenue
Walsall Council,http://opendatacommunities.org/id/metropolitan-district-council/walsall,WC62 -230,30/11/2015,Social Care & Inclusion,ANCHOR,10/11/2015,"1,119.93",73373-RESIDENTIAL & NURSING CARE PLACEMENTS,Third Party Payments,Private Contractor Fees,Revenue
Walsall Council,http://opendatacommunities.org/id/metropolitan-district-council/walsall,WC62 -231,30/11/2015,Social Care & Inclusion,ANCHOR,10/11/2015,"1,493.24",73373-RESIDENTIAL & NURSING CARE PLACEMENTS,Third Party Payments,Private Contractor Fees,Revenue
Walsall Council,http://opendatacommunities.org/id/metropolitan-district-council/walsall,WC62 -232,30/11/2015,Social Care & Inclusion,ANCHOR,10/11/2015,"1,493.24",73373-RESIDENTIAL & NURSING CARE PLACEMENTS,Third Party Payments,Private Contractor Fees,Revenue
Walsall Council,http://opendatacommunities.org/id/metropolitan-district-council/walsall,WC62 -233,30/11/2015,Social Care & Inclusion,ANCHOR,10/11/2015,"1,493.24",73373-RESIDENTIAL & NURSING CARE PLACEMENTS,Third Party Payments,Private Contractor Fees,Revenue
Walsall Council,http://opendatacommunities.org/id/metropolitan-district-council/walsall,WC62 -234,30/11/2015,Social Care & Inclusion,ANCHOR,10/11/2015,"1,493.24",73373-RESIDENTIAL & NURSING CARE PLACEMENTS,Third Party Payments,Private Contractor Fees,Revenue
Walsall Council,http://opendatacommunities.org/id/metropolitan-district-council/walsall,WC62 -235,30/11/2015,Social Care & Inclusion,ANCHOR,10/11/2015,"1,568.64",73373-RESIDENTIAL & NURSING CARE PLACEMENTS,Third Party Payments,Private Contractor Fees,Revenue
Walsall Council,http://opendatacommunities.org/id/metropolitan-district-council/walsall,WC62 -236,30/11/2015,Social Care & Inclusion,ANCHOR,10/11/2015,"1,568.64",73373-RESIDENTIAL & NURSING CARE PLACEMENTS,Third Party Payments,Private Contractor Fees,Revenue
Walsall Council,http://opendatacommunities.org/id/metropolitan-district-council/walsall,WC62 -237,30/11/2015,Social Care & Inclusion,ANCHOR,10/11/2015,"1,568.64",73373-RESIDENTIAL & NURSING CARE PLACEMENTS,Third Party Payments,Private Contractor Fees,Revenue
Walsall Council,http://opendatacommunities.org/id/metropolitan-district-council/walsall,WC62 -238,30/11/2015,Social Care & Inclusion,ANCHOR,10/11/2015,"1,568.64",73373-RESIDENTIAL & NURSING CARE PLACEMENTS,Third Party Payments,Private Contractor Fees,Revenue
Walsall Council,http://opendatacommunities.org/id/metropolitan-district-council/walsall,WC62 -239,30/11/2015,Social Care & Inclusion,ANCHOR,10/11/2015,"1,568.64",73373-RESIDENTIAL & NURSING CARE PLACEMENTS,Third Party Payments,Private Contractor Fees,Revenue
Walsall Council,http://opendatacommunities.org/id/metropolitan-district-council/walsall,WC62 -240,30/11/2015,Social Care & Inclusion,ANCHOR,10/11/2015,"1,568.64",73373-RESIDENTIAL & NURSING CARE PLACEMENTS,Third Party Payments,Private Contractor Fees,Revenue
Walsall Council,http://opendatacommunities.org/id/metropolitan-district-council/walsall,WC62 -241,30/11/2015,Social Care & Inclusion,ANCHOR,10/11/2015,"1,568.64",73373-RESIDENTIAL & NURSING CARE PLACEMENTS,Third Party Payments,Private Contractor Fees,Revenue
Walsall Council,http://opendatacommunities.org/id/metropolitan-district-council/walsall,WC62 -242,30/11/2015,Social Care & Inclusion,ANCHOR,10/11/2015,"1,568.64",73373-RESIDENTIAL & NURSING CARE PLACEMENTS,Third Party Payments,Private Contractor Fees,Revenue
Walsall Council,http://opendatacommunities.org/id/metropolitan-district-council/walsall,WC62 -243,30/11/2015,Social Care & Inclusion,ANCHOR,10/11/2015,"3,561.35",73373-RESIDENTIAL & NURSING CARE PLACEMENTS,Third Party Payments,Private Contractor Fees,Revenue
Walsall Council,http://opendatacommunities.org/id/metropolitan-district-council/walsall,WC62 -244,30/11/2015,Social Care & Inclusion,ANCHOR,10/11/2015,"11,316.62",73373-RESIDENTIAL & NURSING CARE PLACEMENTS,Third Party Payments,Private Contractor Fees,Revenue
Walsall Council,http://opendatacommunities.org/id/metropolitan-district-council/walsall,WC62 -245,30/11/2015,Childrens,REDACTED,09/11/2015,650.92,74006-HOLIDAY/CHRISTMAS ALLOWANCE-FOSTER CARERS-OTH AGENCY PROVISION,Third Party Payments,Private Contractor Fees,Revenue
Walsall Council,http://opendatacommunities.org/id/metropolitan-district-council/walsall,WC62 -246,30/11/2015,Childrens,REDACTED,09/11/2015,906.76,62515-MISCELLANEOUS SUPPLIES,Supplies & Services,Other Supplies & Services,Revenue
Walsall Council,http://opendatacommunities.org/id/metropolitan-district-council/walsall,WC62 -247,30/11/2015,Social Care & Inclusion,REDACTED,09/11/2015,378,76422-DIRECT PAYMENTS TO SOCIAL SERVICES CLIENTS,Transfer Payments,Transfer Payments,Revenue
Walsall Council,http://opendatacommunities.org/id/metropolitan-district-council/walsall,WC62 -248,30/11/2015,Childrens,REDACTED,09/11/2015,906.76,62515-MISCELLANEOUS SUPPLIES,Supplies & Services,Other Supplies & Services,Revenue
Walsall Council,http://opendatacommunities.org/id/metropolitan-district-council/walsall,WC62 -249,30/11/2015,Childrens,REDACTED,09/11/2015,985.76,74006-HOLIDAY/CHRISTMAS ALLOWANCE-FOSTER CARERS-OTH AGENCY PROVISION,Third Party Payments,Private Contractor Fees,Revenue
Walsall Council,http://opendatacommunities.org/id/metropolitan-district-council/walsall,WC62 -250,30/11/2015,Social Care & Inclusion,ANGEL COURT RESIDENTIAL CARE HOME,03/11/2015,417.26,73373-RESIDENTIAL & NURSING CARE PLACEMENTS,Third Party Payments,Private Contractor Fees,Revenue
Walsall Council,http://opendatacommunities.org/id/metropolitan-district-council/walsall,WC62 -251,30/11/2015,Social Care & Inclusion,ANGEL COURT RESIDENTIAL CARE HOME,03/11/2015,782.36,73373-RESIDENTIAL & NURSING CARE PLACEMENTS,Third Party Payments,Private Contractor Fees,Revenue
Walsall Council,http://opendatacommunities.org/id/metropolitan-district-council/walsall,WC62 -252,30/11/2015,Social Care & Inclusion,ANGEL COURT RESIDENTIAL CARE HOME,25/11/2015,"1,680.69",73373-RESIDENTIAL & NURSING CARE PLACEMENTS,Third Party Payments,Private Contractor Fees,Revenue
Walsall Council,http://opendatacommunities.org/id/metropolitan-district-council/walsall,WC62 -253,30/11/2015,Social Care & Inclusion,ANGEL COURT RESIDENTIAL CARE HOME,25/11/2015,"1,759.07",73373-RESIDENTIAL & NURSING CARE PLACEMENTS,Third Party Payments,Private Contractor Fees,Revenue
Walsall Council,http://opendatacommunities.org/id/metropolitan-district-council/walsall,WC62 -254,30/11/2015,Social Care & Inclusion,ANGEL COURT RESIDENTIAL CARE HOME,25/11/2015,"1,837.84",73373-RESIDENTIAL & NURSING CARE PLACEMENTS,Third Party Payments,Private Contractor Fees,Revenue
Walsall Council,http://opendatacommunities.org/id/metropolitan-district-council/walsall,WC62 -255,30/11/2015,Childrens,REDACTED,23/11/2015,"2,522.32",74006-HOLIDAY/CHRISTMAS ALLOWANCE-FOSTER CARERS-OTH AGENCY PROVISION,Third Party Payments,Private Contractor Fees,Revenue
Walsall Council,http://opendatacommunities.org/id/metropolitan-district-council/walsall,WC62 -256,30/11/2015,Change and Governance,ANGLIA STAIRLIFTS LTD,04/11/2015,"3,735.00",01045-PRIVATE GRANTS,Capital,Capital,Capital
Walsall Council,http://opendatacommunities.org/id/metropolitan-district-council/walsall,WC62 -257,30/11/2015,Change and Governance,ANGLIA STAIRLIFTS LTD,03/11/2015,"3,825.00",01045-PRIVATE GRANTS,Capital,Capital,Capital
Walsall Council,http://opendatacommunities.org/id/metropolitan-district-council/walsall,WC62 -258,30/11/2015,Change and Governance,ANGLIA STAIRLIFTS LTD,16/11/2015,"4,185.00",01045-PRIVATE GRANTS,Capital,Capital,Capital
Walsall Council,http://opendatacommunities.org/id/metropolitan-district-council/walsall,WC62 -259,30/11/2015,Change and Governance,ANGLIA STAIRLIFTS LTD,02/11/2015,"4,244.76",01045-PRIVATE GRANTS,Capital,Capital,Capital
Walsall Council,http://opendatacommunities.org/id/metropolitan-district-council/walsall,WC62 -260,30/11/2015,Change and Governance,ANGLIA STAIRLIFTS LTD,04/11/2015,"4,495.00",01045-PRIVATE GRANTS,Capital,Capital,Capital
Walsall Council,http://opendatacommunities.org/id/metropolitan-district-council/walsall,WC62 -261,30/11/2015,Change and Governance,ANGLIA STAIRLIFTS LTD,06/11/2015,"4,745.00",01045-PRIVATE GRANTS,Capital,Capital,Capital
Walsall Council,http://opendatacommunities.org/id/metropolitan-district-council/walsall,WC62 -262,30/11/2015,Change and Governance,ANGLIA STAIRLIFTS LTD,02/11/2015,"5,015.00",01045-PRIVATE GRANTS,Capital,Capital,Capital
Walsall Council,http://opendatacommunities.org/id/metropolitan-district-council/walsall,WC62 -263,30/11/2015,Childrens,REDACTED,09/11/2015,925,62515-MISCELLANEOUS SUPPLIES,Supplies & Services,Other Supplies & Services,Revenue
Walsall Council,http://opendatacommunities.org/id/metropolitan-district-council/walsall,WC62 -264,30/11/2015,Childrens,REDACTED,09/11/2015,"1,461.24",74006-HOLIDAY/CHRISTMAS ALLOWANCE-FOSTER CARERS-OTH AGENCY PROVISION,Third Party Payments,Private Contractor Fees,Revenue
Walsall Council,http://opendatacommunities.org/id/metropolitan-district-council/walsall,WC62 -265,30/11/2015,Social Care & Inclusion,ANSON COURT RESIDENTIAL HOME,25/11/2015,"-1,568.64",73373-RESIDENTIAL & NURSING CARE PLACEMENTS,Third Party Payments,Private Contractor Fees,Revenue
Walsall Council,http://opendatacommunities.org/id/metropolitan-district-council/walsall,WC62 -266,30/11/2015,Social Care & Inclusion,ANSON COURT RESIDENTIAL HOME,17/11/2015,"-1,400.57",73373-RESIDENTIAL & NURSING CARE PLACEMENTS,Third Party Payments,Private Contractor Fees,Revenue
Walsall Council,http://opendatacommunities.org/id/metropolitan-district-council/walsall,WC62 -267,30/11/2015,Social Care & Inclusion,ANSON COURT RESIDENTIAL HOME,17/11/2015,"1,567.00",73373-RESIDENTIAL & NURSING CARE PLACEMENTS,Third Party Payments,Private Contractor Fees,Revenue
Walsall Council,http://opendatacommunities.org/id/metropolitan-district-council/walsall,WC62 -268,30/11/2015,Social Care & Inclusion,ANSON COURT RESIDENTIAL HOME,17/11/2015,"1,568.64",73373-RESIDENTIAL & NURSING CARE PLACEMENTS,Third Party Payments,Private Contractor Fees,Revenue
Walsall Council,http://opendatacommunities.org/id/metropolitan-district-council/walsall,WC62 -269,30/11/2015,Social Care & Inclusion,ANSON COURT RESIDENTIAL HOME,17/11/2015,"1,568.64",73373-RESIDENTIAL & NURSING CARE PLACEMENTS,Third Party Payments,Private Contractor Fees,Revenue
Walsall Council,http://opendatacommunities.org/id/metropolitan-district-council/walsall,WC62 -270,30/11/2015,Social Care & Inclusion,ANSON COURT RESIDENTIAL HOME,17/11/2015,"1,568.64",73373-RESIDENTIAL & NURSING CARE PLACEMENTS,Third Party Payments,Private Contractor Fees,Revenue
Walsall Council,http://opendatacommunities.org/id/metropolitan-district-council/walsall,WC62 -271,30/11/2015,Social Care & Inclusion,ANSON COURT RESIDENTIAL HOME,17/11/2015,"1,568.64",73373-RESIDENTIAL & NURSING CARE PLACEMENTS,Third Party Payments,Private Contractor Fees,Revenue
Walsall Council,http://opendatacommunities.org/id/metropolitan-district-council/walsall,WC62 -272,30/11/2015,Social Care & Inclusion,ANSON COURT RESIDENTIAL HOME,17/11/2015,"1,568.64",73373-RESIDENTIAL & NURSING CARE PLACEMENTS,Third Party Payments,Private Contractor Fees,Revenue
Walsall Council,http://opendatacommunities.org/id/metropolitan-district-council/walsall,WC62 -273,30/11/2015,Social Care & Inclusion,ANSON COURT RESIDENTIAL HOME,17/11/2015,"1,568.64",73373-RESIDENTIAL & NURSING CARE PLACEMENTS,Third Party Payments,Private Contractor Fees,Revenue
Walsall Council,http://opendatacommunities.org/id/metropolitan-district-council/walsall,WC62 -274,30/11/2015,Social Care & Inclusion,ANSON COURT RESIDENTIAL HOME,17/11/2015,"1,568.64",73373-RESIDENTIAL & NURSING CARE PLACEMENTS,Third Party Payments,Private Contractor Fees,Revenue
Walsall Council,http://opendatacommunities.org/id/metropolitan-district-council/walsall,WC62 -275,30/11/2015,Social Care & Inclusion,ANSON COURT RESIDENTIAL HOME,17/11/2015,"1,568.64",73373-RESIDENTIAL & NURSING CARE PLACEMENTS,Third Party Payments,Private Contractor Fees,Revenue
Walsall Council,http://opendatacommunities.org/id/metropolitan-district-council/walsall,WC62 -276,30/11/2015,Social Care & Inclusion,ANSON COURT RESIDENTIAL HOME,17/11/2015,"1,568.64",73373-RESIDENTIAL & NURSING CARE PLACEMENTS,Third Party Payments,Private Contractor Fees,Revenue
Walsall Council,http://opendatacommunities.org/id/metropolitan-district-council/walsall,WC62 -277,30/11/2015,Social Care & Inclusion,ANSON COURT RESIDENTIAL HOME,17/11/2015,"1,568.64",73373-RESIDENTIAL & NURSING CARE PLACEMENTS,Third Party Payments,Private Contractor Fees,Revenue
Walsall Council,http://opendatacommunities.org/id/metropolitan-district-council/walsall,WC62 -278,30/11/2015,Social Care & Inclusion,ANSON COURT RESIDENTIAL HOME,25/11/2015,"1,568.64",73373-RESIDENTIAL & NURSING CARE PLACEMENTS,Third Party Payments,Private Contractor Fees,Revenue
Walsall Council,http://opendatacommunities.org/id/metropolitan-district-council/walsall,WC62 -279,30/11/2015,Social Care & Inclusion,ANSON COURT RESIDENTIAL HOME,17/11/2015,"1,649.20",73373-RESIDENTIAL & NURSING CARE PLACEMENTS,Third Party Payments,Private Contractor Fees,Revenue
Walsall Council,http://opendatacommunities.org/id/metropolitan-district-council/walsall,WC62 -280,30/11/2015,Social Care & Inclusion,ANSON COURT RESIDENTIAL HOME,17/11/2015,"1,650.44",73373-RESIDENTIAL & NURSING CARE PLACEMENTS,Third Party Payments,Private Contractor Fees,Revenue
Walsall Council,http://opendatacommunities.org/id/metropolitan-district-council/walsall,WC62 -281,30/11/2015,Social Care & Inclusion,ANSON COURT RESIDENTIAL HOME,17/11/2015,"1,650.44",73373-RESIDENTIAL & NURSING CARE PLACEMENTS,Third Party Payments,Private Contractor Fees,Revenue
Walsall Council,http://opendatacommunities.org/id/metropolitan-district-council/walsall,WC62 -282,30/11/2015,Social Care & Inclusion,ANSON COURT RESIDENTIAL HOME,17/11/2015,"1,651.04",73373-RESIDENTIAL & NURSING CARE PLACEMENTS,Third Party Payments,Private Contractor Fees,Revenue
Walsall Council,http://opendatacommunities.org/id/metropolitan-district-council/walsall,WC62 -283,30/11/2015,Social Care & Inclusion,ANSON COURT RESIDENTIAL HOME,17/11/2015,"1,651.04",73373-RESIDENTIAL & NURSING CARE PLACEMENTS,Third Party Payments,Private Contractor Fees,Revenue
Walsall Council,http://opendatacommunities.org/id/metropolitan-district-council/walsall,WC62 -284,30/11/2015,Change and Governance,ANTALIS LIMITED,04/11/2015,260,60500-GENERAL MATERIALS,Supplies & Services,"Equip,Furniture & Materials",Revenue
Walsall Council,http://opendatacommunities.org/id/metropolitan-district-council/walsall,WC62 -285,30/11/2015,Childrens,REDACTED,23/11/2015,"1,369.84",74006-HOLIDAY/CHRISTMAS ALLOWANCE-FOSTER CARERS-OTH AGENCY PROVISION,Third Party Payments,Private Contractor Fees,Revenue
Walsall Council,http://opendatacommunities.org/id/metropolitan-district-council/walsall,WC62 -286,30/11/2015,Childrens,REDACTED,23/11/2015,714.3,74006-HOLIDAY/CHRISTMAS ALLOWANCE-FOSTER CARERS-OTH AGENCY PROVISION,Third Party Payments,Private Contractor Fees,Revenue
Walsall Council,http://opendatacommunities.org/id/metropolitan-district-council/walsall,WC62 -287,30/11/2015,Economy & Environment,APCOA PARKING SERVICES (UK) LTD,16/11/2015,"47,941.86",73025-PROFESSIONAL SERVICES-PRIV CONTRACTOR & OTHER AGENCIES,Third Party Payments,Private Contractor Fees,Revenue
Walsall Council,http://opendatacommunities.org/id/metropolitan-district-council/walsall,WC62 -288,30/11/2015,Social Care & Inclusion,APEX RADIO SYSTEMS LTD,26/11/2015,849,60008-MAINTENANCE-FURNITURE & EQUIPMENT,Supplies & Services,"Equip,Furniture & Materials",Revenue
Walsall Council,http://opendatacommunities.org/id/metropolitan-district-council/walsall,WC62 -289,30/11/2015,Childrens,APPLE TRANSCRIPTION LIMITED,25/11/2015,296.05,73014-LEGAL FEES-PRIV CONTRACTOR FEES,Third Party Payments,Private Contractor Fees,Revenue
Walsall Council,http://opendatacommunities.org/id/metropolitan-district-council/walsall,WC62 -290,30/11/2015,Economy & Environment,APSE 001,09/11/2015,-747,30030-EXTERNAL TRAINING,Employees,Training,Revenue
Walsall Council,http://opendatacommunities.org/id/metropolitan-district-council/walsall,WC62 -291,30/11/2015,Economy & Environment,APSE 001,09/11/2015,507,30030-EXTERNAL TRAINING,Employees,Training,Revenue
Walsall Council,http://opendatacommunities.org/id/metropolitan-district-council/walsall,WC62 -292,30/11/2015,Economy & Environment,APSE 001,09/11/2015,747,30030-EXTERNAL TRAINING,Employees,Training,Revenue
Walsall Council,http://opendatacommunities.org/id/metropolitan-district-council/walsall,WC62 -293,30/11/2015,Economy & Environment,APSE 001,20/11/2015,995,30030-EXTERNAL TRAINING,Employees,Training,Revenue
Walsall Council,http://opendatacommunities.org/id/metropolitan-district-council/walsall,WC62 -294,30/11/2015,Economy & Environment,AQUALYMPIC,04/11/2015,412.5,32000-MISC FEES AND EXPENSES,Employees,Other Staff Costs,Revenue
Walsall Council,http://opendatacommunities.org/id/metropolitan-district-council/walsall,WC62 -295,30/11/2015,Social Care & Inclusion,ARBORETUM NURSING HOME.,10/11/2015,"1,975.60",73373-RESIDENTIAL & NURSING CARE PLACEMENTS,Third Party Payments,Private Contractor Fees,Revenue
Walsall Council,http://opendatacommunities.org/id/metropolitan-district-council/walsall,WC62 -296,30/11/2015,Social Care & Inclusion,ARBORETUM NURSING HOME.,10/11/2015,"1,975.60",73373-RESIDENTIAL & NURSING CARE PLACEMENTS,Third Party Payments,Private Contractor Fees,Revenue
Walsall Council,http://opendatacommunities.org/id/metropolitan-district-council/walsall,WC62 -297,30/11/2015,Social Care & Inclusion,ARBORETUM NURSING HOME.,10/11/2015,"1,975.60",73373-RESIDENTIAL & NURSING CARE PLACEMENTS,Third Party Payments,Private Contractor Fees,Revenue
Walsall Council,http://opendatacommunities.org/id/metropolitan-district-council/walsall,WC62 -298,30/11/2015,Social Care & Inclusion,ARBORETUM NURSING HOME.,10/11/2015,"1,975.60",73373-RESIDENTIAL & NURSING CARE PLACEMENTS,Third Party Payments,Private Contractor Fees,Revenue
Walsall Council,http://opendatacommunities.org/id/metropolitan-district-council/walsall,WC62 -299,30/11/2015,Social Care & Inclusion,ARBORETUM NURSING HOME.,10/11/2015,"2,017.16",73373-RESIDENTIAL & NURSING CARE PLACEMENTS,Third Party Payments,Private Contractor Fees,Revenue
Walsall Council,http://opendatacommunities.org/id/metropolitan-district-council/walsall,WC62 -300,30/11/2015,Social Care & Inclusion,ARBORETUM NURSING HOME.,10/11/2015,"2,030.00",73373-RESIDENTIAL & NURSING CARE PLACEMENTS,Third Party Payments,Private Contractor Fees,Revenue
Walsall Council,http://opendatacommunities.org/id/metropolitan-district-council/walsall,WC62 -301,30/11/2015,Social Care & Inclusion,ARBORETUM NURSING HOME.,04/11/2015,"15,000.00",73019-PSE'S-PRIV CONTRACTOR FEES,Third Party Payments,Private Contractor Fees,Revenue
Walsall Council,http://opendatacommunities.org/id/metropolitan-district-council/walsall,WC62 -302,30/11/2015,Economy & Environment,ARCANE DIRECT MARKETING,06/11/2015,236.99,62511-DISTRIBUTION,Supplies & Services,Other Supplies & Services,Revenue
Walsall Council,http://opendatacommunities.org/id/metropolitan-district-council/walsall,WC62 -303,30/11/2015,Economy & Environment,ARCANE DIRECT MARKETING,11/11/2015,313.14,62511-DISTRIBUTION,Supplies & Services,Other Supplies & Services,Revenue
Walsall Council,http://opendatacommunities.org/id/metropolitan-district-council/walsall,WC62 -304,30/11/2015,Economy & Environment,ARCANE DIRECT MARKETING,11/11/2015,950.71,62511-DISTRIBUTION,Supplies & Services,Other Supplies & Services,Revenue
Walsall Council,http://opendatacommunities.org/id/metropolitan-district-council/walsall,WC62 -305,30/11/2015,Economy & Environment,ARCANE DIRECT MARKETING,06/11/2015,960.84,62511-DISTRIBUTION,Supplies & Services,Other Supplies & Services,Revenue
Walsall Council,http://opendatacommunities.org/id/metropolitan-district-council/walsall,WC62 -306,30/11/2015,Childrens,ARRIVA MIDLANDS LTD,19/11/2015,"1,835.00",52000-WITH DRIVER-HIRE OF VEHICLES,Transport,Hire,Revenue
Walsall Council,http://opendatacommunities.org/id/metropolitan-district-council/walsall,WC62 -307,30/11/2015,Change and Governance,ARTHUR J GALLAGHER T/A HEATH LAMBERT LIMITED,18/11/2015,"6,500.00",63000-PROFESSIONAL FEES AND SERVICES,Supplies & Services,Services,Revenue
Walsall Council,http://opendatacommunities.org/id/metropolitan-district-council/walsall,WC62 -308,30/11/2015,Childrens,AS CREATIVES LTD,06/11/2015,580,30030-EXTERNAL TRAINING,Employees,Training,Revenue
Walsall Council,http://opendatacommunities.org/id/metropolitan-district-council/walsall,WC62 -309,30/11/2015,Economy & Environment,ASA AWARDS,13/11/2015,312.08,60006-NEW-FURNITURE & EQUIPMENT,Supplies & Services,"Equip,Furniture & Materials",Revenue
Walsall Council,http://opendatacommunities.org/id/metropolitan-district-council/walsall,WC62 -310,30/11/2015,Economy & Environment,ASDA PHARMACY,01/11/2015,65.6,63000-PROFESSIONAL FEES AND SERVICES,Supplies & Services,Services,Revenue
Walsall Council,http://opendatacommunities.org/id/metropolitan-district-council/walsall,WC62 -311,30/11/2015,Economy & Environment,ASDA PHARMACY,09/11/2015,300,71007-CONTRIBUTION TO PCT,Third Party Payments,Joint Arrangements,Revenue
Walsall Council,http://opendatacommunities.org/id/metropolitan-district-council/walsall,WC62 -312,30/11/2015,Economy & Environment,ASDA PHARMACY,01/11/2015,491.48,71007-CONTRIBUTION TO PCT,Third Party Payments,Joint Arrangements,Revenue
Walsall Council,http://opendatacommunities.org/id/metropolitan-district-council/walsall,WC62 -313,30/11/2015,Social Care & Inclusion,ASH GRANGE CARE HOME,25/11/2015,"-1,021.63",73373-RESIDENTIAL & NURSING CARE PLACEMENTS,Third Party Payments,Private Contractor Fees,Revenue
Walsall Council,http://opendatacommunities.org/id/metropolitan-district-council/walsall,WC62 -314,30/11/2015,Social Care & Inclusion,ASH GRANGE CARE HOME,10/11/2015,"1,505.56",73373-RESIDENTIAL & NURSING CARE PLACEMENTS,Third Party Payments,Private Contractor Fees,Revenue
Walsall Council,http://opendatacommunities.org/id/metropolitan-district-council/walsall,WC62 -315,30/11/2015,Social Care & Inclusion,ASH GRANGE CARE HOME,10/11/2015,"1,988.20",73373-RESIDENTIAL & NURSING CARE PLACEMENTS,Third Party Payments,Private Contractor Fees,Revenue
Walsall Council,http://opendatacommunities.org/id/metropolitan-district-council/walsall,WC62 -316,30/11/2015,Social Care & Inclusion,ASH GRANGE CARE HOME,10/11/2015,"1,988.20",73373-RESIDENTIAL & NURSING CARE PLACEMENTS,Third Party Payments,Private Contractor Fees,Revenue
Walsall Council,http://opendatacommunities.org/id/metropolitan-district-council/walsall,WC62 -317,30/11/2015,Social Care & Inclusion,ASH GRANGE CARE HOME,10/11/2015,"1,988.20",73373-RESIDENTIAL & NURSING CARE PLACEMENTS,Third Party Payments,Private Contractor Fees,Revenue
Walsall Council,http://opendatacommunities.org/id/metropolitan-district-council/walsall,WC62 -318,30/11/2015,Social Care & Inclusion,ASH GRANGE CARE HOME,10/11/2015,"1,988.20",73373-RESIDENTIAL & NURSING CARE PLACEMENTS,Third Party Payments,Private Contractor Fees,Revenue
Walsall Council,http://opendatacommunities.org/id/metropolitan-district-council/walsall,WC62 -319,30/11/2015,Social Care & Inclusion,ASH GRANGE CARE HOME,10/11/2015,"1,988.20",73373-RESIDENTIAL & NURSING CARE PLACEMENTS,Third Party Payments,Private Contractor Fees,Revenue
Walsall Council,http://opendatacommunities.org/id/metropolitan-district-council/walsall,WC62 -320,30/11/2015,Social Care & Inclusion,ASH GRANGE CARE HOME,10/11/2015,"1,988.20",73373-RESIDENTIAL & NURSING CARE PLACEMENTS,Third Party Payments,Private Contractor Fees,Revenue
Walsall Council,http://opendatacommunities.org/id/metropolitan-district-council/walsall,WC62 -321,30/11/2015,Social Care & Inclusion,ASH GRANGE CARE HOME,10/11/2015,"1,988.20",73373-RESIDENTIAL & NURSING CARE PLACEMENTS,Third Party Payments,Private Contractor Fees,Revenue
Walsall Council,http://opendatacommunities.org/id/metropolitan-district-council/walsall,WC62 -322,30/11/2015,Social Care & Inclusion,ASH GRANGE CARE HOME,10/11/2015,"1,988.20",73373-RESIDENTIAL & NURSING CARE PLACEMENTS,Third Party Payments,Private Contractor Fees,Revenue
Walsall Council,http://opendatacommunities.org/id/metropolitan-district-council/walsall,WC62 -323,30/11/2015,Social Care & Inclusion,ASH GRANGE CARE HOME,10/11/2015,"1,988.20",73373-RESIDENTIAL & NURSING CARE PLACEMENTS,Third Party Payments,Private Contractor Fees,Revenue
Walsall Council,http://opendatacommunities.org/id/metropolitan-district-council/walsall,WC62 -324,30/11/2015,Social Care & Inclusion,ASH GRANGE CARE HOME,10/11/2015,"1,988.20",73373-RESIDENTIAL & NURSING CARE PLACEMENTS,Third Party Payments,Private Contractor Fees,Revenue
Walsall Council,http://opendatacommunities.org/id/metropolitan-district-council/walsall,WC62 -325,30/11/2015,Social Care & Inclusion,ASH GRANGE CARE HOME,17/11/2015,"1,988.20",73373-RESIDENTIAL & NURSING CARE PLACEMENTS,Third Party Payments,Private Contractor Fees,Revenue
Walsall Council,http://opendatacommunities.org/id/metropolitan-district-council/walsall,WC62 -326,30/11/2015,Social Care & Inclusion,ASH GRANGE CARE HOME,25/11/2015,"1,988.20",73373-RESIDENTIAL & NURSING CARE PLACEMENTS,Third Party Payments,Private Contractor Fees,Revenue
Walsall Council,http://opendatacommunities.org/id/metropolitan-district-council/walsall,WC62 -327,30/11/2015,Social Care & Inclusion,ASH GRANGE CARE HOME,10/11/2015,"2,065.64",73373-RESIDENTIAL & NURSING CARE PLACEMENTS,Third Party Payments,Private Contractor Fees,Revenue
Walsall Council,http://opendatacommunities.org/id/metropolitan-district-council/walsall,WC62 -328,30/11/2015,Social Care & Inclusion,ASH GRANGE CARE HOME,10/11/2015,"2,201.22",73373-RESIDENTIAL & NURSING CARE PLACEMENTS,Third Party Payments,Private Contractor Fees,Revenue
Walsall Council,http://opendatacommunities.org/id/metropolitan-district-council/walsall,WC62 -329,30/11/2015,Social Care & Inclusion,ASH GRANGE CARE HOME,10/11/2015,"2,943.72",73373-RESIDENTIAL & NURSING CARE PLACEMENTS,Third Party Payments,Private Contractor Fees,Revenue
Walsall Council,http://opendatacommunities.org/id/metropolitan-district-council/walsall,WC62 -330,30/11/2015,Social Care & Inclusion,ASH GRANGE CARE HOME,25/11/2015,"3,337.34",73373-RESIDENTIAL & NURSING CARE PLACEMENTS,Third Party Payments,Private Contractor Fees,Revenue
Walsall Council,http://opendatacommunities.org/id/metropolitan-district-council/walsall,WC62 -331,30/11/2015,Social Care & Inclusion,ASH GRANGE CARE HOME,09/11/2015,"14,700.00",73019-PSE'S-PRIV CONTRACTOR FEES,Third Party Payments,Private Contractor Fees,Revenue
Walsall Council,http://opendatacommunities.org/id/metropolitan-district-council/walsall,WC62 -332,30/11/2015,Social Care & Inclusion,ASH GRANGE CARE HOME,25/11/2015,"14,700.00",73019-PSE'S-PRIV CONTRACTOR FEES,Third Party Payments,Private Contractor Fees,Revenue
Walsall Council,http://opendatacommunities.org/id/metropolitan-district-council/walsall,WC62 -333,30/11/2015,Economy & Environment,ASHTON ENGINEERING CO LTD,11/11/2015,359,60006-NEW-FURNITURE & EQUIPMENT,Supplies & Services,"Equip,Furniture & Materials",Revenue
Walsall Council,http://opendatacommunities.org/id/metropolitan-district-council/walsall,WC62 -334,30/11/2015,Economy & Environment,ASHTON ENGINEERING CO LTD,01/11/2015,592,60006-NEW-FURNITURE & EQUIPMENT,Supplies & Services,"Equip,Furniture & Materials",Revenue
Walsall Council,http://opendatacommunities.org/id/metropolitan-district-council/walsall,WC62 -335,30/11/2015,Economy & Environment,ASHTON ENGINEERING CO LTD,01/11/2015,"1,572.00",60534-VEHICLE TESTING STATION-MATERIALS,Supplies & Services,"Equip,Furniture & Materials",Revenue
Walsall Council,http://opendatacommunities.org/id/metropolitan-district-council/walsall,WC62 -336,30/11/2015,Economy & Environment,ASKEWS AND HOLTS LIBRARY SERVICES LTD,06/11/2015,252.96,60501-LIBRARY BOOKS,Supplies & Services,"Equip,Furniture & Materials",Revenue
Walsall Council,http://opendatacommunities.org/id/metropolitan-district-council/walsall,WC62 -337,30/11/2015,Economy & Environment,ASKEWS AND HOLTS LIBRARY SERVICES LTD,09/11/2015,260.71,60501-LIBRARY BOOKS,Supplies & Services,"Equip,Furniture & Materials",Revenue
Walsall Council,http://opendatacommunities.org/id/metropolitan-district-council/walsall,WC62 -338,30/11/2015,Economy & Environment,ASKEWS AND HOLTS LIBRARY SERVICES LTD,13/11/2015,264.24,60501-LIBRARY BOOKS,Supplies & Services,"Equip,Furniture & Materials",Revenue
Walsall Council,http://opendatacommunities.org/id/metropolitan-district-council/walsall,WC62 -339,30/11/2015,Economy & Environment,ASKEWS AND HOLTS LIBRARY SERVICES LTD,06/11/2015,264.44,60501-LIBRARY BOOKS,Supplies & Services,"Equip,Furniture & Materials",Revenue
Walsall Council,http://opendatacommunities.org/id/metropolitan-district-council/walsall,WC62 -340,30/11/2015,Economy & Environment,ASKEWS AND HOLTS LIBRARY SERVICES LTD,20/11/2015,265.32,60501-LIBRARY BOOKS,Supplies & Services,"Equip,Furniture & Materials",Revenue
Walsall Council,http://opendatacommunities.org/id/metropolitan-district-council/walsall,WC62 -341,30/11/2015,Economy & Environment,ASKEWS AND HOLTS LIBRARY SERVICES LTD,09/11/2015,282.75,60501-LIBRARY BOOKS,Supplies & Services,"Equip,Furniture & Materials",Revenue
Walsall Council,http://opendatacommunities.org/id/metropolitan-district-council/walsall,WC62 -342,30/11/2015,Economy & Environment,ASKEWS AND HOLTS LIBRARY SERVICES LTD,02/11/2015,334.94,60501-LIBRARY BOOKS,Supplies & Services,"Equip,Furniture & Materials",Revenue
Walsall Council,http://opendatacommunities.org/id/metropolitan-district-council/walsall,WC62 -343,30/11/2015,Economy & Environment,ASKEWS AND HOLTS LIBRARY SERVICES LTD,02/11/2015,369.96,60501-LIBRARY BOOKS,Supplies & Services,"Equip,Furniture & Materials",Revenue
Walsall Council,http://opendatacommunities.org/id/metropolitan-district-council/walsall,WC62 -344,30/11/2015,Economy & Environment,ASKEWS AND HOLTS LIBRARY SERVICES LTD,16/11/2015,518.22,60501-LIBRARY BOOKS,Supplies & Services,"Equip,Furniture & Materials",Revenue
Walsall Council,http://opendatacommunities.org/id/metropolitan-district-council/walsall,WC62 -345,30/11/2015,Economy & Environment,ASKEWS AND HOLTS LIBRARY SERVICES LTD,01/11/2015,535.46,60501-LIBRARY BOOKS,Supplies & Services,"Equip,Furniture & Materials",Revenue
Walsall Council,http://opendatacommunities.org/id/metropolitan-district-council/walsall,WC62 -346,30/11/2015,Economy & Environment,ASKEWS AND HOLTS LIBRARY SERVICES LTD,02/11/2015,625.27,60501-LIBRARY BOOKS,Supplies & Services,"Equip,Furniture & Materials",Revenue
Walsall Council,http://opendatacommunities.org/id/metropolitan-district-council/walsall,WC62 -347,30/11/2015,Economy & Environment,ASKEWS AND HOLTS LIBRARY SERVICES LTD,20/11/2015,"1,020.41",60501-LIBRARY BOOKS,Supplies & Services,"Equip,Furniture & Materials",Revenue
Walsall Council,http://opendatacommunities.org/id/metropolitan-district-council/walsall,WC62 -348,30/11/2015,Social Care & Inclusion,REDACTED,09/11/2015,493,76422-DIRECT PAYMENTS TO SOCIAL SERVICES CLIENTS,Transfer Payments,Transfer Payments,Revenue
Walsall Council,http://opendatacommunities.org/id/metropolitan-district-council/walsall,WC62 -349,30/11/2015,Childrens,ASTON CHILDRENS CARE,09/11/2015,"10,285.50",74036-EXTERNAL RESIDENTIAL CARE-OTH AGENCY PROVISION,Third Party Payments,Private Contractor Fees,Revenue
Walsall Council,http://opendatacommunities.org/id/metropolitan-district-council/walsall,WC62 -350,30/11/2015,Change and Governance,ASTUN TECHNOLOGY LIMITED,23/11/2015,"11,325.00",63820-RECHARGE FOR MAINTENANCE/APPLICATION COSTS-COMPUTER,Supplies & Services,Communications & Computing,Revenue
Walsall Council,http://opendatacommunities.org/id/metropolitan-district-council/walsall,WC62 -351,30/11/2015,Economy & Environment,ATHWAL NEWS LTD,20/11/2015,552.88,60501-LIBRARY BOOKS,Supplies & Services,"Equip,Furniture & Materials",Revenue
Walsall Council,http://opendatacommunities.org/id/metropolitan-district-council/walsall,WC62 -352,30/11/2015,Economy & Environment,ATHWAL NEWS LTD,06/11/2015,664.53,60501-LIBRARY BOOKS,Supplies & Services,"Equip,Furniture & Materials",Revenue
Walsall Council,http://opendatacommunities.org/id/metropolitan-district-council/walsall,WC62 -353,30/11/2015,Change and Governance,AUDITEL RENTAL & SERVICE LTD,11/11/2015,"1,417.50","40000-REPAIRS,ALTERATIONS & MAINTENANCE-PREM",Premises,Premises-Repairs & Maintenance,Revenue
Walsall Council,http://opendatacommunities.org/id/metropolitan-district-council/walsall,WC62 -354,30/11/2015,Change and Governance,AUTUMN CLOSE RESIDENTS ASSOCIATION,16/11/2015,901.4,62515-MISCELLANEOUS SUPPLIES,Supplies & Services,Other Supplies & Services,Revenue
Walsall Council,http://opendatacommunities.org/id/metropolitan-district-council/walsall,WC62 -355,30/11/2015,Change and Governance,AVENUES COMMUNITY ASSOCIATION,06/11/2015,800,62515-MISCELLANEOUS SUPPLIES,Supplies & Services,Other Supplies & Services,Revenue
Walsall Council,http://opendatacommunities.org/id/metropolitan-district-council/walsall,WC62 -356,30/11/2015,Social Care & Inclusion,REDACTED,09/11/2015,777,76422-DIRECT PAYMENTS TO SOCIAL SERVICES CLIENTS,Transfer Payments,Transfer Payments,Revenue
Walsall Council,http://opendatacommunities.org/id/metropolitan-district-council/walsall,WC62 -357,30/11/2015,Economy & Environment,AXIELL LIMITED,04/11/2015,665.28,63000-PROFESSIONAL FEES AND SERVICES,Supplies & Services,Services,Revenue
Walsall Council,http://opendatacommunities.org/id/metropolitan-district-council/walsall,WC62 -358,30/11/2015,Childrens,REDACTED,09/11/2015,"1,284.00",76422-DIRECT PAYMENTS TO SOCIAL SERVICES CLIENTS,Transfer Payments,Transfer Payments,Revenue
Walsall Council,http://opendatacommunities.org/id/metropolitan-district-council/walsall,WC62 -359,30/11/2015,Social Care & Inclusion,REDACTED,09/11/2015,"2,652.00",76422-DIRECT PAYMENTS TO SOCIAL SERVICES CLIENTS,Transfer Payments,Transfer Payments,Revenue
Walsall Council,http://opendatacommunities.org/id/metropolitan-district-council/walsall,WC62 -360,30/11/2015,Childrens,REDACTED,09/11/2015,906.76,62515-MISCELLANEOUS SUPPLIES,Supplies & Services,Other Supplies & Services,Revenue
Walsall Council,http://opendatacommunities.org/id/metropolitan-district-council/walsall,WC62 -361,30/11/2015,Childrens,REDACTED,09/11/2015,985.76,74006-HOLIDAY/CHRISTMAS ALLOWANCE-FOSTER CARERS-OTH AGENCY PROVISION,Third Party Payments,Private Contractor Fees,Revenue
Walsall Council,http://opendatacommunities.org/id/metropolitan-district-council/walsall,WC62 -362,30/11/2015,Childrens,REDACTED,09/11/2015,"1,445.32",62515-MISCELLANEOUS SUPPLIES,Supplies & Services,Other Supplies & Services,Revenue
Walsall Council,http://opendatacommunities.org/id/metropolitan-district-council/walsall,WC62 -363,30/11/2015,Childrens,REDACTED,09/11/2015,"1,971.52",74006-HOLIDAY/CHRISTMAS ALLOWANCE-FOSTER CARERS-OTH AGENCY PROVISION,Third Party Payments,Private Contractor Fees,Revenue
Walsall Council,http://opendatacommunities.org/id/metropolitan-district-council/walsall,WC62 -364,30/11/2015,Change and Governance,BAART HARRIES NEWALL,06/11/2015,"12,552.26",63000-PROFESSIONAL FEES AND SERVICES,Supplies & Services,Services,Revenue
Walsall Council,http://opendatacommunities.org/id/metropolitan-district-council/walsall,WC62 -365,30/11/2015,Social Care & Inclusion,REDACTED,09/11/2015,863.2,76422-DIRECT PAYMENTS TO SOCIAL SERVICES CLIENTS,Transfer Payments,Transfer Payments,Revenue
Walsall Council,http://opendatacommunities.org/id/metropolitan-district-council/walsall,WC62 -366,30/11/2015,Economy & Environment,BACK CARE SOLUTIONS LTD,20/11/2015,589,60006-NEW-FURNITURE & EQUIPMENT,Supplies & Services,"Equip,Furniture & Materials",Revenue
Walsall Council,http://opendatacommunities.org/id/metropolitan-district-council/walsall,WC62 -367,30/11/2015,Economy & Environment,REDACTED,06/11/2015,901.25,63248-SURVEYS & PROF SERVICES-PAYMENT TO CONTRACTOR,Supplies & Services,Services,Revenue
Walsall Council,http://opendatacommunities.org/id/metropolitan-district-council/walsall,WC62 -368,30/11/2015,Social Care & Inclusion,REDACTED,09/11/2015,"2,849.92",76422-DIRECT PAYMENTS TO SOCIAL SERVICES CLIENTS,Transfer Payments,Transfer Payments,Revenue
Walsall Council,http://opendatacommunities.org/id/metropolitan-district-council/walsall,WC62 -369,30/11/2015,Social Care & Inclusion,REDACTED,09/11/2015,620,76422-DIRECT PAYMENTS TO SOCIAL SERVICES CLIENTS,Transfer Payments,Transfer Payments,Revenue
Walsall Council,http://opendatacommunities.org/id/metropolitan-district-council/walsall,WC62 -370,30/11/2015,Social Care & Inclusion,REDACTED,09/11/2015,"1,046.50",76422-DIRECT PAYMENTS TO SOCIAL SERVICES CLIENTS,Transfer Payments,Transfer Payments,Revenue
Walsall Council,http://opendatacommunities.org/id/metropolitan-district-council/walsall,WC62 -371,30/11/2015,Social Care & Inclusion,REDACTED,09/11/2015,"1,582.86",76422-DIRECT PAYMENTS TO SOCIAL SERVICES CLIENTS,Transfer Payments,Transfer Payments,Revenue
Walsall Council,http://opendatacommunities.org/id/metropolitan-district-council/walsall,WC62 -372,30/11/2015,Social Care & Inclusion,REDACTED,09/11/2015,"1,536.08",76422-DIRECT PAYMENTS TO SOCIAL SERVICES CLIENTS,Transfer Payments,Transfer Payments,Revenue
Walsall Council,http://opendatacommunities.org/id/metropolitan-district-council/walsall,WC62 -373,30/11/2015,Social Care & Inclusion,REDACTED,09/11/2015,632.52,76422-DIRECT PAYMENTS TO SOCIAL SERVICES CLIENTS,Transfer Payments,Transfer Payments,Revenue
Walsall Council,http://opendatacommunities.org/id/metropolitan-district-council/walsall,WC62 -374,30/11/2015,Childrens,BARNARDOS SERVICES LTD,13/11/2015,"-2,388.57",74037-INDEPENDENT FOSTER CARE-OTH AGENCY PROVISION,Third Party Payments,Private Contractor Fees,Revenue
Walsall Council,http://opendatacommunities.org/id/metropolitan-district-council/walsall,WC62 -375,30/11/2015,Childrens,BARONS COURT HOTEL,02/11/2015,370,34329-HOTEL ACCOMMODATION-EMPLOYEES,Employees,Other Staff Costs,Revenue
Walsall Council,http://opendatacommunities.org/id/metropolitan-district-council/walsall,WC62 -376,30/11/2015,Economy & Environment,BAT FABRICATIONS LTD,09/11/2015,"6,850.00",60008-MAINTENANCE-FURNITURE & EQUIPMENT,Supplies & Services,"Equip,Furniture & Materials",Revenue
Walsall Council,http://opendatacommunities.org/id/metropolitan-district-council/walsall,WC62 -377,30/11/2015,Change and Governance,BATHROOM BASICS LTD,04/11/2015,"4,500.00",01045-PRIVATE GRANTS,Capital,Capital,Capital
Walsall Council,http://opendatacommunities.org/id/metropolitan-district-council/walsall,WC62 -378,30/11/2015,Economy & Environment,BEADEN POWERLEC LIMITED,06/11/2015,"1,265.00",60008-MAINTENANCE-FURNITURE & EQUIPMENT,Supplies & Services,"Equip,Furniture & Materials",Revenue
Walsall Council,http://opendatacommunities.org/id/metropolitan-district-council/walsall,WC62 -379,30/11/2015,Childrens,REDACTED,09/11/2015,"1,219.83",62515-MISCELLANEOUS SUPPLIES,Supplies & Services,Other Supplies & Services,Revenue
Walsall Council,http://opendatacommunities.org/id/metropolitan-district-council/walsall,WC62 -380,30/11/2015,Childrens,REDACTED,09/11/2015,"1,301.84",74006-HOLIDAY/CHRISTMAS ALLOWANCE-FOSTER CARERS-OTH AGENCY PROVISION,Third Party Payments,Private Contractor Fees,Revenue
Walsall Council,http://opendatacommunities.org/id/metropolitan-district-council/walsall,WC62 -381,30/11/2015,Social Care & Inclusion,BEARWOOD NURSING HOME LTD,17/11/2015,"1,527.60",73373-RESIDENTIAL & NURSING CARE PLACEMENTS,Third Party Payments,Private Contractor Fees,Revenue
Walsall Council,http://opendatacommunities.org/id/metropolitan-district-council/walsall,WC62 -382,30/11/2015,Social Care & Inclusion,REDACTED,09/11/2015,641.76,76422-DIRECT PAYMENTS TO SOCIAL SERVICES CLIENTS,Transfer Payments,Transfer Payments,Revenue
Walsall Council,http://opendatacommunities.org/id/metropolitan-district-council/walsall,WC62 -383,30/11/2015,Childrens,REDACTED,09/11/2015,354.48,62515-MISCELLANEOUS SUPPLIES,Supplies & Services,Other Supplies & Services,Revenue
Walsall Council,http://opendatacommunities.org/id/metropolitan-district-council/walsall,WC62 -384,30/11/2015,Childrens,REDACTED,09/11/2015,571.44,74006-HOLIDAY/CHRISTMAS ALLOWANCE-FOSTER CARERS-OTH AGENCY PROVISION,Third Party Payments,Private Contractor Fees,Revenue
Walsall Council,http://opendatacommunities.org/id/metropolitan-district-council/walsall,WC62 -385,30/11/2015,Social Care & Inclusion,BELLEVUE COURT CARE HOME,10/11/2015,"1,532.96",73373-RESIDENTIAL & NURSING CARE PLACEMENTS,Third Party Payments,Private Contractor Fees,Revenue
Walsall Council,http://opendatacommunities.org/id/metropolitan-district-council/walsall,WC62 -386,30/11/2015,Social Care & Inclusion,BELLEVUE COURT CARE HOME,10/11/2015,"1,540.20",73373-RESIDENTIAL & NURSING CARE PLACEMENTS,Third Party Payments,Private Contractor Fees,Revenue
Walsall Council,http://opendatacommunities.org/id/metropolitan-district-council/walsall,WC62 -387,30/11/2015,Social Care & Inclusion,BELLEVUE COURT CARE HOME,10/11/2015,"1,577.52",73373-RESIDENTIAL & NURSING CARE PLACEMENTS,Third Party Payments,Private Contractor Fees,Revenue
Walsall Council,http://opendatacommunities.org/id/metropolitan-district-council/walsall,WC62 -388,30/11/2015,Social Care & Inclusion,REDACTED,09/11/2015,"2,205.00",76422-DIRECT PAYMENTS TO SOCIAL SERVICES CLIENTS,Transfer Payments,Transfer Payments,Revenue
Walsall Council,http://opendatacommunities.org/id/metropolitan-district-council/walsall,WC62 -389,30/11/2015,Economy & Environment,REDACTED,06/11/2015,337.5,63000-PROFESSIONAL FEES AND SERVICES,Supplies & Services,Services,Revenue
Walsall Council,http://opendatacommunities.org/id/metropolitan-district-council/walsall,WC62 -390,30/11/2015,Social Care & Inclusion,REDACTED,09/11/2015,912,76422-DIRECT PAYMENTS TO SOCIAL SERVICES CLIENTS,Transfer Payments,Transfer Payments,Revenue
Walsall Council,http://opendatacommunities.org/id/metropolitan-district-council/walsall,WC62 -391,30/11/2015,Childrens,REDACTED,09/11/2015,"1,045.32",62515-MISCELLANEOUS SUPPLIES,Supplies & Services,Other Supplies & Services,Revenue
Walsall Council,http://opendatacommunities.org/id/metropolitan-district-council/walsall,WC62 -392,30/11/2015,Childrens,REDACTED,09/11/2015,"1,142.88",74006-HOLIDAY/CHRISTMAS ALLOWANCE-FOSTER CARERS-OTH AGENCY PROVISION,Third Party Payments,Private Contractor Fees,Revenue
Walsall Council,http://opendatacommunities.org/id/metropolitan-district-council/walsall,WC62 -393,30/11/2015,Social Care & Inclusion,REDACTED,09/11/2015,968,76422-DIRECT PAYMENTS TO SOCIAL SERVICES CLIENTS,Transfer Payments,Transfer Payments,Revenue
Walsall Council,http://opendatacommunities.org/id/metropolitan-district-council/walsall,WC62 -394,30/11/2015,Social Care & Inclusion,BESCOT LODGE RESIDENTIAL CARE HOME,25/11/2015,392.16,73373-RESIDENTIAL & NURSING CARE PLACEMENTS,Third Party Payments,Private Contractor Fees,Revenue
Walsall Council,http://opendatacommunities.org/id/metropolitan-district-council/walsall,WC62 -395,30/11/2015,Social Care & Inclusion,BESCOT LODGE RESIDENTIAL CARE HOME,25/11/2015,560.23,73373-RESIDENTIAL & NURSING CARE PLACEMENTS,Third Party Payments,Private Contractor Fees,Revenue
Walsall Council,http://opendatacommunities.org/id/metropolitan-district-council/walsall,WC62 -396,30/11/2015,Social Care & Inclusion,BESCOT LODGE RESIDENTIAL CARE HOME,10/11/2015,"1,599.90",73373-RESIDENTIAL & NURSING CARE PLACEMENTS,Third Party Payments,Private Contractor Fees,Revenue
Walsall Council,http://opendatacommunities.org/id/metropolitan-district-council/walsall,WC62 -397,30/11/2015,Social Care & Inclusion,BESCOT LODGE RESIDENTIAL CARE HOME,10/11/2015,"1,599.90",73373-RESIDENTIAL & NURSING CARE PLACEMENTS,Third Party Payments,Private Contractor Fees,Revenue
Walsall Council,http://opendatacommunities.org/id/metropolitan-district-council/walsall,WC62 -398,30/11/2015,Social Care & Inclusion,BESCOT LODGE RESIDENTIAL CARE HOME,10/11/2015,"1,599.90",73373-RESIDENTIAL & NURSING CARE PLACEMENTS,Third Party Payments,Private Contractor Fees,Revenue
Walsall Council,http://opendatacommunities.org/id/metropolitan-district-council/walsall,WC62 -399,30/11/2015,Social Care & Inclusion,BESCOT LODGE RESIDENTIAL CARE HOME,10/11/2015,"1,599.90",73373-RESIDENTIAL & NURSING CARE PLACEMENTS,Third Party Payments,Private Contractor Fees,Revenue
Walsall Council,http://opendatacommunities.org/id/metropolitan-district-council/walsall,WC62 -400,30/11/2015,Social Care & Inclusion,BESCOT LODGE RESIDENTIAL CARE HOME,25/11/2015,"1,599.90",73373-RESIDENTIAL & NURSING CARE PLACEMENTS,Third Party Payments,Private Contractor Fees,Revenue
Walsall Council,http://opendatacommunities.org/id/metropolitan-district-council/walsall,WC62 -401,30/11/2015,Social Care & Inclusion,BESCOT LODGE RESIDENTIAL CARE HOME,10/11/2015,"1,680.69",73373-RESIDENTIAL & NURSING CARE PLACEMENTS,Third Party Payments,Private Contractor Fees,Revenue
Walsall Council,http://opendatacommunities.org/id/metropolitan-district-council/walsall,WC62 -402,30/11/2015,Social Care & Inclusion,BESCOT LODGE RESIDENTIAL CARE HOME,10/11/2015,"1,680.69",73373-RESIDENTIAL & NURSING CARE PLACEMENTS,Third Party Payments,Private Contractor Fees,Revenue
Walsall Council,http://opendatacommunities.org/id/metropolitan-district-council/walsall,WC62 -403,30/11/2015,Social Care & Inclusion,BESCOT LODGE RESIDENTIAL CARE HOME,10/11/2015,"1,698.73",73373-RESIDENTIAL & NURSING CARE PLACEMENTS,Third Party Payments,Private Contractor Fees,Revenue
Walsall Council,http://opendatacommunities.org/id/metropolitan-district-council/walsall,WC62 -404,30/11/2015,Economy & Environment,BESCOT STADIUM SUNDAY MARKET LTD,12/11/2015,"2,800.00",73025-PROFESSIONAL SERVICES-PRIV CONTRACTOR & OTHER AGENCIES,Third Party Payments,Private Contractor Fees,Revenue
Walsall Council,http://opendatacommunities.org/id/metropolitan-district-council/walsall,WC62 -405,30/11/2015,Social Care & Inclusion,BESWICK HOUSE SUPPORTED ACCOMMODATION LTD,11/11/2015,"15,045.79",73365-BLOCK GROSS-SUPPORTING PEOPLE,Third Party Payments,Private Contractor Fees,Revenue
Walsall Council,http://opendatacommunities.org/id/metropolitan-district-council/walsall,WC62 -406,30/11/2015,Social Care & Inclusion,REDACTED,09/11/2015,949.52,76422-DIRECT PAYMENTS TO SOCIAL SERVICES CLIENTS,Transfer Payments,Transfer Payments,Revenue
Walsall Council,http://opendatacommunities.org/id/metropolitan-district-council/walsall,WC62 -407,30/11/2015,Social Care & Inclusion,REDACTED,09/11/2015,"1,984.70",76422-DIRECT PAYMENTS TO SOCIAL SERVICES CLIENTS,Transfer Payments,Transfer Payments,Revenue
Walsall Council,http://opendatacommunities.org/id/metropolitan-district-council/walsall,WC62 -408,30/11/2015,Economy & Environment,BIFFA WASTE SERVICES LTD,19/11/2015,700.92,73005-LANDFILL PTYS-PRIV CONTRACTOR FEES,Third Party Payments,Private Contractor Fees,Revenue
Walsall Council,http://opendatacommunities.org/id/metropolitan-district-council/walsall,WC62 -409,30/11/2015,Economy & Environment,BIFFA WASTE SERVICES LTD,04/11/2015,"2,020.49",73005-LANDFILL PTYS-PRIV CONTRACTOR FEES,Third Party Payments,Private Contractor Fees,Revenue
Walsall Council,http://opendatacommunities.org/id/metropolitan-district-council/walsall,WC62 -410,30/11/2015,Economy & Environment,BIFFA WASTE SERVICES LTD,19/11/2015,"4,376.15",73039-LANDFILL TAX-PRIV CONTRACTOR FEES,Third Party Payments,Private Contractor Fees,Revenue
Walsall Council,http://opendatacommunities.org/id/metropolitan-district-council/walsall,WC62 -411,30/11/2015,Economy & Environment,BIFFA WASTE SERVICES LTD,04/11/2015,"12,614.67",73039-LANDFILL TAX-PRIV CONTRACTOR FEES,Third Party Payments,Private Contractor Fees,Revenue
Walsall Council,http://opendatacommunities.org/id/metropolitan-district-council/walsall,WC62 -412,30/11/2015,Childrens,REDACTED,09/11/2015,487.72,76422-DIRECT PAYMENTS TO SOCIAL SERVICES CLIENTS,Transfer Payments,Transfer Payments,Revenue
Walsall Council,http://opendatacommunities.org/id/metropolitan-district-council/walsall,WC62 -413,30/11/2015,Childrens,REDACTED,09/11/2015,537.2,76422-DIRECT PAYMENTS TO SOCIAL SERVICES CLIENTS,Transfer Payments,Transfer Payments,Revenue
Walsall Council,http://opendatacommunities.org/id/metropolitan-district-council/walsall,WC62 -414,30/11/2015,Change and Governance,BILSTON BATHROOMS,01/11/2015,"4,790.28",01045-PRIVATE GRANTS,Capital,Capital,Capital
Walsall Council,http://opendatacommunities.org/id/metropolitan-district-council/walsall,WC62 -415,30/11/2015,Childrens,BIRCHILLS C OF E COMMUNITY ACADEMY,05/11/2015,"-2,626.87",66502-TOP UP FUNDING -GRANTS TO SCHOOLS,Third Party Payments,Grants to Other Orgs,Revenue
Walsall Council,http://opendatacommunities.org/id/metropolitan-district-council/walsall,WC62 -416,30/11/2015,Childrens,BIRCHILLS C OF E COMMUNITY ACADEMY,09/11/2015,581,66505-OTHER-GRANTS TO OTHER ORGS,Third Party Payments,Grants to Other Orgs,Revenue
Walsall Council,http://opendatacommunities.org/id/metropolitan-district-council/walsall,WC62 -417,30/11/2015,Childrens,BIRCHILLS C OF E COMMUNITY ACADEMY,23/11/2015,"8,499.84",66505-OTHER-GRANTS TO OTHER ORGS,Third Party Payments,Grants to Other Orgs,Revenue
Walsall Council,http://opendatacommunities.org/id/metropolitan-district-council/walsall,WC62 -418,30/11/2015,Economy & Environment,BIRMINGHAM CITY COUNCIL,16/11/2015,"5,085.00",71000-PAYMENTS FOR SERVICES FROM OTHER LOCAL AUTHORITIES,Third Party Payments,Private Contractor Fees,Revenue
Walsall Council,http://opendatacommunities.org/id/metropolitan-district-council/walsall,WC62 -419,30/11/2015,Economy & Environment,BIRMINGHAM CITY COUNCIL,16/11/2015,"10,170.50",71000-PAYMENTS FOR SERVICES FROM OTHER LOCAL AUTHORITIES,Third Party Payments,Private Contractor Fees,Revenue
Walsall Council,http://opendatacommunities.org/id/metropolitan-district-council/walsall,WC62 -420,30/11/2015,Economy & Environment,BIRMINGHAM MUSEUMS TRUST,10/11/2015,500,63000-PROFESSIONAL FEES AND SERVICES,Supplies & Services,Services,Revenue
Walsall Council,http://opendatacommunities.org/id/metropolitan-district-council/walsall,WC62 -421,30/11/2015,Social Care & Inclusion,BLACK COUNTRY PARTNERSHIP NHS,02/11/2015,"3,960.00",73375-IN PATIENT BEDS,Third Party Payments,Private Contractor Fees,Revenue
Walsall Council,http://opendatacommunities.org/id/metropolitan-district-council/walsall,WC62 -422,30/11/2015,Social Care & Inclusion,BLACK COUNTRY PARTNERSHIP NHS,02/11/2015,"9,000.00",73375-IN PATIENT BEDS,Third Party Payments,Private Contractor Fees,Revenue
Walsall Council,http://opendatacommunities.org/id/metropolitan-district-council/walsall,WC62 -423,30/11/2015,Social Care & Inclusion,BLACK COUNTRY PARTNERSHIP NHS,02/11/2015,"10,080.00",73375-IN PATIENT BEDS,Third Party Payments,Private Contractor Fees,Revenue
Walsall Council,http://opendatacommunities.org/id/metropolitan-district-council/walsall,WC62 -424,30/11/2015,Social Care & Inclusion,BLACK COUNTRY PARTNERSHIP NHS,02/11/2015,"11,400.00",73375-IN PATIENT BEDS,Third Party Payments,Private Contractor Fees,Revenue
Walsall Council,http://opendatacommunities.org/id/metropolitan-district-council/walsall,WC62 -425,30/11/2015,Social Care & Inclusion,BLACK COUNTRY PARTNERSHIP NHS,16/11/2015,"15,300.00",73375-IN PATIENT BEDS,Third Party Payments,Private Contractor Fees,Revenue
Walsall Council,http://opendatacommunities.org/id/metropolitan-district-council/walsall,WC62 -426,30/11/2015,Social Care & Inclusion,BLACK COUNTRY PARTNERSHIP NHS,05/11/2015,"15,810.00",73375-IN PATIENT BEDS,Third Party Payments,Private Contractor Fees,Revenue
Walsall Council,http://opendatacommunities.org/id/metropolitan-district-council/walsall,WC62 -427,30/11/2015,Social Care & Inclusion,BLACK COUNTRY PARTNERSHIP NHS,02/11/2015,"16,800.00",73375-IN PATIENT BEDS,Third Party Payments,Private Contractor Fees,Revenue
Walsall Council,http://opendatacommunities.org/id/metropolitan-district-council/walsall,WC62 -428,30/11/2015,Social Care & Inclusion,BLACK COUNTRY PARTNERSHIP NHS,02/11/2015,"18,600.00",73375-IN PATIENT BEDS,Third Party Payments,Private Contractor Fees,Revenue
Walsall Council,http://opendatacommunities.org/id/metropolitan-district-council/walsall,WC62 -429,30/11/2015,Social Care & Inclusion,BLACK COUNTRY PARTNERSHIP NHS,02/11/2015,"33,600.00",73375-IN PATIENT BEDS,Third Party Payments,Private Contractor Fees,Revenue
Walsall Council,http://opendatacommunities.org/id/metropolitan-district-council/walsall,WC62 -430,30/11/2015,Social Care & Inclusion,BLACK COUNTRY PARTNERSHIP NHS,13/11/2015,"264,038.00",71007-CONTRIBUTION TO PCT,Third Party Payments,Joint Arrangements,Revenue
Walsall Council,http://opendatacommunities.org/id/metropolitan-district-council/walsall,WC62 -431,30/11/2015,Social Care & Inclusion,BLACK COUNTRY PARTNERSHIP NHS,16/11/2015,"264,038.00",71007-CONTRIBUTION TO PCT,Third Party Payments,Joint Arrangements,Revenue
Walsall Council,http://opendatacommunities.org/id/metropolitan-district-council/walsall,WC62 -432,30/11/2015,Childrens,BLACKHEATH PRIMARY SCHOOL,04/11/2015,501,77300-ISB-FORMULA ALLOCATION,Transfer Payments,Transfer Payments,Revenue
Walsall Council,http://opendatacommunities.org/id/metropolitan-district-council/walsall,WC62 -433,30/11/2015,Economy & Environment,BLAIN SOUTHERN LIMITED,05/11/2015,671.95,60529-SHOP STOCK-MATERIALS,Supplies & Services,"Equip,Furniture & Materials",Revenue
Walsall Council,http://opendatacommunities.org/id/metropolitan-district-council/walsall,WC62 -434,30/11/2015,Economy & Environment,BLAIN SOUTHERN LIMITED,11/11/2015,969.31,60529-SHOP STOCK-MATERIALS,Supplies & Services,"Equip,Furniture & Materials",Revenue
Walsall Council,http://opendatacommunities.org/id/metropolitan-district-council/walsall,WC62 -435,30/11/2015,Childrens,BLAKENALL HEATH JMI SCHOOL,18/11/2015,"5,270.00",77200-TRANSFER PAYMENTS-OTHER SCHOOLCHILDREN/STUDENT RELATED ITEMS,Transfer Payments,Transfer Payments,Revenue
Walsall Council,http://opendatacommunities.org/id/metropolitan-district-council/walsall,WC62 -436,30/11/2015,Childrens,BLAKENALL HEATH JMI SCHOOL,23/11/2015,"88,933.93",77300-ISB-FORMULA ALLOCATION,Transfer Payments,Transfer Payments,Revenue
Walsall Council,http://opendatacommunities.org/id/metropolitan-district-council/walsall,WC62 -437,30/11/2015,Childrens,BLOXWICH & BLAKENHALL CLUSTER C/O PELSALL VILLAGE SCHOOL,18/11/2015,"10,000.00",63000-PROFESSIONAL FEES AND SERVICES,Supplies & Services,Services,Revenue
Walsall Council,http://opendatacommunities.org/id/metropolitan-district-council/walsall,WC62 -438,30/11/2015,Childrens,BLOXWICH ACADEMY,09/11/2015,581,66505-OTHER-GRANTS TO OTHER ORGS,Third Party Payments,Grants to Other Orgs,Revenue
Walsall Council,http://opendatacommunities.org/id/metropolitan-district-council/walsall,WC62 -439,30/11/2015,Childrens,BLOXWICH ACADEMY,01/11/2015,"9,652.30",66505-OTHER-GRANTS TO OTHER ORGS,Third Party Payments,Grants to Other Orgs,Revenue
Walsall Council,http://opendatacommunities.org/id/metropolitan-district-council/walsall,WC62 -440,30/11/2015,Childrens,BLOXWICH ACADEMY,23/11/2015,"9,652.30",66505-OTHER-GRANTS TO OTHER ORGS,Third Party Payments,Grants to Other Orgs,Revenue
Walsall Council,http://opendatacommunities.org/id/metropolitan-district-council/walsall,WC62 -441,30/11/2015,Social Care & Inclusion,BLOXWICH COMMUNITY PARTNERSHIP.,01/11/2015,420,73374-SUPPORTED & OTHER ACCOMMODATION,Third Party Payments,Private Contractor Fees,Revenue
Walsall Council,http://opendatacommunities.org/id/metropolitan-district-council/walsall,WC62 -442,30/11/2015,Social Care & Inclusion,BLOXWICH COMMUNITY PARTNERSHIP.,03/11/2015,600,73374-SUPPORTED & OTHER ACCOMMODATION,Third Party Payments,Private Contractor Fees,Revenue
Walsall Council,http://opendatacommunities.org/id/metropolitan-district-council/walsall,WC62 -443,30/11/2015,Childrens,BLOXWICH RADIO TAXIS,02/11/2015,"1,200.00",52000-WITH DRIVER-HIRE OF VEHICLES,Transport,Hire,Revenue
Walsall Council,http://opendatacommunities.org/id/metropolitan-district-council/walsall,WC62 -444,30/11/2015,Economy & Environment,BME UNITED LTD,16/11/2015,"4,937.00",63000-PROFESSIONAL FEES AND SERVICES,Supplies & Services,Services,Revenue
Walsall Council,http://opendatacommunities.org/id/metropolitan-district-council/walsall,WC62 -445,30/11/2015,Economy & Environment,BOC LTD,04/11/2015,253.65,60514-MATERIALS TO STORES,Supplies & Services,"Equip,Furniture & Materials",Revenue
Walsall Council,http://opendatacommunities.org/id/metropolitan-district-council/walsall,WC62 -446,30/11/2015,Economy & Environment,BOLINDA UK LTD,06/11/2015,595.82,60501-LIBRARY BOOKS,Supplies & Services,"Equip,Furniture & Materials",Revenue
Walsall Council,http://opendatacommunities.org/id/metropolitan-district-council/walsall,WC62 -447,30/11/2015,Economy & Environment,BOLINDA UK LTD,09/11/2015,689.31,60501-LIBRARY BOOKS,Supplies & Services,"Equip,Furniture & Materials",Revenue
Walsall Council,http://opendatacommunities.org/id/metropolitan-district-council/walsall,WC62 -448,30/11/2015,Economy & Environment,BOOKS ASIA,06/11/2015,501.52,60501-LIBRARY BOOKS,Supplies & Services,"Equip,Furniture & Materials",Revenue
Walsall Council,http://opendatacommunities.org/id/metropolitan-district-council/walsall,WC62 -449,30/11/2015,Economy & Environment,BOOKTRUST,04/11/2015,250,60500-GENERAL MATERIALS,Supplies & Services,"Equip,Furniture & Materials",Revenue
Walsall Council,http://opendatacommunities.org/id/metropolitan-district-council/walsall,WC62 -450,30/11/2015,Childrens,BOULTON TRAVEL LIMITED,01/11/2015,"2,562.00",52000-WITH DRIVER-HIRE OF VEHICLES,Transport,Hire,Revenue
Walsall Council,http://opendatacommunities.org/id/metropolitan-district-council/walsall,WC62 -451,30/11/2015,Economy & Environment,BOULTONS NURSERIES,06/11/2015,342.25,60500-GENERAL MATERIALS,Supplies & Services,"Equip,Furniture & Materials",Revenue
Walsall Council,http://opendatacommunities.org/id/metropolitan-district-council/walsall,WC62 -452,30/11/2015,Social Care & Inclusion,BOWDEN DERRA PARK,17/11/2015,"10,502.76",73373-RESIDENTIAL & NURSING CARE PLACEMENTS,Third Party Payments,Private Contractor Fees,Revenue
Walsall Council,http://opendatacommunities.org/id/metropolitan-district-council/walsall,WC62 -453,30/11/2015,Change and Governance,BRADLEY BUILDERS,12/11/2015,"3,920.00",01045-PRIVATE GRANTS,Capital,Capital,Capital
Walsall Council,http://opendatacommunities.org/id/metropolitan-district-council/walsall,WC62 -454,30/11/2015,Economy & Environment,BRELMAYNE LTD,17/11/2015,210.6,63000-PROFESSIONAL FEES AND SERVICES,Supplies & Services,Services,Revenue
Walsall Council,http://opendatacommunities.org/id/metropolitan-district-council/walsall,WC62 -455,30/11/2015,Economy & Environment,BRELMAYNE LTD,17/11/2015,447,63000-PROFESSIONAL FEES AND SERVICES,Supplies & Services,Services,Revenue
Walsall Council,http://opendatacommunities.org/id/metropolitan-district-council/walsall,WC62 -456,30/11/2015,Social Care & Inclusion,REDACTED,09/11/2015,440,76422-DIRECT PAYMENTS TO SOCIAL SERVICES CLIENTS,Transfer Payments,Transfer Payments,Revenue
Walsall Council,http://opendatacommunities.org/id/metropolitan-district-council/walsall,WC62 -457,30/11/2015,Childrens,REDACTED,09/11/2015,"1,301.84",74006-HOLIDAY/CHRISTMAS ALLOWANCE-FOSTER CARERS-OTH AGENCY PROVISION,Third Party Payments,Private Contractor Fees,Revenue
Walsall Council,http://opendatacommunities.org/id/metropolitan-district-council/walsall,WC62 -458,30/11/2015,Childrens,REDACTED,09/11/2015,"1,682.57",62515-MISCELLANEOUS SUPPLIES,Supplies & Services,Other Supplies & Services,Revenue
Walsall Council,http://opendatacommunities.org/id/metropolitan-district-council/walsall,WC62 -459,30/11/2015,Social Care & Inclusion,REDACTED,09/11/2015,544,76422-DIRECT PAYMENTS TO SOCIAL SERVICES CLIENTS,Transfer Payments,Transfer Payments,Revenue
Walsall Council,http://opendatacommunities.org/id/metropolitan-district-council/walsall,WC62 -460,30/11/2015,Social Care & Inclusion,REDACTED,09/11/2015,493.2,76422-DIRECT PAYMENTS TO SOCIAL SERVICES CLIENTS,Transfer Payments,Transfer Payments,Revenue
Walsall Council,http://opendatacommunities.org/id/metropolitan-district-council/walsall,WC62 -461,30/11/2015,Social Care & Inclusion,REDACTED,09/11/2015,"1,294.80",76422-DIRECT PAYMENTS TO SOCIAL SERVICES CLIENTS,Transfer Payments,Transfer Payments,Revenue
Walsall Council,http://opendatacommunities.org/id/metropolitan-district-council/walsall,WC62 -462,30/11/2015,Social Care & Inclusion,REDACTED,09/11/2015,697,76422-DIRECT PAYMENTS TO SOCIAL SERVICES CLIENTS,Transfer Payments,Transfer Payments,Revenue
Walsall Council,http://opendatacommunities.org/id/metropolitan-district-council/walsall,WC62 -463,30/11/2015,Social Care & Inclusion,BRIDGEWOOD HEALTH CARE LTD,17/11/2015,"5,513.72",73373-RESIDENTIAL & NURSING CARE PLACEMENTS,Third Party Payments,Private Contractor Fees,Revenue
Walsall Council,http://opendatacommunities.org/id/metropolitan-district-council/walsall,WC62 -464,30/11/2015,Economy & Environment,BRIDLE SECURITY FENCING CONTRACTORS,09/11/2015,895,01006-SITE WORKS MAIN CONTRACTORS,Capital,Capital,Capital
Walsall Council,http://opendatacommunities.org/id/metropolitan-district-council/walsall,WC62 -465,30/11/2015,Economy & Environment,BRIDLE SECURITY FENCING CONTRACTORS,06/11/2015,"3,200.00",01006-SITE WORKS MAIN CONTRACTORS,Capital,Capital,Capital
Walsall Council,http://opendatacommunities.org/id/metropolitan-district-council/walsall,WC62 -466,30/11/2015,Change and Governance,BRISTOL OILSKIN & OVERALL CO,18/11/2015,325.8,60006-NEW-FURNITURE & EQUIPMENT,Supplies & Services,"Equip,Furniture & Materials",Revenue
Walsall Council,http://opendatacommunities.org/id/metropolitan-district-council/walsall,WC62 -467,30/11/2015,Change and Governance,BRISTOL OILSKIN & OVERALL CO,18/11/2015,389,61502-PROTECTIVE CLOTHING & UNIFORM,Supplies & Services,"Equip,Furniture & Materials",Revenue
Walsall Council,http://opendatacommunities.org/id/metropolitan-district-council/walsall,WC62 -468,30/11/2015,Change and Governance,BRISTOL OILSKIN & OVERALL CO,18/11/2015,"1,770.00",61502-PROTECTIVE CLOTHING & UNIFORM,Supplies & Services,"Equip,Furniture & Materials",Revenue
Walsall Council,http://opendatacommunities.org/id/metropolitan-district-council/walsall,WC62 -469,30/11/2015,Change and Governance,BRISTOW & SUTOR,11/11/2015,235.22,63102-CONSULTANTS FEES - CORPORATE,Supplies & Services,Services,Revenue
Walsall Council,http://opendatacommunities.org/id/metropolitan-district-council/walsall,WC62 -470,30/11/2015,Change and Governance,BRISTOW & SUTOR,17/11/2015,300,63102-CONSULTANTS FEES - CORPORATE,Supplies & Services,Services,Revenue
Walsall Council,http://opendatacommunities.org/id/metropolitan-district-council/walsall,WC62 -471,30/11/2015,Change and Governance,BRISTOW & SUTOR,17/11/2015,375,63102-CONSULTANTS FEES - CORPORATE,Supplies & Services,Services,Revenue
Walsall Council,http://opendatacommunities.org/id/metropolitan-district-council/walsall,WC62 -472,30/11/2015,Childrens,BRITANNIA APPRENTICESHIPS LTD,11/11/2015,506.16,65500-GRANTS TO ASSOCIATIONS,Third Party Payments,Grants to Other Orgs,Revenue
Walsall Council,http://opendatacommunities.org/id/metropolitan-district-council/walsall,WC62 -473,30/11/2015,Economy & Environment,BRITANNIA APPRENTICESHIPS LTD,02/11/2015,"1,125.00",66500-GRANTS TO OTHER ORGS,Third Party Payments,Grants to Other Orgs,Revenue
Walsall Council,http://opendatacommunities.org/id/metropolitan-district-council/walsall,WC62 -474,30/11/2015,Childrens,BRITISH GAS BUSINESS,19/11/2015,215.54,42000-GAS-ENERGY COSTS,Premises,Utilities,Revenue
Walsall Council,http://opendatacommunities.org/id/metropolitan-district-council/walsall,WC62 -475,30/11/2015,Childrens,BRITISH GAS BUSINESS,19/11/2015,261.94,42000-GAS-ENERGY COSTS,Premises,Utilities,Revenue
Walsall Council,http://opendatacommunities.org/id/metropolitan-district-council/walsall,WC62 -476,30/11/2015,Change and Governance,BRITISH GAS BUSINESS,04/11/2015,426.09,42001-GAS METERED-ENERGY COSTS,Premises,Utilities,Revenue
Walsall Council,http://opendatacommunities.org/id/metropolitan-district-council/walsall,WC62 -477,30/11/2015,Childrens,BRITISH GAS BUSINESS,16/11/2015,530.3,42000-GAS-ENERGY COSTS,Premises,Utilities,Revenue
Walsall Council,http://opendatacommunities.org/id/metropolitan-district-council/walsall,WC62 -478,30/11/2015,Economy & Environment,BRITISH HGV TRAINING GROUP,24/11/2015,300,30030-EXTERNAL TRAINING,Employees,Training,Revenue
Walsall Council,http://opendatacommunities.org/id/metropolitan-district-council/walsall,WC62 -479,30/11/2015,Economy & Environment,BRITISH TELECOMMUNICATIONS LTD,09/11/2015,"1,625.04",01028-OTHER PURCHASE COSTS,Capital,Capital,Capital
Walsall Council,http://opendatacommunities.org/id/metropolitan-district-council/walsall,WC62 -480,30/11/2015,Economy & Environment,BRITISH TELECOMMUNICATIONS LTD,01/11/2015,"17,269.78",63601-COSTS (NOT INTERNAL RECHARGES)-TELEPHONES,Supplies & Services,Communications & Computing,Revenue
Walsall Council,http://opendatacommunities.org/id/metropolitan-district-council/walsall,WC62 -481,30/11/2015,Economy & Environment,BROOK YOUNG PEOPLE,01/11/2015,"-1,977.83",63000-PROFESSIONAL FEES AND SERVICES,Supplies & Services,Services,Revenue
Walsall Council,http://opendatacommunities.org/id/metropolitan-district-council/walsall,WC62 -482,30/11/2015,Economy & Environment,BROOK YOUNG PEOPLE,01/11/2015,"5,933.50",63000-PROFESSIONAL FEES AND SERVICES,Supplies & Services,Services,Revenue
Walsall Council,http://opendatacommunities.org/id/metropolitan-district-council/walsall,WC62 -483,30/11/2015,Economy & Environment,BROWNHILLS ASPHALT & TARMAC LIMITED,01/11/2015,341,60500-GENERAL MATERIALS,Supplies & Services,"Equip,Furniture & Materials",Revenue
Walsall Council,http://opendatacommunities.org/id/metropolitan-district-council/walsall,WC62 -484,30/11/2015,Economy & Environment,BROWNHILLS ASPHALT & TARMAC LIMITED,01/11/2015,374,60500-GENERAL MATERIALS,Supplies & Services,"Equip,Furniture & Materials",Revenue
Walsall Council,http://opendatacommunities.org/id/metropolitan-district-council/walsall,WC62 -485,30/11/2015,Economy & Environment,BROWNHILLS ASPHALT & TARMAC LIMITED,20/11/2015,780,60500-GENERAL MATERIALS,Supplies & Services,"Equip,Furniture & Materials",Revenue
Walsall Council,http://opendatacommunities.org/id/metropolitan-district-council/walsall,WC62 -486,30/11/2015,Economy & Environment,BROWNHILLS ASPHALT & TARMAC LIMITED,01/11/2015,"1,034.00",60500-GENERAL MATERIALS,Supplies & Services,"Equip,Furniture & Materials",Revenue
Walsall Council,http://opendatacommunities.org/id/metropolitan-district-council/walsall,WC62 -487,30/11/2015,Childrens,BROWNHILLS ASPHALT & TARMAC LIMITED,02/11/2015,"1,900.00",01006-SITE WORKS MAIN CONTRACTORS,Capital,Capital,Capital
Walsall Council,http://opendatacommunities.org/id/metropolitan-district-council/walsall,WC62 -488,30/11/2015,Economy & Environment,BROWNHILLS ASPHALT & TARMAC LIMITED,17/11/2015,"4,836.00","40000-REPAIRS,ALTERATIONS & MAINTENANCE-PREM",Premises,Premises-Repairs & Maintenance,Revenue
Walsall Council,http://opendatacommunities.org/id/metropolitan-district-council/walsall,WC62 -489,30/11/2015,Economy & Environment,BROWNHILLS ASPHALT & TARMAC LIMITED,13/11/2015,"4,855.00",63239-EXTERNAL WORKS-PAYMENT TO CONTRACTOR,Third Party Payments,Private Contractor Fees,Revenue
Walsall Council,http://opendatacommunities.org/id/metropolitan-district-council/walsall,WC62 -490,30/11/2015,Childrens,BROWNHILLS ASPHALT & TARMAC LIMITED,17/11/2015,"10,350.00","40000-REPAIRS,ALTERATIONS & MAINTENANCE-PREM",Premises,Premises-Repairs & Maintenance,Revenue
Walsall Council,http://opendatacommunities.org/id/metropolitan-district-council/walsall,WC62 -491,30/11/2015,Economy & Environment,BROWNHILLS ASPHALT & TARMAC LIMITED,23/11/2015,"11,929.00",63239-EXTERNAL WORKS-PAYMENT TO CONTRACTOR,Third Party Payments,Private Contractor Fees,Revenue
Walsall Council,http://opendatacommunities.org/id/metropolitan-district-council/walsall,WC62 -492,30/11/2015,Childrens,BROWNHILLS ASPHALT & TARMAC LIMITED,17/11/2015,"16,300.00",01006-SITE WORKS MAIN CONTRACTORS,Capital,Capital,Capital
Walsall Council,http://opendatacommunities.org/id/metropolitan-district-council/walsall,WC62 -493,30/11/2015,Economy & Environment,BROWNHILLS SKIP HIRE,01/11/2015,300,66500-GRANTS TO OTHER ORGS,Third Party Payments,Grants to Other Orgs,Revenue
Walsall Council,http://opendatacommunities.org/id/metropolitan-district-council/walsall,WC62 -494,30/11/2015,Social Care & Inclusion,REDACTED,09/11/2015,"1,445.00",76422-DIRECT PAYMENTS TO SOCIAL SERVICES CLIENTS,Transfer Payments,Transfer Payments,Revenue
Walsall Council,http://opendatacommunities.org/id/metropolitan-district-council/walsall,WC62 -495,30/11/2015,Social Care & Inclusion,REDACTED,09/11/2015,849.87,76422-DIRECT PAYMENTS TO SOCIAL SERVICES CLIENTS,Transfer Payments,Transfer Payments,Revenue
Walsall Council,http://opendatacommunities.org/id/metropolitan-district-council/walsall,WC62 -496,30/11/2015,Change and Governance,B-SURE SECURITY SERVICES LTD,04/11/2015,785,63800-COMPUTER EQUIPMENT AND SUPPLIES,Supplies & Services,Communications & Computing,Revenue
Walsall Council,http://opendatacommunities.org/id/metropolitan-district-council/walsall,WC62 -497,30/11/2015,Change and Governance,BT PLC,16/11/2015,263.62,63800-COMPUTER EQUIPMENT AND SUPPLIES,Supplies & Services,Communications & Computing,Revenue
Walsall Council,http://opendatacommunities.org/id/metropolitan-district-council/walsall,WC62 -498,30/11/2015,Change and Governance,BT PLC,05/11/2015,970,63603-COST OF CALLS-TELEPHONES,Supplies & Services,Communications & Computing,Revenue
Walsall Council,http://opendatacommunities.org/id/metropolitan-district-council/walsall,WC62 -499,30/11/2015,Change and Governance,BT PLC,01/11/2015,"1,424.20",63601-COSTS (NOT INTERNAL RECHARGES)-TELEPHONES,Supplies & Services,Communications & Computing,Revenue
Walsall Council,http://opendatacommunities.org/id/metropolitan-district-council/walsall,WC62 -500,30/11/2015,Change and Governance,BUILDING RECRUITMENT COMPANY,13/11/2015,465.6,73025-PROFESSIONAL SERVICES-PRIV CONTRACTOR & OTHER AGENCIES,Third Party Payments,Private Contractor Fees,Revenue
Walsall Council,http://opendatacommunities.org/id/metropolitan-district-council/walsall,WC62 -501,30/11/2015,Change and Governance,BUILDING RECRUITMENT COMPANY,13/11/2015,644,73025-PROFESSIONAL SERVICES-PRIV CONTRACTOR & OTHER AGENCIES,Third Party Payments,Private Contractor Fees,Revenue
Walsall Council,http://opendatacommunities.org/id/metropolitan-district-council/walsall,WC62 -502,30/11/2015,Change and Governance,BUILDING RECRUITMENT COMPANY,06/11/2015,719.89,73025-PROFESSIONAL SERVICES-PRIV CONTRACTOR & OTHER AGENCIES,Third Party Payments,Private Contractor Fees,Revenue
Walsall Council,http://opendatacommunities.org/id/metropolitan-district-council/walsall,WC62 -503,30/11/2015,Change and Governance,BUILDING RECRUITMENT COMPANY,13/11/2015,910,73025-PROFESSIONAL SERVICES-PRIV CONTRACTOR & OTHER AGENCIES,Third Party Payments,Private Contractor Fees,Revenue
Walsall Council,http://opendatacommunities.org/id/metropolitan-district-council/walsall,WC62 -504,30/11/2015,Change and Governance,BUILDING RECRUITMENT COMPANY,11/11/2015,"1,033.70",73025-PROFESSIONAL SERVICES-PRIV CONTRACTOR & OTHER AGENCIES,Third Party Payments,Private Contractor Fees,Revenue
Walsall Council,http://opendatacommunities.org/id/metropolitan-district-council/walsall,WC62 -505,30/11/2015,Change and Governance,BUILDING RECRUITMENT COMPANY,11/11/2015,"1,073.70",73025-PROFESSIONAL SERVICES-PRIV CONTRACTOR & OTHER AGENCIES,Third Party Payments,Private Contractor Fees,Revenue
Walsall Council,http://opendatacommunities.org/id/metropolitan-district-council/walsall,WC62 -506,30/11/2015,Change and Governance,BUILDING RECRUITMENT COMPANY,17/11/2015,"1,078.00",73025-PROFESSIONAL SERVICES-PRIV CONTRACTOR & OTHER AGENCIES,Third Party Payments,Private Contractor Fees,Revenue
Walsall Council,http://opendatacommunities.org/id/metropolitan-district-council/walsall,WC62 -507,30/11/2015,Change and Governance,BUILDING RECRUITMENT COMPANY,03/11/2015,"1,085.10",73025-PROFESSIONAL SERVICES-PRIV CONTRACTOR & OTHER AGENCIES,Third Party Payments,Private Contractor Fees,Revenue
Walsall Council,http://opendatacommunities.org/id/metropolitan-district-council/walsall,WC62 -508,30/11/2015,Change and Governance,BUILDING RECRUITMENT COMPANY,11/11/2015,"1,086.50",73025-PROFESSIONAL SERVICES-PRIV CONTRACTOR & OTHER AGENCIES,Third Party Payments,Private Contractor Fees,Revenue
Walsall Council,http://opendatacommunities.org/id/metropolitan-district-council/walsall,WC62 -509,30/11/2015,Change and Governance,BUILDING RECRUITMENT COMPANY,13/11/2015,"1,126.00",73025-PROFESSIONAL SERVICES-PRIV CONTRACTOR & OTHER AGENCIES,Third Party Payments,Private Contractor Fees,Revenue
Walsall Council,http://opendatacommunities.org/id/metropolitan-district-council/walsall,WC62 -510,30/11/2015,Change and Governance,BUILDING RECRUITMENT COMPANY,06/11/2015,"1,131.50",73025-PROFESSIONAL SERVICES-PRIV CONTRACTOR & OTHER AGENCIES,Third Party Payments,Private Contractor Fees,Revenue
Walsall Council,http://opendatacommunities.org/id/metropolitan-district-council/walsall,WC62 -511,30/11/2015,Change and Governance,BUILDING RECRUITMENT COMPANY,11/11/2015,"1,131.50",73025-PROFESSIONAL SERVICES-PRIV CONTRACTOR & OTHER AGENCIES,Third Party Payments,Private Contractor Fees,Revenue
Walsall Council,http://opendatacommunities.org/id/metropolitan-district-council/walsall,WC62 -512,30/11/2015,Change and Governance,BUILDING RECRUITMENT COMPANY,13/11/2015,"1,137.35",73025-PROFESSIONAL SERVICES-PRIV CONTRACTOR & OTHER AGENCIES,Third Party Payments,Private Contractor Fees,Revenue
Walsall Council,http://opendatacommunities.org/id/metropolitan-district-council/walsall,WC62 -513,30/11/2015,Change and Governance,BUILDING RECRUITMENT COMPANY,11/11/2015,"1,152.90",73025-PROFESSIONAL SERVICES-PRIV CONTRACTOR & OTHER AGENCIES,Third Party Payments,Private Contractor Fees,Revenue
Walsall Council,http://opendatacommunities.org/id/metropolitan-district-council/walsall,WC62 -514,30/11/2015,Change and Governance,BUILDING RECRUITMENT COMPANY,11/11/2015,"1,152.90",73025-PROFESSIONAL SERVICES-PRIV CONTRACTOR & OTHER AGENCIES,Third Party Payments,Private Contractor Fees,Revenue
Walsall Council,http://opendatacommunities.org/id/metropolitan-district-council/walsall,WC62 -515,30/11/2015,Change and Governance,BUILDING RECRUITMENT COMPANY,11/11/2015,"1,152.90",73025-PROFESSIONAL SERVICES-PRIV CONTRACTOR & OTHER AGENCIES,Third Party Payments,Private Contractor Fees,Revenue
Walsall Council,http://opendatacommunities.org/id/metropolitan-district-council/walsall,WC62 -516,30/11/2015,Change and Governance,BUILDING RECRUITMENT COMPANY,03/11/2015,"1,153.00",73025-PROFESSIONAL SERVICES-PRIV CONTRACTOR & OTHER AGENCIES,Third Party Payments,Private Contractor Fees,Revenue
Walsall Council,http://opendatacommunities.org/id/metropolitan-district-council/walsall,WC62 -517,30/11/2015,Social Care & Inclusion,BUPA CARE HOMES (CFHCARE) LTD,10/11/2015,"1,490.80",73373-RESIDENTIAL & NURSING CARE PLACEMENTS,Third Party Payments,Private Contractor Fees,Revenue
Walsall Council,http://opendatacommunities.org/id/metropolitan-district-council/walsall,WC62 -518,30/11/2015,Social Care & Inclusion,BUPA CARE HOMES (CFHCARE) LTD,10/11/2015,"1,527.60",73373-RESIDENTIAL & NURSING CARE PLACEMENTS,Third Party Payments,Private Contractor Fees,Revenue
Walsall Council,http://opendatacommunities.org/id/metropolitan-district-council/walsall,WC62 -519,30/11/2015,Social Care & Inclusion,BUPA CARE HOMES (CFHCARE) LTD,10/11/2015,"1,533.16",73373-RESIDENTIAL & NURSING CARE PLACEMENTS,Third Party Payments,Private Contractor Fees,Revenue
Walsall Council,http://opendatacommunities.org/id/metropolitan-district-council/walsall,WC62 -520,30/11/2015,Social Care & Inclusion,BUPA CARE HOMES (CFHCARE) LTD,10/11/2015,"1,755.68",73373-RESIDENTIAL & NURSING CARE PLACEMENTS,Third Party Payments,Private Contractor Fees,Revenue
Walsall Council,http://opendatacommunities.org/id/metropolitan-district-council/walsall,WC62 -521,30/11/2015,Social Care & Inclusion,BUPA CARE HOMES (CFHCARE) LTD,10/11/2015,"3,129.80",73373-RESIDENTIAL & NURSING CARE PLACEMENTS,Third Party Payments,Private Contractor Fees,Revenue
Walsall Council,http://opendatacommunities.org/id/metropolitan-district-council/walsall,WC62 -522,30/11/2015,Economy & Environment,BURTON ADDICTION CENTRE,04/11/2015,"1,035.28",63000-PROFESSIONAL FEES AND SERVICES,Supplies & Services,Services,Revenue
Walsall Council,http://opendatacommunities.org/id/metropolitan-district-council/walsall,WC62 -523,30/11/2015,Social Care & Inclusion,BUSH HOME LTD,17/11/2015,853.28,73373-RESIDENTIAL & NURSING CARE PLACEMENTS,Third Party Payments,Private Contractor Fees,Revenue
Walsall Council,http://opendatacommunities.org/id/metropolitan-district-council/walsall,WC62 -524,30/11/2015,Social Care & Inclusion,BUSH HOME LTD,17/11/2015,"1,568.64",73373-RESIDENTIAL & NURSING CARE PLACEMENTS,Third Party Payments,Private Contractor Fees,Revenue
Walsall Council,http://opendatacommunities.org/id/metropolitan-district-council/walsall,WC62 -525,30/11/2015,Social Care & Inclusion,BUSH HOME LTD,17/11/2015,"1,592.64",73373-RESIDENTIAL & NURSING CARE PLACEMENTS,Third Party Payments,Private Contractor Fees,Revenue
Walsall Council,http://opendatacommunities.org/id/metropolitan-district-council/walsall,WC62 -526,30/11/2015,Social Care & Inclusion,BUSH HOME LTD,17/11/2015,"1,592.64",73373-RESIDENTIAL & NURSING CARE PLACEMENTS,Third Party Payments,Private Contractor Fees,Revenue
Walsall Council,http://opendatacommunities.org/id/metropolitan-district-council/walsall,WC62 -527,30/11/2015,Social Care & Inclusion,BUSH HOME LTD,17/11/2015,"1,592.64",73373-RESIDENTIAL & NURSING CARE PLACEMENTS,Third Party Payments,Private Contractor Fees,Revenue
Walsall Council,http://opendatacommunities.org/id/metropolitan-district-council/walsall,WC62 -528,30/11/2015,Social Care & Inclusion,BUSH HOME LTD,17/11/2015,"1,599.90",73373-RESIDENTIAL & NURSING CARE PLACEMENTS,Third Party Payments,Private Contractor Fees,Revenue
Walsall Council,http://opendatacommunities.org/id/metropolitan-district-council/walsall,WC62 -529,30/11/2015,Social Care & Inclusion,BUSH HOME LTD,17/11/2015,"1,904.78",73373-RESIDENTIAL & NURSING CARE PLACEMENTS,Third Party Payments,Private Contractor Fees,Revenue
Walsall Council,http://opendatacommunities.org/id/metropolitan-district-council/walsall,WC62 -530,30/11/2015,Childrens,BY THE BRIDGE,11/11/2015,"5,923.93",74037-INDEPENDENT FOSTER CARE-OTH AGENCY PROVISION,Third Party Payments,Private Contractor Fees,Revenue
Walsall Council,http://opendatacommunities.org/id/metropolitan-district-council/walsall,WC62 -531,30/11/2015,Social Care & Inclusion,C & V ORCHARD MANOR LTD,03/11/2015,672.23,73373-RESIDENTIAL & NURSING CARE PLACEMENTS,Third Party Payments,Private Contractor Fees,Revenue
Walsall Council,http://opendatacommunities.org/id/metropolitan-district-council/walsall,WC62 -532,30/11/2015,Social Care & Inclusion,C & V ORCHARD MANOR LTD,03/11/2015,896.37,73373-RESIDENTIAL & NURSING CARE PLACEMENTS,Third Party Payments,Private Contractor Fees,Revenue
Walsall Council,http://opendatacommunities.org/id/metropolitan-district-council/walsall,WC62 -533,30/11/2015,Social Care & Inclusion,C & V ORCHARD MANOR LTD,03/11/2015,"1,472.16",73373-RESIDENTIAL & NURSING CARE PLACEMENTS,Third Party Payments,Private Contractor Fees,Revenue
Walsall Council,http://opendatacommunities.org/id/metropolitan-district-council/walsall,WC62 -534,30/11/2015,Social Care & Inclusion,C & V ORCHARD MANOR LTD,03/11/2015,"1,472.16",73373-RESIDENTIAL & NURSING CARE PLACEMENTS,Third Party Payments,Private Contractor Fees,Revenue
Walsall Council,http://opendatacommunities.org/id/metropolitan-district-council/walsall,WC62 -535,30/11/2015,Social Care & Inclusion,C & V ORCHARD MANOR LTD,03/11/2015,"1,472.16",73373-RESIDENTIAL & NURSING CARE PLACEMENTS,Third Party Payments,Private Contractor Fees,Revenue
Walsall Council,http://opendatacommunities.org/id/metropolitan-district-council/walsall,WC62 -536,30/11/2015,Social Care & Inclusion,C & V ORCHARD MANOR LTD,03/11/2015,"1,493.24",73373-RESIDENTIAL & NURSING CARE PLACEMENTS,Third Party Payments,Private Contractor Fees,Revenue
Walsall Council,http://opendatacommunities.org/id/metropolitan-district-council/walsall,WC62 -537,30/11/2015,Social Care & Inclusion,C & V ORCHARD MANOR LTD,03/11/2015,"1,493.24",73373-RESIDENTIAL & NURSING CARE PLACEMENTS,Third Party Payments,Private Contractor Fees,Revenue
Walsall Council,http://opendatacommunities.org/id/metropolitan-district-council/walsall,WC62 -538,30/11/2015,Social Care & Inclusion,C & V ORCHARD MANOR LTD,03/11/2015,"1,493.24",73373-RESIDENTIAL & NURSING CARE PLACEMENTS,Third Party Payments,Private Contractor Fees,Revenue
Walsall Council,http://opendatacommunities.org/id/metropolitan-district-council/walsall,WC62 -539,30/11/2015,Social Care & Inclusion,C & V ORCHARD MANOR LTD,03/11/2015,"1,493.24",73373-RESIDENTIAL & NURSING CARE PLACEMENTS,Third Party Payments,Private Contractor Fees,Revenue
Walsall Council,http://opendatacommunities.org/id/metropolitan-district-council/walsall,WC62 -540,30/11/2015,Social Care & Inclusion,C & V ORCHARD MANOR LTD,03/11/2015,"1,493.32",73373-RESIDENTIAL & NURSING CARE PLACEMENTS,Third Party Payments,Private Contractor Fees,Revenue
Walsall Council,http://opendatacommunities.org/id/metropolitan-district-council/walsall,WC62 -541,30/11/2015,Social Care & Inclusion,C & V ORCHARD MANOR LTD,03/11/2015,"1,493.32",73373-RESIDENTIAL & NURSING CARE PLACEMENTS,Third Party Payments,Private Contractor Fees,Revenue
Walsall Council,http://opendatacommunities.org/id/metropolitan-district-council/walsall,WC62 -542,30/11/2015,Social Care & Inclusion,C & V ORCHARD MANOR LTD,03/11/2015,"1,566.20",73373-RESIDENTIAL & NURSING CARE PLACEMENTS,Third Party Payments,Private Contractor Fees,Revenue
Walsall Council,http://opendatacommunities.org/id/metropolitan-district-council/walsall,WC62 -543,30/11/2015,Social Care & Inclusion,C & V ORCHARD MANOR LTD,03/11/2015,"1,566.20",73373-RESIDENTIAL & NURSING CARE PLACEMENTS,Third Party Payments,Private Contractor Fees,Revenue
Walsall Council,http://opendatacommunities.org/id/metropolitan-district-council/walsall,WC62 -544,30/11/2015,Social Care & Inclusion,C & V ORCHARD RESIDENTIAL LTD,25/11/2015,"1,493.24",73373-RESIDENTIAL & NURSING CARE PLACEMENTS,Third Party Payments,Private Contractor Fees,Revenue
Walsall Council,http://opendatacommunities.org/id/metropolitan-district-council/walsall,WC62 -545,30/11/2015,Social Care & Inclusion,C & V ORCHARD RESIDENTIAL LTD,25/11/2015,"1,493.24",73373-RESIDENTIAL & NURSING CARE PLACEMENTS,Third Party Payments,Private Contractor Fees,Revenue
Walsall Council,http://opendatacommunities.org/id/metropolitan-district-council/walsall,WC62 -546,30/11/2015,Social Care & Inclusion,C & V ORCHARD RESIDENTIAL LTD,25/11/2015,"1,493.24",73373-RESIDENTIAL & NURSING CARE PLACEMENTS,Third Party Payments,Private Contractor Fees,Revenue
Walsall Council,http://opendatacommunities.org/id/metropolitan-district-council/walsall,WC62 -547,30/11/2015,Social Care & Inclusion,C & V ORCHARD RESIDENTIAL LTD,25/11/2015,"1,493.32",73373-RESIDENTIAL & NURSING CARE PLACEMENTS,Third Party Payments,Private Contractor Fees,Revenue
Walsall Council,http://opendatacommunities.org/id/metropolitan-district-council/walsall,WC62 -548,30/11/2015,Social Care & Inclusion,C & V ORCHARD RESIDENTIAL LTD,25/11/2015,"1,566.20",73373-RESIDENTIAL & NURSING CARE PLACEMENTS,Third Party Payments,Private Contractor Fees,Revenue
Walsall Council,http://opendatacommunities.org/id/metropolitan-district-council/walsall,WC62 -549,30/11/2015,Social Care & Inclusion,C & V ORCHARD RESIDENTIAL LTD,25/11/2015,"1,566.20",73373-RESIDENTIAL & NURSING CARE PLACEMENTS,Third Party Payments,Private Contractor Fees,Revenue
Walsall Council,http://opendatacommunities.org/id/metropolitan-district-council/walsall,WC62 -550,30/11/2015,Social Care & Inclusion,C & V ORCHARD RESIDENTIAL LTD,25/11/2015,"1,566.20",73373-RESIDENTIAL & NURSING CARE PLACEMENTS,Third Party Payments,Private Contractor Fees,Revenue
Walsall Council,http://opendatacommunities.org/id/metropolitan-district-council/walsall,WC62 -551,30/11/2015,Social Care & Inclusion,C & V ORCHARD RESIDENTIAL LTD,25/11/2015,"1,566.20",73373-RESIDENTIAL & NURSING CARE PLACEMENTS,Third Party Payments,Private Contractor Fees,Revenue
Walsall Council,http://opendatacommunities.org/id/metropolitan-district-council/walsall,WC62 -552,30/11/2015,Social Care & Inclusion,C & V ORCHARD RESIDENTIAL LTD,25/11/2015,"1,568.16",73373-RESIDENTIAL & NURSING CARE PLACEMENTS,Third Party Payments,Private Contractor Fees,Revenue
Walsall Council,http://opendatacommunities.org/id/metropolitan-district-council/walsall,WC62 -553,30/11/2015,Social Care & Inclusion,C & V ORCHARD RESIDENTIAL LTD,25/11/2015,"1,568.60",73373-RESIDENTIAL & NURSING CARE PLACEMENTS,Third Party Payments,Private Contractor Fees,Revenue
Walsall Council,http://opendatacommunities.org/id/metropolitan-district-council/walsall,WC62 -554,30/11/2015,Social Care & Inclusion,C & V ORCHARD RESIDENTIAL LTD,25/11/2015,"1,568.60",73373-RESIDENTIAL & NURSING CARE PLACEMENTS,Third Party Payments,Private Contractor Fees,Revenue
Walsall Council,http://opendatacommunities.org/id/metropolitan-district-council/walsall,WC62 -555,30/11/2015,Social Care & Inclusion,C & V ORCHARD RESIDENTIAL LTD,25/11/2015,"1,568.60",73373-RESIDENTIAL & NURSING CARE PLACEMENTS,Third Party Payments,Private Contractor Fees,Revenue
Walsall Council,http://opendatacommunities.org/id/metropolitan-district-council/walsall,WC62 -556,30/11/2015,Social Care & Inclusion,C & V ORCHARD RESIDENTIAL LTD,25/11/2015,"1,568.64",73373-RESIDENTIAL & NURSING CARE PLACEMENTS,Third Party Payments,Private Contractor Fees,Revenue
Walsall Council,http://opendatacommunities.org/id/metropolitan-district-council/walsall,WC62 -557,30/11/2015,Social Care & Inclusion,C & V ORCHARD RESIDENTIAL LTD,25/11/2015,"1,568.64",73373-RESIDENTIAL & NURSING CARE PLACEMENTS,Third Party Payments,Private Contractor Fees,Revenue
Walsall Council,http://opendatacommunities.org/id/metropolitan-district-council/walsall,WC62 -558,30/11/2015,Social Care & Inclusion,C & V ORCHARD RESIDENTIAL LTD,25/11/2015,"1,736.70",73373-RESIDENTIAL & NURSING CARE PLACEMENTS,Third Party Payments,Private Contractor Fees,Revenue
Walsall Council,http://opendatacommunities.org/id/metropolitan-district-council/walsall,WC62 -559,30/11/2015,Childrens,REDACTED,09/11/2015,"4,317.64",62515-MISCELLANEOUS SUPPLIES,Supplies & Services,Other Supplies & Services,Revenue
Walsall Council,http://opendatacommunities.org/id/metropolitan-district-council/walsall,WC62 -560,30/11/2015,Childrens,REDACTED,09/11/2015,"4,803.81",74006-HOLIDAY/CHRISTMAS ALLOWANCE-FOSTER CARERS-OTH AGENCY PROVISION,Third Party Payments,Private Contractor Fees,Revenue
Walsall Council,http://opendatacommunities.org/id/metropolitan-district-council/walsall,WC62 -561,30/11/2015,Childrens,REDACTED,09/11/2015,"1,445.32",62515-MISCELLANEOUS SUPPLIES,Supplies & Services,Other Supplies & Services,Revenue
Walsall Council,http://opendatacommunities.org/id/metropolitan-district-council/walsall,WC62 -562,30/11/2015,Childrens,REDACTED,09/11/2015,"1,461.24",74006-HOLIDAY/CHRISTMAS ALLOWANCE-FOSTER CARERS-OTH AGENCY PROVISION,Third Party Payments,Private Contractor Fees,Revenue
Walsall Council,http://opendatacommunities.org/id/metropolitan-district-council/walsall,WC62 -563,30/11/2015,Economy & Environment,C P DAVIDSON & SONS LTD,27/11/2015,219.51,60500-GENERAL MATERIALS,Supplies & Services,"Equip,Furniture & Materials",Revenue
Walsall Council,http://opendatacommunities.org/id/metropolitan-district-council/walsall,WC62 -564,30/11/2015,Economy & Environment,C P DAVIDSON & SONS LTD,04/11/2015,227.5,73025-PROFESSIONAL SERVICES-PRIV CONTRACTOR & OTHER AGENCIES,Third Party Payments,Private Contractor Fees,Revenue
Walsall Council,http://opendatacommunities.org/id/metropolitan-district-council/walsall,WC62 -565,30/11/2015,Economy & Environment,C P DAVIDSON & SONS LTD,10/11/2015,374.01,60500-GENERAL MATERIALS,Supplies & Services,"Equip,Furniture & Materials",Revenue
Walsall Council,http://opendatacommunities.org/id/metropolitan-district-council/walsall,WC62 -566,30/11/2015,Economy & Environment,C P DAVIDSON & SONS LTD,20/11/2015,406.25,73025-PROFESSIONAL SERVICES-PRIV CONTRACTOR & OTHER AGENCIES,Third Party Payments,Private Contractor Fees,Revenue
Walsall Council,http://opendatacommunities.org/id/metropolitan-district-council/walsall,WC62 -567,30/11/2015,Economy & Environment,C P DAVIDSON & SONS LTD,25/11/2015,434.41,60514-MATERIALS TO STORES,Supplies & Services,"Equip,Furniture & Materials",Revenue
Walsall Council,http://opendatacommunities.org/id/metropolitan-district-council/walsall,WC62 -568,30/11/2015,Economy & Environment,C P DAVIDSON & SONS LTD,16/11/2015,586.18,60500-GENERAL MATERIALS,Supplies & Services,"Equip,Furniture & Materials",Revenue
Walsall Council,http://opendatacommunities.org/id/metropolitan-district-council/walsall,WC62 -569,30/11/2015,Economy & Environment,C P DAVIDSON & SONS LTD,26/11/2015,600.51,73025-PROFESSIONAL SERVICES-PRIV CONTRACTOR & OTHER AGENCIES,Third Party Payments,Private Contractor Fees,Revenue
Walsall Council,http://opendatacommunities.org/id/metropolitan-district-council/walsall,WC62 -570,30/11/2015,Economy & Environment,C P DAVIDSON & SONS LTD,23/11/2015,797.47,60514-MATERIALS TO STORES,Supplies & Services,"Equip,Furniture & Materials",Revenue
Walsall Council,http://opendatacommunities.org/id/metropolitan-district-council/walsall,WC62 -571,30/11/2015,Economy & Environment,C P DAVIDSON & SONS LTD,20/11/2015,"1,720.91",73025-PROFESSIONAL SERVICES-PRIV CONTRACTOR & OTHER AGENCIES,Third Party Payments,Private Contractor Fees,Revenue
Walsall Council,http://opendatacommunities.org/id/metropolitan-district-council/walsall,WC62 -572,30/11/2015,Economy & Environment,C P DAVIDSON & SONS LTD,05/11/2015,"3,300.00",52003-OPERATING LEASES-VEHICLES,Central,Leasing,Revenue
Walsall Council,http://opendatacommunities.org/id/metropolitan-district-council/walsall,WC62 -573,30/11/2015,Economy & Environment,C P DAVIDSON & SONS LTD,05/11/2015,"3,300.00",52003-OPERATING LEASES-VEHICLES,Central,Leasing,Revenue
Walsall Council,http://opendatacommunities.org/id/metropolitan-district-council/walsall,WC62 -574,30/11/2015,Economy & Environment,C P DAVIDSON & SONS LTD,05/11/2015,"3,300.00",52003-OPERATING LEASES-VEHICLES,Central,Leasing,Revenue
Walsall Council,http://opendatacommunities.org/id/metropolitan-district-council/walsall,WC62 -575,30/11/2015,Childrens,REDACTED,23/11/2015,"1,428.60",74006-HOLIDAY/CHRISTMAS ALLOWANCE-FOSTER CARERS-OTH AGENCY PROVISION,Third Party Payments,Private Contractor Fees,Revenue
Walsall Council,http://opendatacommunities.org/id/metropolitan-district-council/walsall,WC62 -576,30/11/2015,Change and Governance,CADLINE LTD,09/11/2015,"15,625.00",63800-COMPUTER EQUIPMENT AND SUPPLIES,Supplies & Services,Communications & Computing,Revenue
Walsall Council,http://opendatacommunities.org/id/metropolitan-district-council/walsall,WC62 -577,30/11/2015,Social Care & Inclusion,CALDMORE AREA HOUSING ASS LTD,10/11/2015,191.04,73373-RESIDENTIAL & NURSING CARE PLACEMENTS,Third Party Payments,Private Contractor Fees,Revenue
Walsall Council,http://opendatacommunities.org/id/metropolitan-district-council/walsall,WC62 -578,30/11/2015,Social Care & Inclusion,CALDMORE AREA HOUSING ASS LTD,03/11/2015,442.38,73373-RESIDENTIAL & NURSING CARE PLACEMENTS,Third Party Payments,Private Contractor Fees,Revenue
Walsall Council,http://opendatacommunities.org/id/metropolitan-district-council/walsall,WC62 -579,30/11/2015,Social Care & Inclusion,CALDMORE AREA HOUSING ASS LTD,17/11/2015,542.79,73373-RESIDENTIAL & NURSING CARE PLACEMENTS,Third Party Payments,Private Contractor Fees,Revenue
Walsall Council,http://opendatacommunities.org/id/metropolitan-district-council/walsall,WC62 -580,30/11/2015,Social Care & Inclusion,CALDMORE AREA HOUSING ASS LTD,01/11/2015,576.8,73374-SUPPORTED & OTHER ACCOMMODATION,Third Party Payments,Private Contractor Fees,Revenue
Walsall Council,http://opendatacommunities.org/id/metropolitan-district-council/walsall,WC62 -581,30/11/2015,Social Care & Inclusion,CALDMORE AREA HOUSING ASS LTD,01/11/2015,576.8,73374-SUPPORTED & OTHER ACCOMMODATION,Third Party Payments,Private Contractor Fees,Revenue
Walsall Council,http://opendatacommunities.org/id/metropolitan-district-council/walsall,WC62 -582,30/11/2015,Social Care & Inclusion,CALDMORE AREA HOUSING ASS LTD,01/11/2015,579.28,73374-SUPPORTED & OTHER ACCOMMODATION,Third Party Payments,Private Contractor Fees,Revenue
Walsall Council,http://opendatacommunities.org/id/metropolitan-district-council/walsall,WC62 -583,30/11/2015,Social Care & Inclusion,CALDMORE AREA HOUSING ASS LTD,13/11/2015,579.29,73374-SUPPORTED & OTHER ACCOMMODATION,Third Party Payments,Private Contractor Fees,Revenue
Walsall Council,http://opendatacommunities.org/id/metropolitan-district-council/walsall,WC62 -584,30/11/2015,Social Care & Inclusion,CALDMORE AREA HOUSING ASS LTD,17/11/2015,633.26,73373-RESIDENTIAL & NURSING CARE PLACEMENTS,Third Party Payments,Private Contractor Fees,Revenue
Walsall Council,http://opendatacommunities.org/id/metropolitan-district-council/walsall,WC62 -585,30/11/2015,Social Care & Inclusion,CALDMORE AREA HOUSING ASS LTD,17/11/2015,633.26,73373-RESIDENTIAL & NURSING CARE PLACEMENTS,Third Party Payments,Private Contractor Fees,Revenue
Walsall Council,http://opendatacommunities.org/id/metropolitan-district-council/walsall,WC62 -586,30/11/2015,Social Care & Inclusion,CALDMORE AREA HOUSING ASS LTD,17/11/2015,633.26,73373-RESIDENTIAL & NURSING CARE PLACEMENTS,Third Party Payments,Private Contractor Fees,Revenue
Walsall Council,http://opendatacommunities.org/id/metropolitan-district-council/walsall,WC62 -587,30/11/2015,Social Care & Inclusion,CALDMORE AREA HOUSING ASS LTD,17/11/2015,633.26,73373-RESIDENTIAL & NURSING CARE PLACEMENTS,Third Party Payments,Private Contractor Fees,Revenue
Walsall Council,http://opendatacommunities.org/id/metropolitan-district-council/walsall,WC62 -588,30/11/2015,Social Care & Inclusion,CALDMORE AREA HOUSING ASS LTD,17/11/2015,633.26,73373-RESIDENTIAL & NURSING CARE PLACEMENTS,Third Party Payments,Private Contractor Fees,Revenue
Walsall Council,http://opendatacommunities.org/id/metropolitan-district-council/walsall,WC62 -589,30/11/2015,Social Care & Inclusion,CALDMORE AREA HOUSING ASS LTD,01/11/2015,919.78,73374-SUPPORTED & OTHER ACCOMMODATION,Third Party Payments,Private Contractor Fees,Revenue
Walsall Council,http://opendatacommunities.org/id/metropolitan-district-council/walsall,WC62 -590,30/11/2015,Social Care & Inclusion,CALDMORE AREA HOUSING ASS LTD,16/11/2015,919.78,73374-SUPPORTED & OTHER ACCOMMODATION,Third Party Payments,Private Contractor Fees,Revenue
Walsall Council,http://opendatacommunities.org/id/metropolitan-district-council/walsall,WC62 -591,30/11/2015,Social Care & Inclusion,CALDMORE AREA HOUSING ASS LTD,01/11/2015,"1,095.62",73374-SUPPORTED & OTHER ACCOMMODATION,Third Party Payments,Private Contractor Fees,Revenue
Walsall Council,http://opendatacommunities.org/id/metropolitan-district-council/walsall,WC62 -592,30/11/2015,Social Care & Inclusion,CALDMORE AREA HOUSING ASS LTD,19/11/2015,"1,095.62",73374-SUPPORTED & OTHER ACCOMMODATION,Third Party Payments,Private Contractor Fees,Revenue
Walsall Council,http://opendatacommunities.org/id/metropolitan-district-council/walsall,WC62 -593,30/11/2015,Social Care & Inclusion,CALDMORE AREA HOUSING ASS LTD,01/11/2015,"1,473.42",73374-SUPPORTED & OTHER ACCOMMODATION,Third Party Payments,Private Contractor Fees,Revenue
Walsall Council,http://opendatacommunities.org/id/metropolitan-district-council/walsall,WC62 -594,30/11/2015,Social Care & Inclusion,CALDMORE AREA HOUSING ASS LTD,13/11/2015,"1,473.42",73374-SUPPORTED & OTHER ACCOMMODATION,Third Party Payments,Private Contractor Fees,Revenue
Walsall Council,http://opendatacommunities.org/id/metropolitan-district-council/walsall,WC62 -595,30/11/2015,Social Care & Inclusion,CALDMORE AREA HOUSING ASS LTD,01/11/2015,"1,492.31",73374-SUPPORTED & OTHER ACCOMMODATION,Third Party Payments,Private Contractor Fees,Revenue
Walsall Council,http://opendatacommunities.org/id/metropolitan-district-council/walsall,WC62 -596,30/11/2015,Social Care & Inclusion,CALDMORE AREA HOUSING ASS LTD,16/11/2015,"1,492.31",73374-SUPPORTED & OTHER ACCOMMODATION,Third Party Payments,Private Contractor Fees,Revenue
Walsall Council,http://opendatacommunities.org/id/metropolitan-district-council/walsall,WC62 -597,30/11/2015,Social Care & Inclusion,CALDMORE AREA HOUSING ASS LTD,10/11/2015,"1,899.78",73373-RESIDENTIAL & NURSING CARE PLACEMENTS,Third Party Payments,Private Contractor Fees,Revenue
Walsall Council,http://opendatacommunities.org/id/metropolitan-district-council/walsall,WC62 -598,30/11/2015,Social Care & Inclusion,CALDMORE AREA HOUSING ASS LTD,01/11/2015,"1,936.23",73374-SUPPORTED & OTHER ACCOMMODATION,Third Party Payments,Private Contractor Fees,Revenue
Walsall Council,http://opendatacommunities.org/id/metropolitan-district-council/walsall,WC62 -599,30/11/2015,Social Care & Inclusion,CALDMORE AREA HOUSING ASS LTD,03/11/2015,"2,533.04",73373-RESIDENTIAL & NURSING CARE PLACEMENTS,Third Party Payments,Private Contractor Fees,Revenue
Walsall Council,http://opendatacommunities.org/id/metropolitan-district-council/walsall,WC62 -600,30/11/2015,Social Care & Inclusion,CALDMORE AREA HOUSING ASS LTD,03/11/2015,"2,533.04",73373-RESIDENTIAL & NURSING CARE PLACEMENTS,Third Party Payments,Private Contractor Fees,Revenue
Walsall Council,http://opendatacommunities.org/id/metropolitan-district-council/walsall,WC62 -601,30/11/2015,Social Care & Inclusion,CALDMORE AREA HOUSING ASS LTD,10/11/2015,"2,533.04",73373-RESIDENTIAL & NURSING CARE PLACEMENTS,Third Party Payments,Private Contractor Fees,Revenue
Walsall Council,http://opendatacommunities.org/id/metropolitan-district-council/walsall,WC62 -602,30/11/2015,Social Care & Inclusion,CALDMORE AREA HOUSING ASS LTD,10/11/2015,"2,533.04",73373-RESIDENTIAL & NURSING CARE PLACEMENTS,Third Party Payments,Private Contractor Fees,Revenue
Walsall Council,http://opendatacommunities.org/id/metropolitan-district-council/walsall,WC62 -603,30/11/2015,Social Care & Inclusion,CALDMORE AREA HOUSING ASS LTD,10/11/2015,"2,533.04",73373-RESIDENTIAL & NURSING CARE PLACEMENTS,Third Party Payments,Private Contractor Fees,Revenue
Walsall Council,http://opendatacommunities.org/id/metropolitan-district-council/walsall,WC62 -604,30/11/2015,Social Care & Inclusion,CALDMORE AREA HOUSING ASS LTD,10/11/2015,"2,533.04",73373-RESIDENTIAL & NURSING CARE PLACEMENTS,Third Party Payments,Private Contractor Fees,Revenue
Walsall Council,http://opendatacommunities.org/id/metropolitan-district-council/walsall,WC62 -605,30/11/2015,Social Care & Inclusion,CALDMORE AREA HOUSING ASS LTD,10/11/2015,"2,533.04",73373-RESIDENTIAL & NURSING CARE PLACEMENTS,Third Party Payments,Private Contractor Fees,Revenue
Walsall Council,http://opendatacommunities.org/id/metropolitan-district-council/walsall,WC62 -606,30/11/2015,Social Care & Inclusion,CALDMORE AREA HOUSING ASS LTD,10/11/2015,"2,533.04",73373-RESIDENTIAL & NURSING CARE PLACEMENTS,Third Party Payments,Private Contractor Fees,Revenue
Walsall Council,http://opendatacommunities.org/id/metropolitan-district-council/walsall,WC62 -607,30/11/2015,Social Care & Inclusion,CALDMORE AREA HOUSING ASS LTD,10/11/2015,"2,533.04",73373-RESIDENTIAL & NURSING CARE PLACEMENTS,Third Party Payments,Private Contractor Fees,Revenue
Walsall Council,http://opendatacommunities.org/id/metropolitan-district-council/walsall,WC62 -608,30/11/2015,Social Care & Inclusion,CALDMORE AREA HOUSING ASS LTD,10/11/2015,"2,533.04",73373-RESIDENTIAL & NURSING CARE PLACEMENTS,Third Party Payments,Private Contractor Fees,Revenue
Walsall Council,http://opendatacommunities.org/id/metropolitan-district-council/walsall,WC62 -609,30/11/2015,Social Care & Inclusion,CALDMORE AREA HOUSING ASS LTD,10/11/2015,"2,533.04",73373-RESIDENTIAL & NURSING CARE PLACEMENTS,Third Party Payments,Private Contractor Fees,Revenue
Walsall Council,http://opendatacommunities.org/id/metropolitan-district-council/walsall,WC62 -610,30/11/2015,Social Care & Inclusion,CALDMORE AREA HOUSING ASS LTD,17/11/2015,"2,533.04",73373-RESIDENTIAL & NURSING CARE PLACEMENTS,Third Party Payments,Private Contractor Fees,Revenue
Walsall Council,http://opendatacommunities.org/id/metropolitan-district-council/walsall,WC62 -611,30/11/2015,Social Care & Inclusion,CALDMORE AREA HOUSING ASS LTD,10/11/2015,"3,096.65",73373-RESIDENTIAL & NURSING CARE PLACEMENTS,Third Party Payments,Private Contractor Fees,Revenue
Walsall Council,http://opendatacommunities.org/id/metropolitan-district-council/walsall,WC62 -612,30/11/2015,Social Care & Inclusion,CALDMORE AREA HOUSING ASS LTD,01/11/2015,"3,357.70",73374-SUPPORTED & OTHER ACCOMMODATION,Third Party Payments,Private Contractor Fees,Revenue
Walsall Council,http://opendatacommunities.org/id/metropolitan-district-council/walsall,WC62 -613,30/11/2015,Childrens,REDACTED,23/11/2015,373.76,74006-HOLIDAY/CHRISTMAS ALLOWANCE-FOSTER CARERS-OTH AGENCY PROVISION,Third Party Payments,Private Contractor Fees,Revenue
Walsall Council,http://opendatacommunities.org/id/metropolitan-district-council/walsall,WC62 -614,30/11/2015,Childrens,REDACTED,09/11/2015,287.7,76422-DIRECT PAYMENTS TO SOCIAL SERVICES CLIENTS,Transfer Payments,Transfer Payments,Revenue
Walsall Council,http://opendatacommunities.org/id/metropolitan-district-council/walsall,WC62 -615,30/11/2015,Childrens,CAMBIAN CHILDCARE LIMITED,27/11/2015,"2,657.01",74036-EXTERNAL RESIDENTIAL CARE-OTH AGENCY PROVISION,Third Party Payments,Private Contractor Fees,Revenue
Walsall Council,http://opendatacommunities.org/id/metropolitan-district-council/walsall,WC62 -616,30/11/2015,Childrens,CAMBIAN CHILDCARE LIMITED,27/11/2015,"14,339.67",74036-EXTERNAL RESIDENTIAL CARE-OTH AGENCY PROVISION,Third Party Payments,Private Contractor Fees,Revenue
Walsall Council,http://opendatacommunities.org/id/metropolitan-district-council/walsall,WC62 -617,30/11/2015,Social Care & Inclusion,CAMBIAN LEARNING DISABILITES MIDLANDS LIMITED,13/11/2015,"10,557.00",73375-IN PATIENT BEDS,Third Party Payments,Private Contractor Fees,Revenue
Walsall Council,http://opendatacommunities.org/id/metropolitan-district-council/walsall,WC62 -618,30/11/2015,Economy & Environment,CANAL & RIVER TRUST,19/11/2015,-639.42,43000-RENTS,Premises,Rent,Revenue
Walsall Council,http://opendatacommunities.org/id/metropolitan-district-council/walsall,WC62 -619,30/11/2015,Economy & Environment,CANAL & RIVER TRUST,19/11/2015,748.26,43000-RENTS,Premises,Rent,Revenue
Walsall Council,http://opendatacommunities.org/id/metropolitan-district-council/walsall,WC62 -620,30/11/2015,Childrens,CAPITA BUSINESS SERVICES LTD 001,01/11/2015,92.95,63000-PROFESSIONAL FEES AND SERVICES,Supplies & Services,Services,Revenue
Walsall Council,http://opendatacommunities.org/id/metropolitan-district-council/walsall,WC62 -621,30/11/2015,Childrens,CAPITA BUSINESS SERVICES LTD 001,01/11/2015,92.96,63000-PROFESSIONAL FEES AND SERVICES,Supplies & Services,Services,Revenue
Walsall Council,http://opendatacommunities.org/id/metropolitan-district-council/walsall,WC62 -622,30/11/2015,Childrens,CAPITA BUSINESS SERVICES LTD 001,01/11/2015,92.96,63000-PROFESSIONAL FEES AND SERVICES,Supplies & Services,Services,Revenue
Walsall Council,http://opendatacommunities.org/id/metropolitan-district-council/walsall,WC62 -623,30/11/2015,Economy & Environment,CAPITA BUSINESS SERVICES LTD 001,01/11/2015,92.96,63000-PROFESSIONAL FEES AND SERVICES,Supplies & Services,Services,Revenue
Walsall Council,http://opendatacommunities.org/id/metropolitan-district-council/walsall,WC62 -624,30/11/2015,Childrens,CAPITA BUSINESS SERVICES LTD 001,30/11/2015,"4,200.00",63114-OTHER FEES & LICENCES-SERVICES-FEES,Supplies & Services,Other Supplies & Services,Revenue
Walsall Council,http://opendatacommunities.org/id/metropolitan-district-council/walsall,WC62 -625,30/11/2015,Leasing,CAPITA TREASURY SOLUTIONS LIMITED,06/11/2015,"7,650.00",01018-VEHICLES LEASING,Capital,Capital,Capital
Walsall Council,http://opendatacommunities.org/id/metropolitan-district-council/walsall,WC62 -626,30/11/2015,Leasing,CAPITA TREASURY SOLUTIONS LIMITED,16/11/2015,"18,180.00",01018-VEHICLES LEASING,Capital,Capital,Capital
Walsall Council,http://opendatacommunities.org/id/metropolitan-district-council/walsall,WC62 -627,30/11/2015,Childrens,CAPSTONE FOSTER CARE (SOUTH EAST) LIMITED,11/11/2015,361.77,74037-INDEPENDENT FOSTER CARE-OTH AGENCY PROVISION,Third Party Payments,Private Contractor Fees,Revenue
Walsall Council,http://opendatacommunities.org/id/metropolitan-district-council/walsall,WC62 -628,30/11/2015,Social Care & Inclusion,CARE & MANAGEMENT SERVICES LTD,25/11/2015,"5,742.84",73373-RESIDENTIAL & NURSING CARE PLACEMENTS,Third Party Payments,Private Contractor Fees,Revenue
Walsall Council,http://opendatacommunities.org/id/metropolitan-district-council/walsall,WC62 -629,30/11/2015,Social Care & Inclusion,CARE & MANAGEMENT SERVICES LTD,25/11/2015,"5,934.26",73373-RESIDENTIAL & NURSING CARE PLACEMENTS,Third Party Payments,Private Contractor Fees,Revenue
Walsall Council,http://opendatacommunities.org/id/metropolitan-district-council/walsall,WC62 -630,30/11/2015,Social Care & Inclusion,CARE 2 U LIMITED,11/11/2015,"36,478.15",73372-DOMICILIARY CARE,Third Party Payments,Private Contractor Fees,Revenue
Walsall Council,http://opendatacommunities.org/id/metropolitan-district-council/walsall,WC62 -631,30/11/2015,Social Care & Inclusion,CARE AVENUES LTD,11/11/2015,"14,789.00",73372-DOMICILIARY CARE,Third Party Payments,Private Contractor Fees,Revenue
Walsall Council,http://opendatacommunities.org/id/metropolitan-district-council/walsall,WC62 -632,30/11/2015,Childrens,CARE LEAVERS,23/11/2015,72.5,63114-OTHER FEES & LICENCES-SERVICES-FEES,Supplies & Services,Other Supplies & Services,Revenue
Walsall Council,http://opendatacommunities.org/id/metropolitan-district-council/walsall,WC62 -633,30/11/2015,Childrens,CARE LEAVERS,23/11/2015,464,76000-TRANSFER PAYMENTS - SOCIAL SERVICES CLIENTS,Transfer Payments,Transfer Payments,Revenue
Walsall Council,http://opendatacommunities.org/id/metropolitan-district-council/walsall,WC62 -634,30/11/2015,Childrens,CARE LEAVERS,23/11/2015,595.36,76010-ACCOMMODATION AND RELATED COSTS-ASSISTANCE TO S/S CLIENTS,Transfer Payments,Transfer Payments,Revenue
Walsall Council,http://opendatacommunities.org/id/metropolitan-district-council/walsall,WC62 -635,30/11/2015,Childrens,CARE LEAVERS,23/11/2015,"2,547.76",64002-OTHER EXPENSES-EXPENSES,Supplies & Services,Other Supplies & Services,Revenue
Walsall Council,http://opendatacommunities.org/id/metropolitan-district-council/walsall,WC62 -636,30/11/2015,Childrens,CARE LEAVERS,23/11/2015,"3,051.98",74500-CARE LEAVERS MTCE PAYMENTS,Third Party Payments,Private Contractor Fees,Revenue
Walsall Council,http://opendatacommunities.org/id/metropolitan-district-council/walsall,WC62 -637,30/11/2015,Childrens,CARE LEAVERS,23/11/2015,"4,118.90",76400-RESIDENTS PERSONAL EXPENSES-ALLOWANCES TO S/S CLIENTS,Transfer Payments,Transfer Payments,Revenue
Walsall Council,http://opendatacommunities.org/id/metropolitan-district-council/walsall,WC62 -638,30/11/2015,Social Care & Inclusion,CARE SHOP,01/11/2015,750.55,60539-CLEANING MATERIALS,Supplies & Services,"Equip,Furniture & Materials",Revenue
Walsall Council,http://opendatacommunities.org/id/metropolitan-district-council/walsall,WC62 -639,30/11/2015,Social Care & Inclusion,CARE SHOP,04/11/2015,833.97,60539-CLEANING MATERIALS,Supplies & Services,"Equip,Furniture & Materials",Revenue
Walsall Council,http://opendatacommunities.org/id/metropolitan-district-council/walsall,WC62 -640,30/11/2015,Social Care & Inclusion,CARE SHOP,18/11/2015,"1,058.24",60539-CLEANING MATERIALS,Supplies & Services,"Equip,Furniture & Materials",Revenue
Walsall Council,http://opendatacommunities.org/id/metropolitan-district-council/walsall,WC62 -641,30/11/2015,Childrens,CARE TODAY CHILDRENS SERVICES,16/11/2015,"11,492.01",74036-EXTERNAL RESIDENTIAL CARE-OTH AGENCY PROVISION,Third Party Payments,Private Contractor Fees,Revenue
Walsall Council,http://opendatacommunities.org/id/metropolitan-district-council/walsall,WC62 -642,30/11/2015,Childrens,CARE TODAY CHILDRENS SERVICES,16/11/2015,"14,096.01",74036-EXTERNAL RESIDENTIAL CARE-OTH AGENCY PROVISION,Third Party Payments,Private Contractor Fees,Revenue
Walsall Council,http://opendatacommunities.org/id/metropolitan-district-council/walsall,WC62 -643,30/11/2015,Childrens,CAREFIRST SERVICES LIMITED,20/11/2015,"1,795.80",74036-EXTERNAL RESIDENTIAL CARE-OTH AGENCY PROVISION,Third Party Payments,Private Contractor Fees,Revenue
Walsall Council,http://opendatacommunities.org/id/metropolitan-district-council/walsall,WC62 -644,30/11/2015,Childrens,CAREFIRST SERVICES LIMITED,20/11/2015,"1,843.66",74036-EXTERNAL RESIDENTIAL CARE-OTH AGENCY PROVISION,Third Party Payments,Private Contractor Fees,Revenue
Walsall Council,http://opendatacommunities.org/id/metropolitan-district-council/walsall,WC62 -645,30/11/2015,Childrens,CAREFIRST SERVICES LIMITED,20/11/2015,"1,933.66",76010-ACCOMMODATION AND RELATED COSTS-ASSISTANCE TO S/S CLIENTS,Transfer Payments,Transfer Payments,Revenue
Walsall Council,http://opendatacommunities.org/id/metropolitan-district-council/walsall,WC62 -646,30/11/2015,Social Care & Inclusion,CARETECH COMMUNITY SERVICE,16/11/2015,"1,171.37",73374-SUPPORTED & OTHER ACCOMMODATION,Third Party Payments,Private Contractor Fees,Revenue
Walsall Council,http://opendatacommunities.org/id/metropolitan-district-council/walsall,WC62 -647,30/11/2015,Social Care & Inclusion,CARETECH COMMUNITY SERVICE,16/11/2015,"4,118.83",73374-SUPPORTED & OTHER ACCOMMODATION,Third Party Payments,Private Contractor Fees,Revenue
Walsall Council,http://opendatacommunities.org/id/metropolitan-district-council/walsall,WC62 -648,30/11/2015,Social Care & Inclusion,CARETECH COMMUNITY SERVICE,01/11/2015,"4,256.12",73374-SUPPORTED & OTHER ACCOMMODATION,Third Party Payments,Private Contractor Fees,Revenue
Walsall Council,http://opendatacommunities.org/id/metropolitan-district-council/walsall,WC62 -649,30/11/2015,Social Care & Inclusion,CARETECH COMMUNITY SERVICE,16/11/2015,"4,885.71",73374-SUPPORTED & OTHER ACCOMMODATION,Third Party Payments,Private Contractor Fees,Revenue
Walsall Council,http://opendatacommunities.org/id/metropolitan-district-council/walsall,WC62 -650,30/11/2015,Social Care & Inclusion,CARETECH COMMUNITY SERVICE,01/11/2015,"5,048.57",73374-SUPPORTED & OTHER ACCOMMODATION,Third Party Payments,Private Contractor Fees,Revenue
Walsall Council,http://opendatacommunities.org/id/metropolitan-district-council/walsall,WC62 -651,30/11/2015,Social Care & Inclusion,CAREVIEW SERVICES LTD,17/11/2015,"6,583.35",73373-RESIDENTIAL & NURSING CARE PLACEMENTS,Third Party Payments,Private Contractor Fees,Revenue
Walsall Council,http://opendatacommunities.org/id/metropolitan-district-council/walsall,WC62 -652,30/11/2015,Social Care & Inclusion,CARING CARE LIMITED,10/11/2015,"56,356.24",73372-DOMICILIARY CARE,Third Party Payments,Private Contractor Fees,Revenue
Walsall Council,http://opendatacommunities.org/id/metropolitan-district-council/walsall,WC62 -653,30/11/2015,Social Care & Inclusion,CARING HANDS LIMITED,12/11/2015,"54,867.66",73372-DOMICILIARY CARE,Third Party Payments,Private Contractor Fees,Revenue
Walsall Council,http://opendatacommunities.org/id/metropolitan-district-council/walsall,WC62 -654,30/11/2015,Social Care & Inclusion,REDACTED,06/11/2015,865.57,73374-SUPPORTED & OTHER ACCOMMODATION,Third Party Payments,Private Contractor Fees,Revenue
Walsall Council,http://opendatacommunities.org/id/metropolitan-district-council/walsall,WC62 -655,30/11/2015,Social Care & Inclusion,REDACTED,09/11/2015,450,76422-DIRECT PAYMENTS TO SOCIAL SERVICES CLIENTS,Transfer Payments,Transfer Payments,Revenue
Walsall Council,http://opendatacommunities.org/id/metropolitan-district-council/walsall,WC62 -656,30/11/2015,Childrens,REDACTED,09/11/2015,469.8,74006-HOLIDAY/CHRISTMAS ALLOWANCE-FOSTER CARERS-OTH AGENCY PROVISION,Third Party Payments,Private Contractor Fees,Revenue
Walsall Council,http://opendatacommunities.org/id/metropolitan-district-council/walsall,WC62 -657,30/11/2015,Childrens,REDACTED,09/11/2015,540.2,62515-MISCELLANEOUS SUPPLIES,Supplies & Services,Other Supplies & Services,Revenue
Walsall Council,http://opendatacommunities.org/id/metropolitan-district-council/walsall,WC62 -658,30/11/2015,Childrens,REDACTED,23/11/2015,365.6,74006-HOLIDAY/CHRISTMAS ALLOWANCE-FOSTER CARERS-OTH AGENCY PROVISION,Third Party Payments,Private Contractor Fees,Revenue
Walsall Council,http://opendatacommunities.org/id/metropolitan-district-council/walsall,WC62 -659,30/11/2015,Social Care & Inclusion,REDACTED,09/11/2015,250,76422-DIRECT PAYMENTS TO SOCIAL SERVICES CLIENTS,Transfer Payments,Transfer Payments,Revenue
Walsall Council,http://opendatacommunities.org/id/metropolitan-district-council/walsall,WC62 -660,30/11/2015,Childrens,CARTER BROWN LTD T/A CARTER BROWN THE EXPERT SERVICE,01/11/2015,"2,320.10",76001-SECTION 1/17CHILD CARE ACT 1989-ASSISTANCE TO S/S CLIENTS,Transfer Payments,Transfer Payments,Revenue
Walsall Council,http://opendatacommunities.org/id/metropolitan-district-council/walsall,WC62 -661,30/11/2015,Economy & Environment,CARTER SYNERGY LTD,01/11/2015,-890,"40000-REPAIRS,ALTERATIONS & MAINTENANCE-PREM",Premises,Premises-Repairs & Maintenance,Revenue
Walsall Council,http://opendatacommunities.org/id/metropolitan-district-council/walsall,WC62 -662,30/11/2015,Economy & Environment,CARTER SYNERGY LTD,01/11/2015,890,"40000-REPAIRS,ALTERATIONS & MAINTENANCE-PREM",Premises,Premises-Repairs & Maintenance,Revenue
Walsall Council,http://opendatacommunities.org/id/metropolitan-district-council/walsall,WC62 -663,30/11/2015,Economy & Environment,CARTER SYNERGY LTD,20/11/2015,"2,932.50",01044-PURCHASE OF FURNITURE & EQUIPMENT,Capital,Capital,Capital
Walsall Council,http://opendatacommunities.org/id/metropolitan-district-council/walsall,WC62 -664,30/11/2015,Economy & Environment,CARTER SYNERGY LTD,01/11/2015,"3,772.00",01006-SITE WORKS MAIN CONTRACTORS,Capital,Capital,Capital
Walsall Council,http://opendatacommunities.org/id/metropolitan-district-council/walsall,WC62 -665,30/11/2015,Economy & Environment,CARTER SYNERGY LTD,02/11/2015,"6,293.74",40012-FIRE SYSTEM-OP MTCE,Premises,Premises-Repairs & Maintenance,Revenue
Walsall Council,http://opendatacommunities.org/id/metropolitan-district-council/walsall,WC62 -666,30/11/2015,Social Care & Inclusion,CASHFRIDAY,02/11/2015,310.2,73372-DOMICILIARY CARE,Third Party Payments,Private Contractor Fees,Revenue
Walsall Council,http://opendatacommunities.org/id/metropolitan-district-council/walsall,WC62 -667,30/11/2015,Economy & Environment,REDACTED,24/11/2015,282.38,63000-PROFESSIONAL FEES AND SERVICES,Supplies & Services,Services,Revenue
Walsall Council,http://opendatacommunities.org/id/metropolitan-district-council/walsall,WC62 -668,30/11/2015,Economy & Environment,REDACTED,24/11/2015,554.67,63000-PROFESSIONAL FEES AND SERVICES,Supplies & Services,Services,Revenue
Walsall Council,http://opendatacommunities.org/id/metropolitan-district-council/walsall,WC62 -669,30/11/2015,Childrens,CATCH 22 CHARITY LTD,19/11/2015,"3,690.00",34305-AGENCY STAFF-EMPLOYEES,Employees,Agency,Revenue
Walsall Council,http://opendatacommunities.org/id/metropolitan-district-council/walsall,WC62 -670,30/11/2015,Childrens,CATCH 22 CHARITY LTD,19/11/2015,"3,690.00",34305-AGENCY STAFF-EMPLOYEES,Employees,Agency,Revenue
Walsall Council,http://opendatacommunities.org/id/metropolitan-district-council/walsall,WC62 -671,30/11/2015,Social Care & Inclusion,REDACTED,09/11/2015,622.68,76422-DIRECT PAYMENTS TO SOCIAL SERVICES CLIENTS,Transfer Payments,Transfer Payments,Revenue
Walsall Council,http://opendatacommunities.org/id/metropolitan-district-council/walsall,WC62 -672,30/11/2015,Social Care & Inclusion,REDACTED,09/11/2015,690.48,76422-DIRECT PAYMENTS TO SOCIAL SERVICES CLIENTS,Transfer Payments,Transfer Payments,Revenue
Walsall Council,http://opendatacommunities.org/id/metropolitan-district-council/walsall,WC62 -673,30/11/2015,Childrens,REDACTED,23/11/2015,425.08,74006-HOLIDAY/CHRISTMAS ALLOWANCE-FOSTER CARERS-OTH AGENCY PROVISION,Third Party Payments,Private Contractor Fees,Revenue
Walsall Council,http://opendatacommunities.org/id/metropolitan-district-council/walsall,WC62 -674,30/11/2015,Social Care & Inclusion,REDACTED,09/11/2015,388.4,76422-DIRECT PAYMENTS TO SOCIAL SERVICES CLIENTS,Transfer Payments,Transfer Payments,Revenue
Walsall Council,http://opendatacommunities.org/id/metropolitan-district-council/walsall,WC62 -675,30/11/2015,Childrens,REDACTED,09/11/2015,"1,014.26",76422-DIRECT PAYMENTS TO SOCIAL SERVICES CLIENTS,Transfer Payments,Transfer Payments,Revenue
Walsall Council,http://opendatacommunities.org/id/metropolitan-district-council/walsall,WC62 -676,30/11/2015,Childrens,REDACTED,23/11/2015,425.08,74006-HOLIDAY/CHRISTMAS ALLOWANCE-FOSTER CARERS-OTH AGENCY PROVISION,Third Party Payments,Private Contractor Fees,Revenue
Walsall Council,http://opendatacommunities.org/id/metropolitan-district-council/walsall,WC62 -677,30/11/2015,Change and Governance,CE RISK SAFETY AND SECURITY LTD,11/11/2015,"5,490.00",73002-SECURITY-PRIV CONTRACTOR FEES,Third Party Payments,Private Contractor Fees,Revenue
Walsall Council,http://opendatacommunities.org/id/metropolitan-district-council/walsall,WC62 -678,30/11/2015,Childrens,CENTRAL BUSES,09/11/2015,"10,431.00",52000-WITH DRIVER-HIRE OF VEHICLES,Transport,Hire,Revenue
Walsall Council,http://opendatacommunities.org/id/metropolitan-district-council/walsall,WC62 -679,30/11/2015,Economy & Environment,CENTRAL CONSTRUCTION TRAINING LTD,11/11/2015,750,66500-GRANTS TO OTHER ORGS,Third Party Payments,Grants to Other Orgs,Revenue
Walsall Council,http://opendatacommunities.org/id/metropolitan-district-council/walsall,WC62 -680,30/11/2015,Economy & Environment,CENTRAL CONSTRUCTION TRAINING LTD,11/11/2015,750,66500-GRANTS TO OTHER ORGS,Third Party Payments,Grants to Other Orgs,Revenue
Walsall Council,http://opendatacommunities.org/id/metropolitan-district-council/walsall,WC62 -681,30/11/2015,Economy & Environment,CENTRAL CONSTRUCTION TRAINING LTD,11/11/2015,750,66500-GRANTS TO OTHER ORGS,Third Party Payments,Grants to Other Orgs,Revenue
Walsall Council,http://opendatacommunities.org/id/metropolitan-district-council/walsall,WC62 -682,30/11/2015,Economy & Environment,CENTRAL CONSTRUCTION TRAINING LTD,11/11/2015,"2,250.00",66500-GRANTS TO OTHER ORGS,Third Party Payments,Grants to Other Orgs,Revenue
Walsall Council,http://opendatacommunities.org/id/metropolitan-district-council/walsall,WC62 -683,30/11/2015,Economy & Environment,CERTAS ENERGY UK LIMITED,01/11/2015,412.3,50301-FUEL-TRANSPORT RUN COSTS,Transport,Other Transport,Revenue
Walsall Council,http://opendatacommunities.org/id/metropolitan-district-council/walsall,WC62 -684,30/11/2015,Economy & Environment,CERTAS ENERGY UK LIMITED,11/11/2015,527.28,50301-FUEL-TRANSPORT RUN COSTS,Transport,Other Transport,Revenue
Walsall Council,http://opendatacommunities.org/id/metropolitan-district-council/walsall,WC62 -685,30/11/2015,Economy & Environment,CERTAS ENERGY UK LIMITED,19/11/2015,"17,093.98",50301-FUEL-TRANSPORT RUN COSTS,Transport,Other Transport,Revenue
Walsall Council,http://opendatacommunities.org/id/metropolitan-district-council/walsall,WC62 -686,30/11/2015,Economy & Environment,CERTAS ENERGY UK LIMITED,19/11/2015,"17,156.28",50301-FUEL-TRANSPORT RUN COSTS,Transport,Other Transport,Revenue
Walsall Council,http://opendatacommunities.org/id/metropolitan-district-council/walsall,WC62 -687,30/11/2015,Economy & Environment,CERTAS ENERGY UK LIMITED,09/11/2015,"17,239.17",50301-FUEL-TRANSPORT RUN COSTS,Transport,Other Transport,Revenue
Walsall Council,http://opendatacommunities.org/id/metropolitan-district-council/walsall,WC62 -688,30/11/2015,Economy & Environment,CERTAS ENERGY UK LIMITED,01/11/2015,"17,594.24",50301-FUEL-TRANSPORT RUN COSTS,Transport,Other Transport,Revenue
Walsall Council,http://opendatacommunities.org/id/metropolitan-district-council/walsall,WC62 -689,30/11/2015,Change and Governance,CEXC LIMITED,20/11/2015,550.94,63800-COMPUTER EQUIPMENT AND SUPPLIES,Supplies & Services,Communications & Computing,Revenue
Walsall Council,http://opendatacommunities.org/id/metropolitan-district-council/walsall,WC62 -690,30/11/2015,Childrens,CF CORPORATE FINANCE LTD,19/11/2015,442.4,60009-LEASING/HIRE/RENTAL-EQUIPMENT,Supplies & Services,"Equip,Furniture & Materials",Revenue
Walsall Council,http://opendatacommunities.org/id/metropolitan-district-council/walsall,WC62 -691,30/11/2015,Childrens,CFT FOSTERING LIMITED,02/11/2015,"-2,989.64",74037-INDEPENDENT FOSTER CARE-OTH AGENCY PROVISION,Third Party Payments,Private Contractor Fees,Revenue
Walsall Council,http://opendatacommunities.org/id/metropolitan-district-council/walsall,WC62 -692,30/11/2015,Childrens,CFT FOSTERING LIMITED,13/11/2015,"3,045.30",74037-INDEPENDENT FOSTER CARE-OTH AGENCY PROVISION,Third Party Payments,Private Contractor Fees,Revenue
Walsall Council,http://opendatacommunities.org/id/metropolitan-district-council/walsall,WC62 -693,30/11/2015,Social Care & Inclusion,CHANDOS LODGE CARE HOME,25/11/2015,"1,668.72",73373-RESIDENTIAL & NURSING CARE PLACEMENTS,Third Party Payments,Private Contractor Fees,Revenue
Walsall Council,http://opendatacommunities.org/id/metropolitan-district-council/walsall,WC62 -694,30/11/2015,Social Care & Inclusion,REDACTED,09/11/2015,748,76422-DIRECT PAYMENTS TO SOCIAL SERVICES CLIENTS,Transfer Payments,Transfer Payments,Revenue
Walsall Council,http://opendatacommunities.org/id/metropolitan-district-council/walsall,WC62 -695,30/11/2015,Childrens,REDACTED,23/11/2015,"1,313.65",74006-HOLIDAY/CHRISTMAS ALLOWANCE-FOSTER CARERS-OTH AGENCY PROVISION,Third Party Payments,Private Contractor Fees,Revenue
Walsall Council,http://opendatacommunities.org/id/metropolitan-district-council/walsall,WC62 -696,30/11/2015,Childrens,CHARLES CODDY WALKER ACADEMY,16/11/2015,"5,230.00",66505-OTHER-GRANTS TO OTHER ORGS,Third Party Payments,Grants to Other Orgs,Revenue
Walsall Council,http://opendatacommunities.org/id/metropolitan-district-council/walsall,WC62 -697,30/11/2015,Childrens,CHARLES CODDY WALKER ACADEMY,23/11/2015,"5,724.65",66505-OTHER-GRANTS TO OTHER ORGS,Third Party Payments,Grants to Other Orgs,Revenue
Walsall Council,http://opendatacommunities.org/id/metropolitan-district-council/walsall,WC62 -698,30/11/2015,Childrens,REDACTED,09/11/2015,258.96,76422-DIRECT PAYMENTS TO SOCIAL SERVICES CLIENTS,Transfer Payments,Transfer Payments,Revenue
Walsall Council,http://opendatacommunities.org/id/metropolitan-district-council/walsall,WC62 -699,30/11/2015,Social Care & Inclusion,CHARMEND LTD,17/11/2015,"2,116.72",73373-RESIDENTIAL & NURSING CARE PLACEMENTS,Third Party Payments,Private Contractor Fees,Revenue
Walsall Council,http://opendatacommunities.org/id/metropolitan-district-council/walsall,WC62 -700,30/11/2015,Social Care & Inclusion,CHARMEND LTD,10/11/2015,"2,693.48",73373-RESIDENTIAL & NURSING CARE PLACEMENTS,Third Party Payments,Private Contractor Fees,Revenue
Walsall Council,http://opendatacommunities.org/id/metropolitan-district-council/walsall,WC62 -701,30/11/2015,Social Care & Inclusion,CHARMEND LTD,11/11/2015,"25,714.29",73019-PSE'S-PRIV CONTRACTOR FEES,Third Party Payments,Private Contractor Fees,Revenue
Walsall Council,http://opendatacommunities.org/id/metropolitan-district-council/walsall,WC62 -702,30/11/2015,Social Care & Inclusion,CHARTER CARE,11/11/2015,"39,390.83",73372-DOMICILIARY CARE,Third Party Payments,Private Contractor Fees,Revenue
Walsall Council,http://opendatacommunities.org/id/metropolitan-district-council/walsall,WC62 -703,30/11/2015,Social Care & Inclusion,CHASE HOUSE AND PARTNER,10/11/2015,"4,545.68",73373-RESIDENTIAL & NURSING CARE PLACEMENTS,Third Party Payments,Private Contractor Fees,Revenue
Walsall Council,http://opendatacommunities.org/id/metropolitan-district-council/walsall,WC62 -704,30/11/2015,Social Care & Inclusion,CHASE HOUSE AND PARTNER,10/11/2015,"4,555.68",73373-RESIDENTIAL & NURSING CARE PLACEMENTS,Third Party Payments,Private Contractor Fees,Revenue
Walsall Council,http://opendatacommunities.org/id/metropolitan-district-council/walsall,WC62 -705,30/11/2015,Social Care & Inclusion,CHASE HOUSE AND PARTNER,10/11/2015,"4,665.12",73373-RESIDENTIAL & NURSING CARE PLACEMENTS,Third Party Payments,Private Contractor Fees,Revenue
Walsall Council,http://opendatacommunities.org/id/metropolitan-district-council/walsall,WC62 -706,30/11/2015,Social Care & Inclusion,CHASE HOUSE AND PARTNER,10/11/2015,"4,860.72",73373-RESIDENTIAL & NURSING CARE PLACEMENTS,Third Party Payments,Private Contractor Fees,Revenue
Walsall Council,http://opendatacommunities.org/id/metropolitan-district-council/walsall,WC62 -707,30/11/2015,Change and Governance,CHECKPRINT LTD,09/11/2015,600,63820-RECHARGE FOR MAINTENANCE/APPLICATION COSTS-COMPUTER,Supplies & Services,Communications & Computing,Revenue
Walsall Council,http://opendatacommunities.org/id/metropolitan-district-council/walsall,WC62 -708,30/11/2015,Social Care & Inclusion,CHERISH HOME CARE,10/11/2015,253,73372-DOMICILIARY CARE,Third Party Payments,Private Contractor Fees,Revenue
Walsall Council,http://opendatacommunities.org/id/metropolitan-district-council/walsall,WC62 -709,30/11/2015,Social Care & Inclusion,CHERISH HOME CARE,11/11/2015,281.43,73372-DOMICILIARY CARE,Third Party Payments,Private Contractor Fees,Revenue
Walsall Council,http://opendatacommunities.org/id/metropolitan-district-council/walsall,WC62 -710,30/11/2015,Social Care & Inclusion,CHERISH HOME CARE,11/11/2015,304.75,73372-DOMICILIARY CARE,Third Party Payments,Private Contractor Fees,Revenue
Walsall Council,http://opendatacommunities.org/id/metropolitan-district-council/walsall,WC62 -711,30/11/2015,Social Care & Inclusion,CHERISH HOME CARE,11/11/2015,307.76,73372-DOMICILIARY CARE,Third Party Payments,Private Contractor Fees,Revenue
Walsall Council,http://opendatacommunities.org/id/metropolitan-district-council/walsall,WC62 -712,30/11/2015,Social Care & Inclusion,CHERISH HOME CARE,10/11/2015,368.07,73372-DOMICILIARY CARE,Third Party Payments,Private Contractor Fees,Revenue
Walsall Council,http://opendatacommunities.org/id/metropolitan-district-council/walsall,WC62 -713,30/11/2015,Social Care & Inclusion,CHERISH HOME CARE,11/11/2015,431.36,73372-DOMICILIARY CARE,Third Party Payments,Private Contractor Fees,Revenue
Walsall Council,http://opendatacommunities.org/id/metropolitan-district-council/walsall,WC62 -714,30/11/2015,Social Care & Inclusion,CHERISH HOME CARE,11/11/2015,483.21,73372-DOMICILIARY CARE,Third Party Payments,Private Contractor Fees,Revenue
Walsall Council,http://opendatacommunities.org/id/metropolitan-district-council/walsall,WC62 -715,30/11/2015,Social Care & Inclusion,CHERISH HOME CARE,11/11/2015,615.69,73372-DOMICILIARY CARE,Third Party Payments,Private Contractor Fees,Revenue
Walsall Council,http://opendatacommunities.org/id/metropolitan-district-council/walsall,WC62 -716,30/11/2015,Social Care & Inclusion,CHERISH HOME CARE,11/11/2015,679.4,73372-DOMICILIARY CARE,Third Party Payments,Private Contractor Fees,Revenue
Walsall Council,http://opendatacommunities.org/id/metropolitan-district-council/walsall,WC62 -717,30/11/2015,Social Care & Inclusion,CHERISH HOME CARE,16/11/2015,743.14,73372-DOMICILIARY CARE,Third Party Payments,Private Contractor Fees,Revenue
Walsall Council,http://opendatacommunities.org/id/metropolitan-district-council/walsall,WC62 -718,30/11/2015,Childrens,CHESTERTON PRIMARY SCHOOL,18/11/2015,500,77300-ISB-FORMULA ALLOCATION,Transfer Payments,Transfer Payments,Revenue
Walsall Council,http://opendatacommunities.org/id/metropolitan-district-council/walsall,WC62 -719,30/11/2015,Economy & Environment,CHEVIN FLEET SOLUTIONS LTD,25/11/2015,"2,700.00",73025-PROFESSIONAL SERVICES-PRIV CONTRACTOR & OTHER AGENCIES,Third Party Payments,Private Contractor Fees,Revenue
Walsall Council,http://opendatacommunities.org/id/metropolitan-district-council/walsall,WC62 -720,30/11/2015,Social Care & Inclusion,REDACTED,09/11/2015,"1,601.60",76422-DIRECT PAYMENTS TO SOCIAL SERVICES CLIENTS,Transfer Payments,Transfer Payments,Revenue
Walsall Council,http://opendatacommunities.org/id/metropolitan-district-council/walsall,WC62 -721,30/11/2015,Childrens,CHILD CONNECTIONS (UK) LIMITED,13/11/2015,593.75,76003-SECTION 34 (CONTACT),Third Party Payments,Private Contractor Fees,Revenue
Walsall Council,http://opendatacommunities.org/id/metropolitan-district-council/walsall,WC62 -722,30/11/2015,Childrens,CHILD CONNECTIONS (UK) LIMITED,01/11/2015,"2,031.01",76003-SECTION 34 (CONTACT),Third Party Payments,Private Contractor Fees,Revenue
Walsall Council,http://opendatacommunities.org/id/metropolitan-district-council/walsall,WC62 -723,30/11/2015,Childrens,CHILDCARE BUREAU LTD,20/11/2015,"3,195.92",74037-INDEPENDENT FOSTER CARE-OTH AGENCY PROVISION,Third Party Payments,Private Contractor Fees,Revenue
Walsall Council,http://opendatacommunities.org/id/metropolitan-district-council/walsall,WC62 -724,30/11/2015,Childrens,CHILDCARE BUREAU LTD,20/11/2015,"3,731.00",74037-INDEPENDENT FOSTER CARE-OTH AGENCY PROVISION,Third Party Payments,Private Contractor Fees,Revenue
Walsall Council,http://opendatacommunities.org/id/metropolitan-district-council/walsall,WC62 -725,30/11/2015,Childrens,CHILDCARE BUREAU LTD,20/11/2015,"6,939.80",74037-INDEPENDENT FOSTER CARE-OTH AGENCY PROVISION,Third Party Payments,Private Contractor Fees,Revenue
Walsall Council,http://opendatacommunities.org/id/metropolitan-district-council/walsall,WC62 -726,30/11/2015,Childrens,CHILDLINK,11/11/2015,2,53001-OTHER/VOLUNTEERS-CAR ALLOWANCES,Transport,Car Allowances,Revenue
Walsall Council,http://opendatacommunities.org/id/metropolitan-district-council/walsall,WC62 -727,30/11/2015,Childrens,CHILDLINK,16/11/2015,5.6,53001-OTHER/VOLUNTEERS-CAR ALLOWANCES,Transport,Car Allowances,Revenue
Walsall Council,http://opendatacommunities.org/id/metropolitan-district-council/walsall,WC62 -728,30/11/2015,Childrens,CHILDLINK,16/11/2015,10.2,53001-OTHER/VOLUNTEERS-CAR ALLOWANCES,Transport,Car Allowances,Revenue
Walsall Council,http://opendatacommunities.org/id/metropolitan-district-council/walsall,WC62 -729,30/11/2015,Childrens,CHILDLINK,16/11/2015,13,53003-OTHER-TRAVEL ALLOWANCES,Transport,Car Allowances,Revenue
Walsall Council,http://opendatacommunities.org/id/metropolitan-district-council/walsall,WC62 -730,30/11/2015,Childrens,CHILDLINK,11/11/2015,18,63128-HIRE OF ROOM-SERVICES-FEES,Supplies & Services,Other Supplies & Services,Revenue
Walsall Council,http://opendatacommunities.org/id/metropolitan-district-council/walsall,WC62 -731,30/11/2015,Childrens,CHILDLINK,16/11/2015,18,63128-HIRE OF ROOM-SERVICES-FEES,Supplies & Services,Other Supplies & Services,Revenue
Walsall Council,http://opendatacommunities.org/id/metropolitan-district-council/walsall,WC62 -732,30/11/2015,Childrens,CHILDLINK,11/11/2015,19.5,53003-OTHER-TRAVEL ALLOWANCES,Transport,Car Allowances,Revenue
Walsall Council,http://opendatacommunities.org/id/metropolitan-district-council/walsall,WC62 -733,30/11/2015,Childrens,CHILDLINK,11/11/2015,20,53001-OTHER/VOLUNTEERS-CAR ALLOWANCES,Transport,Car Allowances,Revenue
Walsall Council,http://opendatacommunities.org/id/metropolitan-district-council/walsall,WC62 -734,30/11/2015,Childrens,CHILDLINK,04/11/2015,20.8,53001-OTHER/VOLUNTEERS-CAR ALLOWANCES,Transport,Car Allowances,Revenue
Walsall Council,http://opendatacommunities.org/id/metropolitan-district-council/walsall,WC62 -735,30/11/2015,Childrens,CHILDLINK,16/11/2015,22.75,53003-OTHER-TRAVEL ALLOWANCES,Transport,Car Allowances,Revenue
Walsall Council,http://opendatacommunities.org/id/metropolitan-district-council/walsall,WC62 -736,30/11/2015,Childrens,CHILDLINK,16/11/2015,24.8,53001-OTHER/VOLUNTEERS-CAR ALLOWANCES,Transport,Car Allowances,Revenue
Walsall Council,http://opendatacommunities.org/id/metropolitan-district-council/walsall,WC62 -737,30/11/2015,Childrens,CHILDLINK,04/11/2015,27.36,53001-OTHER/VOLUNTEERS-CAR ALLOWANCES,Transport,Car Allowances,Revenue
Walsall Council,http://opendatacommunities.org/id/metropolitan-district-council/walsall,WC62 -738,30/11/2015,Childrens,CHILDLINK,06/11/2015,27.36,53001-OTHER/VOLUNTEERS-CAR ALLOWANCES,Transport,Car Allowances,Revenue
Walsall Council,http://opendatacommunities.org/id/metropolitan-district-council/walsall,WC62 -739,30/11/2015,Childrens,CHILDLINK,06/11/2015,29.6,53001-OTHER/VOLUNTEERS-CAR ALLOWANCES,Transport,Car Allowances,Revenue
Walsall Council,http://opendatacommunities.org/id/metropolitan-district-council/walsall,WC62 -740,30/11/2015,Childrens,CHILDLINK,06/11/2015,31.2,53001-OTHER/VOLUNTEERS-CAR ALLOWANCES,Transport,Car Allowances,Revenue
Walsall Council,http://opendatacommunities.org/id/metropolitan-district-council/walsall,WC62 -741,30/11/2015,Childrens,CHILDLINK,04/11/2015,43.2,53001-OTHER/VOLUNTEERS-CAR ALLOWANCES,Transport,Car Allowances,Revenue
Walsall Council,http://opendatacommunities.org/id/metropolitan-district-council/walsall,WC62 -742,30/11/2015,Childrens,CHILDLINK,06/11/2015,43.2,53001-OTHER/VOLUNTEERS-CAR ALLOWANCES,Transport,Car Allowances,Revenue
Walsall Council,http://opendatacommunities.org/id/metropolitan-district-council/walsall,WC62 -743,30/11/2015,Childrens,CHILDLINK,04/11/2015,52,53003-OTHER-TRAVEL ALLOWANCES,Transport,Car Allowances,Revenue
Walsall Council,http://opendatacommunities.org/id/metropolitan-district-council/walsall,WC62 -744,30/11/2015,Childrens,CHILDLINK,04/11/2015,52,53003-OTHER-TRAVEL ALLOWANCES,Transport,Car Allowances,Revenue
Walsall Council,http://opendatacommunities.org/id/metropolitan-district-council/walsall,WC62 -745,30/11/2015,Childrens,CHILDLINK,06/11/2015,52,53003-OTHER-TRAVEL ALLOWANCES,Transport,Car Allowances,Revenue
Walsall Council,http://opendatacommunities.org/id/metropolitan-district-council/walsall,WC62 -746,30/11/2015,Childrens,CHILDLINK,06/11/2015,65,53003-OTHER-TRAVEL ALLOWANCES,Transport,Car Allowances,Revenue
Walsall Council,http://opendatacommunities.org/id/metropolitan-district-council/walsall,WC62 -747,30/11/2015,Childrens,CHILDLINK,06/11/2015,65,53003-OTHER-TRAVEL ALLOWANCES,Transport,Car Allowances,Revenue
Walsall Council,http://opendatacommunities.org/id/metropolitan-district-council/walsall,WC62 -748,30/11/2015,Childrens,CHILDLINK,11/11/2015,65,53003-OTHER-TRAVEL ALLOWANCES,Transport,Car Allowances,Revenue
Walsall Council,http://opendatacommunities.org/id/metropolitan-district-council/walsall,WC62 -749,30/11/2015,Childrens,CHILDLINK,16/11/2015,65,53003-OTHER-TRAVEL ALLOWANCES,Transport,Car Allowances,Revenue
Walsall Council,http://opendatacommunities.org/id/metropolitan-district-council/walsall,WC62 -750,30/11/2015,Childrens,CHILDLINK,06/11/2015,78,53003-OTHER-TRAVEL ALLOWANCES,Transport,Car Allowances,Revenue
Walsall Council,http://opendatacommunities.org/id/metropolitan-district-council/walsall,WC62 -751,30/11/2015,Childrens,CHILDLINK,04/11/2015,84.5,53003-OTHER-TRAVEL ALLOWANCES,Transport,Car Allowances,Revenue
Walsall Council,http://opendatacommunities.org/id/metropolitan-district-council/walsall,WC62 -752,30/11/2015,Childrens,CHILDLINK,04/11/2015,123.5,76003-SECTION 34 (CONTACT),Third Party Payments,Private Contractor Fees,Revenue
Walsall Council,http://opendatacommunities.org/id/metropolitan-district-council/walsall,WC62 -753,30/11/2015,Childrens,CHILDLINK,06/11/2015,123.5,76003-SECTION 34 (CONTACT),Third Party Payments,Private Contractor Fees,Revenue
Walsall Council,http://opendatacommunities.org/id/metropolitan-district-council/walsall,WC62 -754,30/11/2015,Childrens,CHILDLINK,04/11/2015,156,76003-SECTION 34 (CONTACT),Third Party Payments,Private Contractor Fees,Revenue
Walsall Council,http://opendatacommunities.org/id/metropolitan-district-council/walsall,WC62 -755,30/11/2015,Childrens,CHILDLINK,06/11/2015,156,76003-SECTION 34 (CONTACT),Third Party Payments,Private Contractor Fees,Revenue
Walsall Council,http://opendatacommunities.org/id/metropolitan-district-council/walsall,WC62 -756,30/11/2015,Childrens,CHILDLINK,16/11/2015,169,76003-SECTION 34 (CONTACT),Third Party Payments,Private Contractor Fees,Revenue
Walsall Council,http://opendatacommunities.org/id/metropolitan-district-council/walsall,WC62 -757,30/11/2015,Childrens,CHILDLINK,11/11/2015,195,76003-SECTION 34 (CONTACT),Third Party Payments,Private Contractor Fees,Revenue
Walsall Council,http://opendatacommunities.org/id/metropolitan-district-council/walsall,WC62 -758,30/11/2015,Childrens,CHILDLINK,16/11/2015,208,76003-SECTION 34 (CONTACT),Third Party Payments,Private Contractor Fees,Revenue
Walsall Council,http://opendatacommunities.org/id/metropolitan-district-council/walsall,WC62 -759,30/11/2015,Childrens,CHILDLINK,04/11/2015,273,76003-SECTION 34 (CONTACT),Third Party Payments,Private Contractor Fees,Revenue
Walsall Council,http://opendatacommunities.org/id/metropolitan-district-council/walsall,WC62 -760,30/11/2015,Childrens,CHILDLINK,06/11/2015,325,76003-SECTION 34 (CONTACT),Third Party Payments,Private Contractor Fees,Revenue
Walsall Council,http://opendatacommunities.org/id/metropolitan-district-council/walsall,WC62 -761,30/11/2015,Childrens,CHILDLINK,06/11/2015,325,76003-SECTION 34 (CONTACT),Third Party Payments,Private Contractor Fees,Revenue
Walsall Council,http://opendatacommunities.org/id/metropolitan-district-council/walsall,WC62 -762,30/11/2015,Childrens,CHILDLINK,11/11/2015,325,76003-SECTION 34 (CONTACT),Third Party Payments,Private Contractor Fees,Revenue
Walsall Council,http://opendatacommunities.org/id/metropolitan-district-council/walsall,WC62 -763,30/11/2015,Childrens,CHILDLINK,16/11/2015,325,76003-SECTION 34 (CONTACT),Third Party Payments,Private Contractor Fees,Revenue
Walsall Council,http://opendatacommunities.org/id/metropolitan-district-council/walsall,WC62 -764,30/11/2015,Social Care & Inclusion,CHOICECARE 2000 LIMITED,25/11/2015,"-6,071.35",73373-RESIDENTIAL & NURSING CARE PLACEMENTS,Third Party Payments,Private Contractor Fees,Revenue
Walsall Council,http://opendatacommunities.org/id/metropolitan-district-council/walsall,WC62 -765,30/11/2015,Social Care & Inclusion,CHOICECARE 2000 LIMITED,17/11/2015,317.56,73373-RESIDENTIAL & NURSING CARE PLACEMENTS,Third Party Payments,Private Contractor Fees,Revenue
Walsall Council,http://opendatacommunities.org/id/metropolitan-district-council/walsall,WC62 -766,30/11/2015,Social Care & Inclusion,CHOICECARE 2000 LIMITED,17/11/2015,"1,085.80",73373-RESIDENTIAL & NURSING CARE PLACEMENTS,Third Party Payments,Private Contractor Fees,Revenue
Walsall Council,http://opendatacommunities.org/id/metropolitan-district-council/walsall,WC62 -767,30/11/2015,Social Care & Inclusion,CHOICECARE 2000 LIMITED,17/11/2015,"1,954.44",73373-RESIDENTIAL & NURSING CARE PLACEMENTS,Third Party Payments,Private Contractor Fees,Revenue
Walsall Council,http://opendatacommunities.org/id/metropolitan-district-council/walsall,WC62 -768,30/11/2015,Social Care & Inclusion,CHOICECARE 2000 LIMITED,10/11/2015,"3,108.64",73373-RESIDENTIAL & NURSING CARE PLACEMENTS,Third Party Payments,Private Contractor Fees,Revenue
Walsall Council,http://opendatacommunities.org/id/metropolitan-district-council/walsall,WC62 -769,30/11/2015,Social Care & Inclusion,CHOICECARE 2000 LIMITED,10/11/2015,"3,108.64",73373-RESIDENTIAL & NURSING CARE PLACEMENTS,Third Party Payments,Private Contractor Fees,Revenue
Walsall Council,http://opendatacommunities.org/id/metropolitan-district-council/walsall,WC62 -770,30/11/2015,Social Care & Inclusion,CHOICECARE 2000 LIMITED,25/11/2015,"8,499.92",73373-RESIDENTIAL & NURSING CARE PLACEMENTS,Third Party Payments,Private Contractor Fees,Revenue
Walsall Council,http://opendatacommunities.org/id/metropolitan-district-council/walsall,WC62 -771,30/11/2015,Childrens,CHRIS DENNISON CONSULTING LTD,20/11/2015,740.5,63102-CONSULTANTS FEES - CORPORATE,Supplies & Services,Services,Revenue
Walsall Council,http://opendatacommunities.org/id/metropolitan-district-council/walsall,WC62 -772,30/11/2015,Childrens,CHRIS DENNISON CONSULTING LTD,02/11/2015,"3,842.75",63102-CONSULTANTS FEES - CORPORATE,Supplies & Services,Services,Revenue
